Organisation Name,Organisation Code,Effective Date,Directorate,Service Category,Service Category URI,,Payment Date,Supplier Name,,Transaction Number,Net Amount,Irrecoverable VAT,Purpose of the expenditure,Purpose of the expenditure,Merchant Category
Wyre Council,http://opendatacommunities.org/doc/district-council/wyre,30/03/2022,Resources,Cultural and Related Services,132A,Preston City Council,31/03/2022,Preston City Council,,RS140683,102.29,0.00,Posters x 6 for Wyre Theatres,Posters X 6 For Wyre Theatres,Advertising - General
Wyre Council,http://opendatacommunities.org/doc/district-council/wyre,30/03/2022,Resources,Cultural and Related Services,132A,Preston City Council,31/03/2022,Preston City Council,,RS139991,143.72,0.00,8 x Bus Stop Posters for Wyre Theatres - Su Pollard & Four Tops,8 X Bus Stop Posters For Wyre Theatres - Su Pollard & Four Tops,Advertising - General
Wyre Council,http://opendatacommunities.org/doc/district-council/wyre,30/03/2022,People and Places,Planning and Development Servs,132C,Mcgrath Regional Media,03/03/2022,Mcgrath Regional Media,,PE139576,850.00,0.00,4 x Full page adverts for Fleetwood Market,4 X Full Page Adverts For Fleetwood Market,Advertising - General
Wyre Council,http://opendatacommunities.org/doc/district-council/wyre,30/03/2022,Resources,Planning and Development Servs,132C,Daisy Communications LTD,08/03/2022,Daisy Communications Ltd,,RS139711,37.97,0.00,Monthly Charges,Monthly Charges,Advertising - General
Wyre Council,http://opendatacommunities.org/doc/district-council/wyre,30/03/2022,Resources,Planning and Development Servs,132C,Daisy Communications LTD,30/03/2022,Daisy Communications Ltd,,RS140003,37.97,0.00,Monthly Charges,Monthly Charges,Advertising - General
Wyre Council,http://opendatacommunities.org/doc/district-council/wyre,30/03/2022,Resources,Support Services,135B,Redactive Publishing LTD,29/03/2022,Redactive Publishing Ltd,,RS138068,785.00,0.00,Finance Business Partner Advertising - Public Finance,Finance Business Partner Advertising - Public Finance,Advertising - Recruitment
Wyre Council,http://opendatacommunities.org/doc/district-council/wyre,30/03/2022,Resources,Central Services to the Public,131C,JPI Media Publishig LTD,28/03/2022,Jpi Media Publishig Ltd,,RS140563,864.00,0.00,Advert Ref Number : NMC6156657Wyre Council � Local Government Finance Act 1992Public Notices,Advert Ref Number : Nmc6156657Wyre Council � Local Government Finance Act 1992Public Notices,Advertising - Statutory Notices
Wyre Council,http://opendatacommunities.org/doc/district-council/wyre,30/03/2022,People and Places,Planning and Development Servs,132C,JPI Media Publishig LTD,09/03/2022,Jpi Media Publishig Ltd,,PE139940,691.20,0.00,Press notice for Garstang Courier and Blackpool Gazette on Wednesday 23rd February 2022,Press Notice For Garstang Courier And Blackpool Gazette On Wednesday 23Rd February 2022,Advertising - Statutory Notices
Wyre Council,http://opendatacommunities.org/doc/district-council/wyre,30/03/2022,People and Places,Planning and Development Servs,132C,JPI Media Publishig LTD,18/03/2022,Jpi Media Publishig Ltd,,PE140240,604.80,0.00,Press notice for Garstang Courier and Blackpool Gazette on Wednesday 16th march 2022,Press Notice For Garstang Courier And Blackpool Gazette On Wednesday 16Th March 2022,Advertising - Statutory Notices
Wyre Council,http://opendatacommunities.org/doc/district-council/wyre,30/03/2022,People and Places,Support Services,135B,M J Wilkinson,28/03/2022,M J Wilkinson,,PE140536,211.20,0.00,MISC LABOUR GENERIC EMT,Misc Labour Generic Emt,Agency Staff
Wyre Council,http://opendatacommunities.org/doc/district-council/wyre,30/03/2022,People and Places,Support Services,135B,M J Wilkinson,28/03/2022,M J Wilkinson,,PE140537,382.80,0.00,MISC LABOUR GENERIC EMT,Misc Labour Generic Emt,Agency Staff
Wyre Council,http://opendatacommunities.org/doc/district-council/wyre,30/03/2022,People and Places,Support Services,135B,M J Wilkinson,03/03/2022,M J Wilkinson,,PE139742,528.00,0.00,MISC LABOUR GENERIC EMT,Misc Labour Generic Emt,Agency Staff
Wyre Council,http://opendatacommunities.org/doc/district-council/wyre,30/03/2022,People and Places,Support Services,135B,M J Wilkinson,03/03/2022,M J Wilkinson,,PE139749,488.40,0.00,MISC LABOUR GENERIC EMT,Misc Labour Generic Emt,Agency Staff
Wyre Council,http://opendatacommunities.org/doc/district-council/wyre,30/03/2022,People and Places,Support Services,135B,M J Wilkinson,03/03/2022,M J Wilkinson,,PE139748,422.40,0.00,MISC LABOUR GENERIC EMT,Misc Labour Generic Emt,Agency Staff
Wyre Council,http://opendatacommunities.org/doc/district-council/wyre,30/03/2022,People and Places,Support Services,135B,M J Wilkinson,25/03/2022,M J Wilkinson,,PE140538,105.60,0.00,MISC LABOUR GENERIC EMT,Misc Labour Generic Emt,Agency Staff
Wyre Council,http://opendatacommunities.org/doc/district-council/wyre,30/03/2022,People and Places,Support Services,135B,M J Wilkinson,25/03/2022,M J Wilkinson,,PE140539,402.60,0.00,MISC LABOUR GENERIC EMT,Misc Labour Generic Emt,Agency Staff
Wyre Council,http://opendatacommunities.org/doc/district-council/wyre,30/03/2022,People and Places,Cultural and Related Services,132A,Catering Elite Ltd,28/03/2022,Catering Elite Ltd,,PE140608,131.58,0.00,Agency staff - Marine Hall 6/1/22,Agency Staff - Marine Hall 6/1/22,Agency Staff
Wyre Council,http://opendatacommunities.org/doc/district-council/wyre,30/03/2022,People and Places,Cultural and Related Services,132A,Catering Elite Ltd,28/03/2022,Catering Elite Ltd,,PE140594,207.75,0.00,Agency staff - Marine Hall 6/2/22,Agency Staff - Marine Hall 6/2/22,Agency Staff
Wyre Council,http://opendatacommunities.org/doc/district-council/wyre,30/03/2022,People and Places,Cultural and Related Services,132A,Catering Elite Ltd,28/03/2022,Catering Elite Ltd,,PE140589,277.00,0.00,Agency staff - Marine Hall 13/2/22,Agency Staff - Marine Hall 13/2/22,Agency Staff
Wyre Council,http://opendatacommunities.org/doc/district-council/wyre,30/03/2022,People and Places,Cultural and Related Services,132A,Catering Elite Ltd,28/03/2022,Catering Elite Ltd,,PE140588,290.86,0.00,Agency staff - Marine Hall 23/1/22,Agency Staff - Marine Hall 23/1/22,Agency Staff
Wyre Council,http://opendatacommunities.org/doc/district-council/wyre,30/03/2022,People and Places,Cultural and Related Services,132A,Catering Elite Ltd,28/03/2022,Catering Elite Ltd,,PE140587,114.26,0.00,Agency staff - Marine Hall 26/12/21,Agency Staff - Marine Hall 26/12/21,Agency Staff
Wyre Council,http://opendatacommunities.org/doc/district-council/wyre,30/03/2022,People and Places,Central Services to the Public,131C,Matrix SCM,09/03/2022,Matrix Scm,,PE139764,1991.73,0.00,Community support assistants support work for NHS Test & Trace - Wyre Council up until 27th January 2022.,Community Support Assistants Support Work For Nhs Test & Trace - Wyre Council Up Until 27Th January 2022.,Agency Staff
Wyre Council,http://opendatacommunities.org/doc/district-council/wyre,30/03/2022,People and Places,Central Services to the Public,131C,Matrix SCM,22/03/2022,Matrix Scm,,PE139326,1080.46,0.00,"2 community support assistant costs to support NHS Test & Trace - 6,000 in total","2 Community Support Assistant Costs To Support Nhs Test & Trace - 6,000 In Total",Agency Staff
Wyre Council,http://opendatacommunities.org/doc/district-council/wyre,30/03/2022,People and Places,Central Services to the Public,131C,Matrix SCM,22/03/2022,Matrix Scm,,PE139184,676.74,0.00,2 community support assistant costs to,2 Community Support Assistant Costs To,Agency Staff
Wyre Council,http://opendatacommunities.org/doc/district-council/wyre,30/03/2022,People and Places,Support Services,135B,BUTLER ROSE,03/03/2022,Butler Rose,,PE139740,1800.00,0.00,Timesheet January 2022 - March 2022,Timesheet January 2022 - March 2022,Agency Staff
Wyre Council,http://opendatacommunities.org/doc/district-council/wyre,30/03/2022,Resources,Support Services,135B,BUTLER ROSE,17/03/2022,Butler Rose,,RS140175,1800.00,0.00,Timesheet January 2022 - March 2022,Timesheet January 2022 - March 2022,Agency Staff
Wyre Council,http://opendatacommunities.org/doc/district-council/wyre,30/03/2022,Resources,Support Services,135B,BUTLER ROSE,17/03/2022,Butler Rose,,RS140194,1800.00,0.00,Timesheet January 2022 - March 2022,Timesheet January 2022 - March 2022,Agency Staff
Wyre Council,http://opendatacommunities.org/doc/district-council/wyre,30/03/2022,Resources,Support Services,135B,BUTLER ROSE,17/03/2022,Butler Rose,,RS140195,1800.00,0.00,Timesheet January 2022 - March 2022,Timesheet January 2022 - March 2022,Agency Staff
Wyre Council,http://opendatacommunities.org/doc/district-council/wyre,30/03/2022,Resources,Support Services,135B,BUTLER ROSE,03/03/2022,Butler Rose,,RS139721,1800.00,0.00,Timesheet January 2022 - March 2022,Timesheet January 2022 - March 2022,Agency Staff
Wyre Council,http://opendatacommunities.org/doc/district-council/wyre,30/03/2022,Resources,Support Services,135B,BUTLER ROSE,29/03/2022,Butler Rose,,RS140586,1800.00,0.00,Timesheet January 2022 - March 2022,Timesheet January 2022 - March 2022,Agency Staff
Wyre Council,http://opendatacommunities.org/doc/district-council/wyre,30/03/2022,Resources,Support Services,135B,BUTLER ROSE,30/03/2022,Butler Rose,,RS140644,1800.00,0.00,Timesheet January 2022 - March 2022,Timesheet January 2022 - March 2022,Agency Staff
Wyre Council,http://opendatacommunities.org/doc/district-council/wyre,30/03/2022,People and Places,Planning and Development Servs,132C,LINK SECURITY SERVICES NW LTD,24/03/2022,Link Security Services Nw Ltd,,PE140465,904.50,0.00,Security at Fleetwood Market Month ending 28/2/22,Security At Fleetwood Market Month Ending 28/2/22,Agency Staff
Wyre Council,http://opendatacommunities.org/doc/district-council/wyre,30/03/2022,People and Places,Cultural and Related Services,132A,LINK SECURITY SERVICES NW LTD,24/03/2022,Link Security Services Nw Ltd,,PE140465,432.00,0.00,Security at Marine Hall,Security At Marine Hall,Agency Staff
Wyre Council,http://opendatacommunities.org/doc/district-council/wyre,30/03/2022,People and Places,Support Services,135B,Lancashire County Council,28/03/2022,Lancashire County Council,,PE140517,1000.50,0.00,19.01.2022INS279737Poulton-le-Fylde Civic Centre - Fire Alarm,19.01.2022Ins279737Poulton-Le-Fylde Civic Centre - Fire Alarm,Alarm Systems and Security - Annual
Wyre Council,http://opendatacommunities.org/doc/district-council/wyre,30/03/2022,People and Places,Planning and Development Servs,132C,Lancashire County Council,28/03/2022,Lancashire County Council,,PE140517,137.46,0.00,07.01.2022INS279696Fleetwood Copse Road Depot - Fire Alarm,07.01.2022Ins279696Fleetwood Copse Road Depot - Fire Alarm,Alarm Systems and Security - Annual
Wyre Council,http://opendatacommunities.org/doc/district-council/wyre,30/03/2022,People and Places,Planning and Development Servs,132C,Lancashire County Council,28/03/2022,Lancashire County Council,,PE140517,44.66,0.00,07.01.2022INS279697Fleetwood Copse Road Depot - Intruder Alarm,07.01.2022Ins279697Fleetwood Copse Road Depot - Intruder Alarm,Alarm Systems and Security - Annual
Wyre Council,http://opendatacommunities.org/doc/district-council/wyre,30/03/2022,People and Places,Planning and Development Servs,132C,Lancashire County Council,28/03/2022,Lancashire County Council,,PE140517,10.44,0.00,07.01.2022INS279698Fleetwood Copse Road Depot - Disabled Toilet Alarm,07.01.2022Ins279698Fleetwood Copse Road Depot - Disabled Toilet Alarm,Alarm Systems and Security - Annual
Wyre Council,http://opendatacommunities.org/doc/district-council/wyre,30/03/2022,People and Places,Planning and Development Servs,132C,Lancashire County Council,28/03/2022,Lancashire County Council,,PE140517,144.13,0.00,07.01.2022INS279695Fleetwood Copse Road Depot - Emergency Lighting,07.01.2022Ins279695Fleetwood Copse Road Depot - Emergency Lighting,Alarm Systems and Security - Annual
Wyre Council,http://opendatacommunities.org/doc/district-council/wyre,30/03/2022,Resources,Support Services,135B,Daisy Communications LTD,08/03/2022,Daisy Communications Ltd,,RS139711,9.48,0.00,Monthly Charges,Monthly Charges,Alarm Systems and Security - Annual
Wyre Council,http://opendatacommunities.org/doc/district-council/wyre,30/03/2022,Resources,Support Services,135B,Daisy Communications LTD,30/03/2022,Daisy Communications Ltd,,RS140003,9.48,0.00,Monthly Charges,Monthly Charges,Alarm Systems and Security - Annual
Wyre Council,http://opendatacommunities.org/doc/district-council/wyre,30/03/2022,People and Places,Planning and Development Servs,132C,M D Security,30/03/2022,M D Security,,PE140664,191.22,0.00,maintenance and monitoring of security alarm,Maintenance And Monitoring Of Security Alarm,Alarm Systems and Security - Annual
Wyre Council,http://opendatacommunities.org/doc/district-council/wyre,30/03/2022,People and Places,Support Services,135B,M D Security,18/03/2022,M D Security,,PE139923,60.00,0.00,Civic - emergency light testing 02/22,Civic - Emergency Light Testing 02/22,Alarm Systems and Security - Annual
Wyre Council,http://opendatacommunities.org/doc/district-council/wyre,30/03/2022,People and Places,Support Services,135B,EAS Electrical Mechanical,28/03/2022,Eas Electrical Mechanical,,PE140502,1251.40,0.00,Emergency light replacement in loft of Civic Centre,Emergency Light Replacement In Loft Of Civic Centre,Alarm Systems and Security - Responsive
Wyre Council,http://opendatacommunities.org/doc/district-council/wyre,30/03/2022,People and Places,Cultural and Related Services,132A,M D Security,29/03/2022,M D Security,,PE139921,170.00,0.00,CAFE COVE,Cafe Cove,Alarm Systems and Security - Responsive
Wyre Council,http://opendatacommunities.org/doc/district-council/wyre,30/03/2022,People and Places,Cultural and Related Services,132A,M D Security,17/03/2022,M D Security,,PE140156,64.00,0.00,Replace faulty PIR sensor at Cafe Cove,Replace Faulty Pir Sensor At Cafe Cove,Alarm Systems and Security - Responsive
Wyre Council,http://opendatacommunities.org/doc/district-council/wyre,30/03/2022,People and Places,Planning and Development Servs,132C,M D Security,30/03/2022,M D Security,,PE140639,113.00,0.00,Replace battery at Market Studio,Replace Battery At Market Studio,Alarm Systems and Security - Responsive
Wyre Council,http://opendatacommunities.org/doc/district-council/wyre,30/03/2022,People and Places,Planning and Development Servs,132C,M D Security,17/03/2022,M D Security,,PE140157,80.00,0.00,Design & Replacement of CCTV installation at Fleetwood Market,Design & Replacement Of Cctv Installation At Fleetwood Market,Alarm Systems and Security - Responsive
Wyre Council,http://opendatacommunities.org/doc/district-council/wyre,30/03/2022,People and Places,Support Services,135B,M D Security,09/03/2022,M D Security,,PE139922,108.00,0.00,Replace bulk head fittings,Replace Bulk Head Fittings,Alarm Systems and Security - Responsive
Wyre Council,http://opendatacommunities.org/doc/district-council/wyre,30/03/2022,People and Places,Planning and Development Servs,132C,M D Security,30/03/2022,M D Security,,PE140665,45.00,0.00,Call out to Veolia alarm not setting,Call Out To Veolia Alarm Not Setting,Alarm Systems and Security - Responsive
Wyre Council,http://opendatacommunities.org/doc/district-council/wyre,30/03/2022,People and Places,Planning and Development Servs,132C,M D Security,18/03/2022,M D Security,,PE140068,58.00,0.00,Copse road works,Copse Road Works,Alarm Systems and Security - Responsive
Wyre Council,http://opendatacommunities.org/doc/district-council/wyre,30/03/2022,People and Places,Planning and Development Servs,132C,M D Security,18/03/2022,M D Security,,PE139920,95.00,0.00,Copse rd - replace faulty roller shutter,Copse Rd - Replace Faulty Roller Shutter,Alarm Systems and Security - Responsive
Wyre Council,http://opendatacommunities.org/doc/district-council/wyre,30/03/2022,People and Places,Cultural and Related Services,132A,M D Security,17/03/2022,M D Security,,PE140155,60.00,0.00,Service CCTV at Rossall Tower,Service Cctv At Rossall Tower,Alarm Systems and Security - Responsive
Wyre Council,http://opendatacommunities.org/doc/district-council/wyre,30/03/2022,Finance,Support Services,135B,,23/03/2022,,,WPST00042206,2308.00,0.00,feb 22 apprenticeship levy,Feb 22 Apprenticeship Levy,Apprenticeship Levy
Wyre Council,http://opendatacommunities.org/doc/district-council/wyre,30/03/2022,Resources,Corporate and Democratic Core,131A,PR Chauffeuring Services,30/03/2022,Pr Chauffeuring Services,,RS140653,605.00,0.00,February 2022 Mayoral journeys to events.,February 2022 Mayoral Journeys To Events.,Attendant Chauffeur Service
Wyre Council,http://opendatacommunities.org/doc/district-council/wyre,30/03/2022,Finance,Corporate and Democratic Core,131A,NATWEST BANK,07/03/2022,Natwest Bank,,WPST00038729,813.41,0.00,natest bank charges,Natest Bank Charges,Bank Charges
Wyre Council,http://opendatacommunities.org/doc/district-council/wyre,30/03/2022,Finance,Corporate and Democratic Core,131A,NATWEST BANK,22/03/2022,Natwest Bank,,WPST00041618,865.97,0.00,natwest - 31/12,Natwest - 31/12,Bank Charges
Wyre Council,http://opendatacommunities.org/doc/district-council/wyre,30/03/2022,Finance,Corporate and Democratic Core,131A,NATWEST BANK,23/03/2022,Natwest Bank,,WPST00042317,500.73,0.00,Worldpay Invoice 195153099,Worldpay Invoice 195153099,Bank Charges
Wyre Council,http://opendatacommunities.org/doc/district-council/wyre,30/03/2022,People and Places,Cultural and Related Services,132A,Lancashire County Council,21/03/2022,Lancashire County Council,,PE140281,2360.00,0.00,Ancient Woodlands Inventory Project (FAO - Nick Bruce)Covering an 18 Month project - (January 2022 - June 2023),Ancient Woodlands Inventory Project (Fao - Nick Bruce)Covering An 18 Month Project - (January 2022 - June 2023),Biodiversity Duty
Wyre Council,http://opendatacommunities.org/doc/district-council/wyre,30/03/2022,People and Places,Environmental Services,132B,Nicholaus Cardwell Building & Maintenance,28/03/2022,Nicholaus Cardwell Building & Maintenance,,PE140565,72.00,0.00,RE:16 WINDSOR PLACE FLEETWOOD   TO BOARD UP FRONT DOOR,Re:16 Windsor Place Fleetwood   To Board Up Front Door,Boarding Up Premises/House Clearance
Wyre Council,http://opendatacommunities.org/doc/district-council/wyre,30/03/2022,People and Places,Environmental Services,132B,Nicholaus Cardwell Building & Maintenance,24/03/2022,Nicholaus Cardwell Building & Maintenance,,PE140482,320.00,0.00,RE  1 A POULTON GROVE FLEETWOOD CALL OUT TO CLEAR REFUSE AND WASTE TO FRONT OF BUILDINGLABOUR FOR ABOVE INC TIPPING COSTS,Re  1 A Poulton Grove Fleetwood Call Out To Clear Refuse And Waste To Front Of Buildinglabour For Above Inc Tipping Costs,Boarding Up Premises/House Clearance
Wyre Council,http://opendatacommunities.org/doc/district-council/wyre,30/03/2022,People and Places,Environmental Services,132B,Nicholaus Cardwell Building & Maintenance,24/03/2022,Nicholaus Cardwell Building & Maintenance,,PE140506,650.00,0.00,RE:64 GORDON RD FLEETWOOD   TO CLEAR RUBBISH TIPPED IN BACK GARDENPRICE INCLUDES 2 X MEN FOR ONE DAYAND TWO TRAILERS OF RUBBISH,Re:64 Gordon Rd Fleetwood   To Clear Rubbish Tipped In Back Gardenprice Includes 2 X Men For One Dayand Two Trailers Of Rubbish,Boarding Up Premises/House Clearance
Wyre Council,http://opendatacommunities.org/doc/district-council/wyre,30/03/2022,People and Places,Environmental Services,132B,Nicholaus Cardwell Building & Maintenance,24/03/2022,Nicholaus Cardwell Building & Maintenance,,PE140510,79.00,0.00,RE: PRINCES WAY AND CORNER OF MEDLOCK AVE FLEETWOOD (71 Princes Way)    TO FIT BOARD OVER FRONT DOOR SECURING IT,Re: Princes Way And Corner Of Medlock Ave Fleetwood (71 Princes Way)    To Fit Board Over Front Door Securing It,Boarding Up Premises/House Clearance
Wyre Council,http://opendatacommunities.org/doc/district-council/wyre,30/03/2022,People and Places,Environmental Services,132B,Nicholaus Cardwell Building & Maintenance,24/03/2022,Nicholaus Cardwell Building & Maintenance,,PE140511,75.00,0.00,"For waste removal at: 54 Sandyforth Avenue, Thornton-Cleveleys, FY5 4BS.","For Waste Removal At: 54 Sandyforth Avenue, Thornton-Cleveleys, Fy5 4Bs.",Boarding Up Premises/House Clearance
Wyre Council,http://opendatacommunities.org/doc/district-council/wyre,30/03/2022,People and Places,Support Services,135B,NSL Services Group,17/03/2022,Nsl Services Group,,PE140132,155.29,0.00,Car Park Enforcement Feb 22,Car Park Enforcement Feb 22,Cash Collection Security Service
Wyre Council,http://opendatacommunities.org/doc/district-council/wyre,30/03/2022,People and Places,Planning and Development Servs,132C,NSL Services Group,17/03/2022,Nsl Services Group,,PE140132,155.29,0.00,Car Park Enforcement Feb 22,Car Park Enforcement Feb 22,Cash Collection Security Service
Wyre Council,http://opendatacommunities.org/doc/district-council/wyre,30/03/2022,People and Places,Cultural and Related Services,132A,NSL Services Group,17/03/2022,Nsl Services Group,,PE140132,77.64,0.00,Car Park Enforcement Feb 22,Car Park Enforcement Feb 22,Cash Collection Security Service
Wyre Council,http://opendatacommunities.org/doc/district-council/wyre,30/03/2022,People and Places,Parking Services,133F,NSL Services Group,17/03/2022,Nsl Services Group,,PE140132,1785.80,0.00,Car Park Enforcement Feb 22,Car Park Enforcement Feb 22,Cash Collection Security Service
Wyre Council,http://opendatacommunities.org/doc/district-council/wyre,30/03/2022,People and Places,Environmental Services,132B,E-ON Energy Electricity,03/03/2022,E-On Energy Electricity,,PE139690,55.56,0.00,Electricity Charges for the town centre CCTV columns 1/3-31/3/21,Electricity Charges For The Town Centre Cctv Columns 1/3-31/3/21,CCTV Running Costs
Wyre Council,http://opendatacommunities.org/doc/district-council/wyre,30/03/2022,People and Places,Environmental Services,132B,E-ON Energy Electricity,03/03/2022,E-On Energy Electricity,,PE139690,9.26,0.00,Electricity Charges for the town centre CCTV columns 1/3-31/3/21,Electricity Charges For The Town Centre Cctv Columns 1/3-31/3/21,CCTV Running Costs
Wyre Council,http://opendatacommunities.org/doc/district-council/wyre,30/03/2022,People and Places,Environmental Services,132B,E-ON Energy Electricity,03/03/2022,E-On Energy Electricity,,PE139690,83.26,0.00,Electricity Charges for the town centre CCTV columns 1/3-31/3/21,Electricity Charges For The Town Centre Cctv Columns 1/3-31/3/21,CCTV Running Costs
Wyre Council,http://opendatacommunities.org/doc/district-council/wyre,30/03/2022,People and Places,Planning and Development Servs,132C,Smiths Equipment Hire,31/03/2022,Smiths Equipment Hire,,PE140674,16.90,0.00,Red Diesal,Red Diesal,CCTV Running Costs
Wyre Council,http://opendatacommunities.org/doc/district-council/wyre,30/03/2022,People and Places,Planning and Development Servs,132C,Smiths Equipment Hire,31/03/2022,Smiths Equipment Hire,,PE140674,365.00,0.00,"17/01/22 to 24/01/22 access platform, delivery and collection","17/01/22 To 24/01/22 Access Platform, Delivery And Collection",CCTV Running Costs
Wyre Council,http://opendatacommunities.org/doc/district-council/wyre,30/03/2022,Resources,Support Services,135B,Konica Minolta Business Solutions UK LTD,28/03/2022,Konica Minolta Business Solutions Uk Ltd,,RS140416,34.65,0.00,bizhub,Bizhub,Central Printer/Copier Expenses
Wyre Council,http://opendatacommunities.org/doc/district-council/wyre,30/03/2022,People and Places,Street Lighting,133C,Garstang Christmas Lights Appeal,03/03/2022,Garstang Christmas Lights Appeal,,PE139766,3200.00,0.00,Grant for Garstang Festive Lights  2021/22,Grant For Garstang Festive Lights  2021/22,Christmas Lights
Wyre Council,http://opendatacommunities.org/doc/district-council/wyre,30/03/2022,People and Places,Planning and Development Servs,132C,Key Engineering & Hygiene Supplies LTD,25/03/2022,Key Engineering & Hygiene Supplies Ltd,,PE140014,134.30,0.00,"ESPCBL150S 1 BLUE 2 PLY CENTREFEED ROLLS 150M X 175MM 417 SHEETS 13.43 EACH 13.43  Please deliver to Wyre Council, Copse Road, Fleetwood, Lancashire, FY7 6RP","Espcbl150S 1 Blue 2 Ply Centrefeed Rolls 150M X 175Mm 417 Sheets 13.43 Each 13.43  Please Deliver To Wyre Council, Copse Road, Fleetwood, Lancashire, Fy7 6Rp",Cleaning Materials
Wyre Council,http://opendatacommunities.org/doc/district-council/wyre,30/03/2022,People and Places,Cultural and Related Services,132A,Lyreco UK LTD,31/03/2022,Lyreco Uk Ltd,,PE135956,8.16,0.00,THICKENED BLEACH 750 ML,Thickened Bleach 750 Ml,Cleaning Materials
Wyre Council,http://opendatacommunities.org/doc/district-council/wyre,30/03/2022,People and Places,Cultural and Related Services,132A,Lyreco UK LTD,31/03/2022,Lyreco Uk Ltd,,PE135956,6.52,0.00,HYGIEMIX RED KENTUCKY MOP HEAD 340G,Hygiemix Red Kentucky Mop Head 340G,Cleaning Materials
Wyre Council,http://opendatacommunities.org/doc/district-council/wyre,30/03/2022,People and Places,Cultural and Related Services,132A,Lyreco UK LTD,31/03/2022,Lyreco Uk Ltd,,PE135956,6.52,0.00,HYGIEMIX BLUE KENTUCKY MOP HEAD 340G,Hygiemix Blue Kentucky Mop Head 340G,Cleaning Materials
Wyre Council,http://opendatacommunities.org/doc/district-council/wyre,30/03/2022,People and Places,Cultural and Related Services,132A,Lyreco UK LTD,31/03/2022,Lyreco Uk Ltd,,PE135956,6.52,0.00,HYGIEMIX GREEN KENTUCKY MOP HEAD 340G,Hygiemix Green Kentucky Mop Head 340G,Cleaning Materials
Wyre Council,http://opendatacommunities.org/doc/district-council/wyre,30/03/2022,People and Places,Cultural and Related Services,132A,Lyreco UK LTD,31/03/2022,Lyreco Uk Ltd,,PE135956,18.90,0.00,PK12 LYRECO TOILET PAPER MINI JUMBO 2PLY,Pk12 Lyreco Toilet Paper Mini Jumbo 2Ply,Cleaning Materials
Wyre Council,http://opendatacommunities.org/doc/district-council/wyre,30/03/2022,People and Places,Planning and Development Servs,132C,Lyreco UK LTD,03/03/2022,Lyreco Uk Ltd,,PE137068,24.99,0.00,1 x medium first aid kit,1 X Medium First Aid Kit,Cleaning Materials
Wyre Council,http://opendatacommunities.org/doc/district-council/wyre,30/03/2022,People and Places,Planning and Development Servs,132C,Lyreco UK LTD,03/03/2022,Lyreco Uk Ltd,,PE137068,32.99,0.00,1 x BSI Large First Aid Kit refill @ 32.99 each,1 X Bsi Large First Aid Kit Refill @ 32.99 Each,Cleaning Materials
Wyre Council,http://opendatacommunities.org/doc/district-council/wyre,30/03/2022,Resources,Support Services,135B,AVC WISE LTD,31/03/2022,Avc Wise Ltd,,RS140682,558.61,0.00,INVOICE NUMBER: 102537,Invoice Number: 102537,Commission Fees Etc.
Wyre Council,http://opendatacommunities.org/doc/district-council/wyre,30/03/2022,People and Places,Environmental Services,132B,Key Engineering & Hygiene Supplies LTD,25/03/2022,Key Engineering & Hygiene Supplies Ltd,,PE140014,151.20,0.00,"SUPPLY AND DELIVER AS PER QUOTATION 12427 PLUS AN ITEM ADDED  BWCSYS 30 BSEEN EN ISO 20471 VEST S/YELLOW SML, WITH WYRE AND VOLUNTEER LOGO AS DISCUSSED 1.54 EACH 46.20 601CHSM 1 UC601 CHARCOAL SML PREMIUM FULL ZIP MICRO FLEECE JACKET 12.66 EACH 12.66 601C","Supply And Deliver As Per Quotation 12427 Plus An Item Added  Bwcsys 30 Bseen En Iso 20471 Vest S/Yellow Sml, With Wyre And Volunteer Logo As Discussed 1.54 Each 46.20 601Chsm 1 Uc601 Charcoal Sml Premium Full Zip Micro Fleece Jacket 12.66 Each 12.66 601C",Community Development Initiatives
Wyre Council,http://opendatacommunities.org/doc/district-council/wyre,30/03/2022,Resources,Environmental Services,132B,Preston City Council,31/03/2022,Preston City Council,,RS139991,104.04,0.00,Domestic abuse bus stop posters,Domestic Abuse Bus Stop Posters,Community Development Initiatives
Wyre Council,http://opendatacommunities.org/doc/district-council/wyre,30/03/2022,Resources,Support Services,135B,Insight Direct (UK) Limited,09/03/2022,Insight Direct (Uk) Limited,,RS139932,2175.84,0.00,Samsung F22T450FQR - T45F Series - LED monitor 22``.Mfr Part No.: LF22T450FQRXXUInsight # LF22T450FQRXXU,Samsung F22T450Fqr - T45F Series - Led Monitor 22``.Mfr Part No.: Lf22T450Fqrxxuinsight # Lf22T450Fqrxxu,Comp Hardware Purchases
Wyre Council,http://opendatacommunities.org/doc/district-council/wyre,30/03/2022,People and Places,Support Services,135B,Ebuyer (UK) Ltd,03/03/2022,Ebuyer (Uk) Ltd,,PE139786,1599.00,0.00,x1 1419213 Yealink A30 Video Bar and CTP18 Touch panel,X1 1419213 Yealink A30 Video Bar And Ctp18 Touch Panel,Comp Hardware Purchases
Wyre Council,http://opendatacommunities.org/doc/district-council/wyre,30/03/2022,People and Places,Support Services,135B,Ebuyer (UK) Ltd,03/03/2022,Ebuyer (Uk) Ltd,,PE139786,79.00,0.00,x1 Yealink A30 TV mount Vesa Mount for Yealink A30,X1 Yealink A30 Tv Mount Vesa Mount For Yealink A30,Comp Hardware Purchases
Wyre Council,http://opendatacommunities.org/doc/district-council/wyre,30/03/2022,Resources,Support Services,135B,Ebuyer (UK) Ltd,09/03/2022,Ebuyer (Uk) Ltd,,RS139928,299.00,0.00,x1 1143922 PMVmounts TROLLEY,X1 1143922 Pmvmounts Trolley,Comp Hardware Purchases
Wyre Council,http://opendatacommunities.org/doc/district-council/wyre,30/03/2022,Resources,Support Services,135B,Ebuyer (UK) Ltd,09/03/2022,Ebuyer (Uk) Ltd,,RS139928,975.00,0.00,x1 1419211 55&quot; Black Large Format Display 4k Uhd 500 C-d/m224/7 Operation 2x Hdmi,X1 1419211 55&Quot; Black Large Format Display 4K Uhd 500 C-D/M224/7 Operation 2X Hdmi,Comp Hardware Purchases
Wyre Council,http://opendatacommunities.org/doc/district-council/wyre,30/03/2022,Resources,Support Services,135B,Ebuyer (UK) Ltd,09/03/2022,Ebuyer (Uk) Ltd,,RS139928,20.00,0.00,Shipping,Shipping,Comp Hardware Purchases
Wyre Council,http://opendatacommunities.org/doc/district-council/wyre,30/03/2022,Resources,Support Services,135B,CCS MEDIA LTD,07/03/2022,Ccs Media Ltd,,RS139834,2929.80,0.00,UK703E HP 3 year Next Business Day Response Onsite Notebook HardwareSupportTo cover this order and previous 30x HP 450 laptops,Uk703E Hp 3 Year Next Business Day Response Onsite Notebook Hardwaresupportto Cover This Order And Previous 30X Hp 450 Laptops,Comp Hardware Purchases
Wyre Council,http://opendatacommunities.org/doc/district-council/wyre,30/03/2022,Resources,Support Services,135B,CCS MEDIA LTD,03/03/2022,Ccs Media Ltd,,RS139792,51.30,0.00,SKU: USB3C-921-2M  Description: CDL 2MTR USB 3.1 TYPE C M A M USB 3.0 CABLE 5GB. USB to USB C 3.0 2m cables.,Sku: Usb3C-921-2M  Description: Cdl 2Mtr Usb 3.1 Type C M A M Usb 3.0 Cable 5Gb. Usb To Usb C 3.0 2M Cables.,Comp Hardware Purchases
Wyre Council,http://opendatacommunities.org/doc/district-council/wyre,30/03/2022,Resources,Support Services,135B,CCS MEDIA LTD,03/03/2022,Ccs Media Ltd,,RS139792,31.20,0.00,SKU: CDLDV-302.5  Description: CDL 2.5MTR BLACK HDMI M DVID CABLE GOLD,Sku: Cdldv-302.5  Description: Cdl 2.5Mtr Black Hdmi M Dvid Cable Gold,Comp Hardware Purchases
Wyre Council,http://opendatacommunities.org/doc/district-council/wyre,30/03/2022,Resources,Support Services,135B,CCS MEDIA LTD,03/03/2022,Ccs Media Ltd,,RS139792,57.15,0.00,SKU: HDHDPORT-005-2M  Description: CDL 2MTR DISPLAY PORT M HDMI M BLACK BQ 80,Sku: Hdhdport-005-2M  Description: Cdl 2Mtr Display Port M Hdmi M Black Bq 80,Comp Hardware Purchases
Wyre Council,http://opendatacommunities.org/doc/district-council/wyre,30/03/2022,Resources,Support Services,135B,CCS MEDIA LTD,03/03/2022,Ccs Media Ltd,,RS139792,142.20,0.00,SKU: NLDP-HDMI  Description: CDL NEWLINK 15CM DISPLAY PORT V1.2 HDMI ACTIVE ADAP 4K BLACK,Sku: Nldp-Hdmi  Description: Cdl Newlink 15Cm Display Port V1.2 Hdmi Active Adap 4K Black,Comp Hardware Purchases
Wyre Council,http://opendatacommunities.org/doc/district-council/wyre,30/03/2022,Resources,Support Services,135B,CCS MEDIA LTD,03/03/2022,Ccs Media Ltd,,RS139792,78.90,0.00,SKU: HDHDPORT-VGACAB  Description: CDL 15CM DISPLAY PORT M HD15 VGA F BLACK ADAPTOR BQ 200,Sku: Hdhdport-Vgacab  Description: Cdl 15Cm Display Port M Hd15 Vga F Black Adaptor Bq 200,Comp Hardware Purchases
Wyre Council,http://opendatacommunities.org/doc/district-council/wyre,30/03/2022,Resources,Support Services,135B,CCS MEDIA LTD,07/03/2022,Ccs Media Ltd,,RS139838,333.44,0.00,62CAUAT1WL Lenovo ThinkVision M15 39.6 cm (15.6``) 1920 x 1080 pixels Full HDLED Black,62Cauat1Wl Lenovo Thinkvision M15 39.6 Cm (15.6``) 1920 X 1080 Pixels Full Hdled Black,Comp Hardware Purchases
Wyre Council,http://opendatacommunities.org/doc/district-council/wyre,30/03/2022,Resources,Support Services,135B,CCS MEDIA LTD,07/03/2022,Ccs Media Ltd,,RS139837,18000.00,0.00,2X7U1EA#ABU HP ProBook 450 G8 Notebook 39.6 cm (15.6``) Full HD 11th gen IntelCore i5 8 GB DDR4-SDRAM 256 GB SSD Wi-Fi 6 (802.11ax) Windows10 Pro Silver (United Kingdom),2X7U1Ea#Abu Hp Probook 450 G8 Notebook 39.6 Cm (15.6``) Full Hd 11Th Gen Intelcore I5 8 Gb Ddr4-Sdram 256 Gb Ssd Wi-Fi 6 (802.11Ax) Windows10 Pro Silver (United Kingdom),Comp Hardware Purchases
Wyre Council,http://opendatacommunities.org/doc/district-council/wyre,30/03/2022,Resources,Support Services,135B,CCS MEDIA LTD,07/03/2022,Ccs Media Ltd,,RS139839,267.30,0.00,TAR300 Targus TAR300 notebook case 39.6 cm (15.6``) Briefcase Black,Tar300 Targus Tar300 Notebook Case 39.6 Cm (15.6``) Briefcase Black,Comp Hardware Purchases
Wyre Council,http://opendatacommunities.org/doc/district-council/wyre,30/03/2022,Resources,Support Services,135B,CCS MEDIA LTD,03/03/2022,Ccs Media Ltd,,RS139754,305.40,0.00,SKU: 960-001063Description: Logitech HD C270 webcam 3 MP 1280 x 720 pixels USB 2.0 Black,Sku: 960-001063Description: Logitech Hd C270 Webcam 3 Mp 1280 X 720 Pixels Usb 2.0 Black,Comp Hardware Purchases
Wyre Council,http://opendatacommunities.org/doc/district-council/wyre,30/03/2022,Resources,Support Services,135B,Amazon Business,08/03/2022,Amazon Business,,RS139858,24.96,0.00,Microsoft Ergonomic Mouse - Black,Microsoft Ergonomic Mouse - Black,Comp Hardware Purchases
Wyre Council,http://opendatacommunities.org/doc/district-council/wyre,30/03/2022,Resources,Support Services,135B,Amazon Business,23/03/2022,Amazon Business,,RS140352,128.49,0.00,Samsung Galaxy A40 4G Smart Phone 64GB Unlocked Sim-Free - Black A (Renewed),Samsung Galaxy A40 4G Smart Phone 64Gb Unlocked Sim-Free - Black A (Renewed),Comp Hardware Purchases
Wyre Council,http://opendatacommunities.org/doc/district-council/wyre,30/03/2022,Resources,Support Services,135B,Amazon Business,23/03/2022,Amazon Business,,RS140361,213.09,0.00,"Samsung Galaxy XCover 5, black, SIM free.","Samsung Galaxy Xcover 5, Black, Sim Free.",Comp Hardware Purchases
Wyre Council,http://opendatacommunities.org/doc/district-council/wyre,30/03/2022,Resources,Support Services,135B,Amazon Business,23/03/2022,Amazon Business,,RS140353,5.42,0.00,2m Mini DisplayPort to DisplayPort 1.2 cable.,2M Mini Displayport To Displayport 1.2 Cable.,Comp Hardware Purchases
Wyre Council,http://opendatacommunities.org/doc/district-council/wyre,30/03/2022,Resources,Support Services,135B,Amazon Business,23/03/2022,Amazon Business,,RS140362,5.42,0.00,2m Mini DisplayPort to DisplayPort 1.2 cable.,2M Mini Displayport To Displayport 1.2 Cable.,Comp Hardware Purchases
Wyre Council,http://opendatacommunities.org/doc/district-council/wyre,30/03/2022,Resources,Support Services,135B,Amazon Business,23/03/2022,Amazon Business,,RS140365,18.32,0.00,2m USB-A to lightning cable - 5 pack.,2M Usb-A To Lightning Cable - 5 Pack.,Comp Hardware Purchases
Wyre Council,http://opendatacommunities.org/doc/district-council/wyre,30/03/2022,Resources,Support Services,135B,Amazon Business,11/03/2022,Amazon Business,,RS139985,28.32,0.00,"iBlockCube 6 USB Wall Plug Adapter, Power Strips Extension Lead Universal Hole 2M, 3 Way Cable Surge Protector, Fuse & Shutter 3 Gang Extension Cable 6.5FT Cord UK Plug.","Iblockcube 6 Usb Wall Plug Adapter, Power Strips Extension Lead Universal Hole 2M, 3 Way Cable Surge Protector, Fuse & Shutter 3 Gang Extension Cable 6.5Ft Cord Uk Plug.",Comp Hardware Purchases
Wyre Council,http://opendatacommunities.org/doc/district-council/wyre,30/03/2022,Resources,Support Services,135B,Amazon Business,24/03/2022,Amazon Business,,RS140473,5.41,0.00,"RJ45 Boots By Keple | Plastic Network Wire LAN Strain Connector Boot Ends Caps | RJ45 Connector Ethernet Cover for Cat6 Cat6e Cat5 Cat5e Cable | RJ 45 Cable Plug Protectors | Black, 20PCSRJ45 Boots By Keple | Plastic Network Wire LAN Strain Connector Bo","Rj45 Boots By Keple | Plastic Network Wire Lan Strain Connector Boot Ends Caps | Rj45 Connector Ethernet Cover For Cat6 Cat6E Cat5 Cat5E Cable | Rj 45 Cable Plug Protectors | Black, 20Pcsrj45 Boots By Keple | Plastic Network Wire Lan Strain Connector Bo",Comp Hardware Purchases
Wyre Council,http://opendatacommunities.org/doc/district-council/wyre,30/03/2022,Resources,Support Services,135B,Amazon Business,21/03/2022,Amazon Business,,RS140316,151.30,0.00,"Crucial CT1000X8SSD9 X8 1 TB Portable SSD � Up to 1050 MB/s � USB 3.2 � External Solid State Drive, USB-C, USB-A , Black.","Crucial Ct1000X8Ssd9 X8 1 Tb Portable Ssd � Up To 1050 Mb/S � Usb 3.2 � External Solid State Drive, Usb-C, Usb-A , Black.",Comp Hardware Purchases
Wyre Council,http://opendatacommunities.org/doc/district-council/wyre,30/03/2022,Resources,Support Services,135B,Amazon Business,22/03/2022,Amazon Business,,RS140261,7.49,0.00,20 Pack RJ45 Connector Cat6 Cat5e Cat5 Pass Through Shielded Ends 8P8C Ethernet Cable Crimp Connector 3u Modular Plug20 Pack RJ45 Connector Cat6 Cat5e Cat5 Pass Through Shielded Ends 8P8C Ethernet Cable Crimp Connector 3u Modular Plug.,20 Pack Rj45 Connector Cat6 Cat5E Cat5 Pass Through Shielded Ends 8P8C Ethernet Cable Crimp Connector 3U Modular Plug20 Pack Rj45 Connector Cat6 Cat5E Cat5 Pass Through Shielded Ends 8P8C Ethernet Cable Crimp Connector 3U Modular Plug.,Comp Hardware Purchases
Wyre Council,http://opendatacommunities.org/doc/district-council/wyre,30/03/2022,Resources,Support Services,135B,Amazon Business,22/03/2022,Amazon Business,,RS140247,21.68,0.00,2m Mini DisplayPort to DisplayPort 1.2 cable.,2M Mini Displayport To Displayport 1.2 Cable.,Comp Hardware Purchases
Wyre Council,http://opendatacommunities.org/doc/district-council/wyre,30/03/2022,Resources,Support Services,135B,Amazon Business,22/03/2022,Amazon Business,,RS140336,199.99,0.00,"Samsung Galaxy A32 5G - Smartphone 64GB, 4GB RAM, Dual Sim, Black. SIM free.","Samsung Galaxy A32 5G - Smartphone 64Gb, 4Gb Ram, Dual Sim, Black. Sim Free.",Comp Hardware Purchases
Wyre Council,http://opendatacommunities.org/doc/district-council/wyre,30/03/2022,Resources,Support Services,135B,Amazon Business,28/03/2022,Amazon Business,,RS140551,9.98,0.00,"Samsung Galaxy A10 Case with Magnetic Ring Holder, Military Grade Protective Silicone TPU Shockproof Hard Armour Phone Cover for Samsung Galaxy A10 (Black)","Samsung Galaxy A10 Case With Magnetic Ring Holder, Military Grade Protective Silicone Tpu Shockproof Hard Armour Phone Cover For Samsung Galaxy A10 (Black)",Computer Stationery and Consumables
Wyre Council,http://opendatacommunities.org/doc/district-council/wyre,30/03/2022,People and Places,Cultural and Related Services,132A,Irene Longhurst,17/03/2022,Irene Longhurst,,PE140189,109.57,0.00,honey equipment for Wyreside apiary,Honey Equipment For Wyreside Apiary,Conservation
Wyre Council,http://opendatacommunities.org/doc/district-council/wyre,30/03/2022,People and Places,Planning and Development Servs,132C,Kings Chambers,16/03/2022,Kings Chambers,,PE140098,-1575.00,0.00,Local plan review for the period 2021/2022,Local Plan Review For The Period 2021/2022,Consultants Fees
Wyre Council,http://opendatacommunities.org/doc/district-council/wyre,30/03/2022,People and Places,Planning and Development Servs,132C,Kings Chambers,16/03/2022,Kings Chambers,,PE140098,1575.00,0.00,Local plan review for the period 2021/2022,Local Plan Review For The Period 2021/2022,Consultants Fees
Wyre Council,http://opendatacommunities.org/doc/district-council/wyre,30/03/2022,People and Places,Planning and Development Servs,132C,Kings Chambers,21/03/2022,Kings Chambers,,PE140253,4937.50,0.00,Additional costs,Additional Costs,Consultants Fees
Wyre Council,http://opendatacommunities.org/doc/district-council/wyre,30/03/2022,People and Places,Planning and Development Servs,132C,Kings Chambers,21/03/2022,Kings Chambers,,PE140253,1462.50,0.00,Enforcement Inquiry for 3 days (Lower Wild Boar) - advise provided by John Hunter,Enforcement Inquiry For 3 Days (Lower Wild Boar) - Advise Provided By John Hunter,Consultants Fees
Wyre Council,http://opendatacommunities.org/doc/district-council/wyre,30/03/2022,Resources,Support Services,135B,Civica UK LTD,30/03/2022,Civica Uk Ltd,,RS140662,858.00,0.00,Consultancy charge 1/2 day - copy live to test,Consultancy Charge 1/2 Day - Copy Live To Test,Consultants Fees
Wyre Council,http://opendatacommunities.org/doc/district-council/wyre,30/03/2022,People and Places,Support Services,135B,Heckford Printers LTD,28/03/2022,Heckford Printers Ltd,,PE139301,3500.00,0.00,"Promotional Leisure centres video covering Garstang Leisure centre and Pool, Thornton, Poulton and Fleetwood Leisure centres - 2,050 plus VAT - amended to 3500 +vat","Promotional Leisure Centres Video Covering Garstang Leisure Centre And Pool, Thornton, Poulton And Fleetwood Leisure Centres - 2,050 Plus Vat - Amended To 3500 +Vat",Consultants Fees
Wyre Council,http://opendatacommunities.org/doc/district-council/wyre,30/03/2022,People and Places,Environmental Services,132B,Blackburn With Darwen Borough Council,29/03/2022,Blackburn With Darwen Borough Council,,PE140494,341.36,0.00,To provide Contaminated land & Air Quality Consultancy,To Provide Contaminated Land & Air Quality Consultancy,Consultants Fees
Wyre Council,http://opendatacommunities.org/doc/district-council/wyre,30/03/2022,People and Places,Environmental Services,132B,Blackburn With Darwen Borough Council,25/03/2022,Blackburn With Darwen Borough Council,,PE140496,196.84,0.00,To provide Contaminated land & Air Quality Consultancy,To Provide Contaminated Land & Air Quality Consultancy,Consultants Fees
Wyre Council,http://opendatacommunities.org/doc/district-council/wyre,30/03/2022,People and Places,Environmental Services,132B,Blackburn With Darwen Borough Council,21/03/2022,Blackburn With Darwen Borough Council,,PE140263,555.64,0.00,To provide Contaminated land & Air Quality Consultancy,To Provide Contaminated Land & Air Quality Consultancy,Consultants Fees
Wyre Council,http://opendatacommunities.org/doc/district-council/wyre,30/03/2022,People and Places,Environmental Services,132B,Blackburn With Darwen Borough Council,21/03/2022,Blackburn With Darwen Borough Council,,PE140325,533.90,0.00,To provide Contaminated land & Air Quality Consultancy,To Provide Contaminated Land & Air Quality Consultancy,Consultants Fees
Wyre Council,http://opendatacommunities.org/doc/district-council/wyre,30/03/2022,People and Places,Environmental Services,132B,Blackburn With Darwen Borough Council,21/03/2022,Blackburn With Darwen Borough Council,,PE140324,914.00,0.00,To provide Contaminated land & Air Quality Consultancy,To Provide Contaminated Land & Air Quality Consultancy,Consultants Fees
Wyre Council,http://opendatacommunities.org/doc/district-council/wyre,30/03/2022,People and Places,Environmental Services,132B,Blackburn With Darwen Borough Council,21/03/2022,Blackburn With Darwen Borough Council,,PE140323,83.25,0.00,To provide Contaminated land & Air Quality Consultancy,To Provide Contaminated Land & Air Quality Consultancy,Consultants Fees
Wyre Council,http://opendatacommunities.org/doc/district-council/wyre,30/03/2022,People and Places,Planning and Development Servs,132C,Capita (Real Estate & Infrastructure) Ltd,31/03/2022,Capita (Real Estate & Infrastructure) Ltd,,PE140677,520.00,0.00,Wyre Borough Council Regulations Calculations for period 1st December 2021 to 28th February 2022 Invoice for professional services H Khan 13 hours @ 40p/h,Wyre Borough Council Regulations Calculations For Period 1St December 2021 To 28Th February 2022 Invoice For Professional Services H Khan 13 Hours @ 40P/H,Consultants Fees
Wyre Council,http://opendatacommunities.org/doc/district-council/wyre,30/03/2022,People and Places,Environmental Services,132B,Osborne Richardson,21/03/2022,Osborne Richardson,,PE140276,816.00,0.00,Additional works authorised by Neil Greenwood,Additional Works Authorised By Neil Greenwood,Consultants Fees
Wyre Council,http://opendatacommunities.org/doc/district-council/wyre,30/03/2022,People and Places,Environmental Services,132B,Osborne Richardson,14/03/2022,Osborne Richardson,,PE139915,528.00,0.00,Additional works agreed by Neil Greenwood,Additional Works Agreed By Neil Greenwood,Consultants Fees
Wyre Council,http://opendatacommunities.org/doc/district-council/wyre,30/03/2022,People and Places,Environmental Services,132B,Osborne Richardson,15/03/2022,Osborne Richardson,,PE140024,636.00,0.00,Additional works authorised by Neil Greenwood,Additional Works Authorised By Neil Greenwood,Consultants Fees
Wyre Council,http://opendatacommunities.org/doc/district-council/wyre,30/03/2022,People and Places,Environmental Services,132B,Osborne Richardson,15/03/2022,Osborne Richardson,,PE139832,1080.00,0.00,Additional works authorised by Neil Greenwood,Additional Works Authorised By Neil Greenwood,Consultants Fees
Wyre Council,http://opendatacommunities.org/doc/district-council/wyre,30/03/2022,People and Places,Planning and Development Servs,132C,Tameside Metropolitan Borough Council,29/03/2022,Tameside Metropolitan Borough Council,,PE140624,7896.00,0.00,Ecology advise for the period 2021/2022 on planning applications,Ecology Advise For The Period 2021/2022 On Planning Applications,Consultants Fees
Wyre Council,http://opendatacommunities.org/doc/district-council/wyre,30/03/2022,People and Places,Planning and Development Servs,132C,Vivid Resourcing Ltd,03/03/2022,Vivid Resourcing Ltd,,PE139725,-832.50,0.00,Enforcement officer cover provided by Vivid resourcing,Enforcement Officer Cover Provided By Vivid Resourcing,Consultants Fees
Wyre Council,http://opendatacommunities.org/doc/district-council/wyre,30/03/2022,People and Places,Planning and Development Servs,132C,Vivid Resourcing Ltd,18/03/2022,Vivid Resourcing Ltd,,PE140178,1665.00,0.00,Additional costs up to the 14th April 2022,Additional Costs Up To The 14Th April 2022,Consultants Fees
Wyre Council,http://opendatacommunities.org/doc/district-council/wyre,30/03/2022,People and Places,Planning and Development Servs,132C,Vivid Resourcing Ltd,03/03/2022,Vivid Resourcing Ltd,,PE139725,832.50,0.00,Enforcement officer cover provided by Vivid resourcing,Enforcement Officer Cover Provided By Vivid Resourcing,Consultants Fees
Wyre Council,http://opendatacommunities.org/doc/district-council/wyre,30/03/2022,People and Places,Planning and Development Servs,132C,Vivid Resourcing Ltd,03/03/2022,Vivid Resourcing Ltd,,PE139394,1575.00,0.00,Enforcement officer cover provided by Vivid resourcing,Enforcement Officer Cover Provided By Vivid Resourcing,Consultants Fees
Wyre Council,http://opendatacommunities.org/doc/district-council/wyre,30/03/2022,People and Places,Planning and Development Servs,132C,Vivid Resourcing Ltd,03/03/2022,Vivid Resourcing Ltd,,PE139330,1665.00,0.00,Additional Costs - enforcement cover,Additional Costs - Enforcement Cover,Consultants Fees
Wyre Council,http://opendatacommunities.org/doc/district-council/wyre,30/03/2022,People and Places,Planning and Development Servs,132C,Vivid Resourcing Ltd,29/03/2022,Vivid Resourcing Ltd,,PE139926,1665.00,0.00,Additional Costs - enforcement cover,Additional Costs - Enforcement Cover,Consultants Fees
Wyre Council,http://opendatacommunities.org/doc/district-council/wyre,30/03/2022,People and Places,Planning and Development Servs,132C,Vivid Resourcing Ltd,30/03/2022,Vivid Resourcing Ltd,,PE139801,832.50,0.00,Additional Costs - enforcement cover,Additional Costs - Enforcement Cover,Consultants Fees
Wyre Council,http://opendatacommunities.org/doc/district-council/wyre,30/03/2022,People and Places,Planning and Development Servs,132C,THIS GREAT ADVENTURE LTD,18/03/2022,This Great Adventure Ltd,,PE140242,7000.00,0.00,Project: Relating to The Supply of a Digital and Engagement Consultant To assist in the Establishment of the Finding Fleetwood Heritage Trails,Project: Relating To The Supply Of A Digital And Engagement Consultant To Assist In The Establishment Of The Finding Fleetwood Heritage Trails,Consultants Fees
Wyre Council,http://opendatacommunities.org/doc/district-council/wyre,30/03/2022,People and Places,Planning and Development Servs,132C,Singleton Clamp & Partners Ltd,03/03/2022,Singleton Clamp & Partners Ltd,,PE139820,4000.00,0.00,Planning appeal advice for 19/00615/OULMAJ - Blackpool Road Poulton,Planning Appeal Advice For 19/00615/Oulmaj - Blackpool Road Poulton,Consultants Fees
Wyre Council,http://opendatacommunities.org/doc/district-council/wyre,30/03/2022,People and Places,"Cultural, Environ and Planning",137B,Halcrow Group LTD,28/03/2022,Halcrow Group Ltd,,PE140553,2643.73,0.00,"FAO Marcus PhillipsJacobsBurderop ParkSwindonSN4 OQDProvide an Environmental Impact Assessment for the Wyre Beach Management Scheme as per your proposal dated 2nd April 2020.Cost 118,833.10Exp code 8273/04022","Fao Marcus Phillipsjacobsburderop Parkswindonsn4 Oqdprovide An Environmental Impact Assessment For The Wyre Beach Management Scheme As Per Your Proposal Dated 2Nd April 2020.Cost 118,833.10Exp Code 8273/04022",Consultants Fees (New CCR)
Wyre Council,http://opendatacommunities.org/doc/district-council/wyre,30/03/2022,People and Places,"Cultural, Environ and Planning",137B,Halcrow Group LTD,03/03/2022,Halcrow Group Ltd,,PE139822,5971.62,0.00,Additional works as authorised by Carl Green,Additional Works As Authorised By Carl Green,Consultants Fees (New CCR)
Wyre Council,http://opendatacommunities.org/doc/district-council/wyre,30/03/2022,People and Places,"Cultural, Environ and Planning",137B,Halcrow Group LTD,03/03/2022,Halcrow Group Ltd,,PE139762,14931.56,0.00,Additional works as authorised by Carl Green,Additional Works As Authorised By Carl Green,Consultants Fees (New CCR)
Wyre Council,http://opendatacommunities.org/doc/district-council/wyre,30/03/2022,People and Places,"Cultural, Environ and Planning",137B,The Lancashire Wildlife Trust Ltd,22/03/2022,The Lancashire Wildlife Trust Ltd,,PE140341,7500.00,0.00,"``For initial engagement activities, mobilisation, start-up costs and for the recruitment and appointment of a 0.5 FTE Engagement Officer``","``For Initial Engagement Activities, Mobilisation, Start-Up Costs And For The Recruitment And Appointment Of A 0.5 Fte Engagement Officer``",Consultants Fees (New CCR)
Wyre Council,http://opendatacommunities.org/doc/district-council/wyre,30/03/2022,People and Places,"Cultural, Environ and Planning",137B,Marine Management Organisation,31/03/2022,Marine Management Organisation,,PE140689,91.50,0.00,"Ref: ENQ/2022/00028
ECO-COBS scheme   
MMO Pre Application Advice
Value: 610 plus VAT","Ref: Enq/2022/00028
Eco-Cobs Scheme   
Mmo Pre Application Advice
Value: 610 Plus Vat",Consultants Fees (New CCR)
Wyre Council,http://opendatacommunities.org/doc/district-council/wyre,30/03/2022,People and Places,"Cultural, Environ and Planning",137B,Marine Management Organisation,24/03/2022,Marine Management Organisation,,PE140520,3263.50,0.00,"MMO Licence application fee, case reference Wyre Beach Management Scheme","Mmo Licence Application Fee, Case Reference Wyre Beach Management Scheme",Consultants Fees (New CCR)
Wyre Council,http://opendatacommunities.org/doc/district-council/wyre,30/03/2022,People and Places,"Cultural, Environ and Planning",137B,Relandscape LTD,31/03/2022,Relandscape Ltd,,PE140671,-1900.00,0.00,Landscape Design Services,Landscape Design Services,Consultants Fees (New CCR)
Wyre Council,http://opendatacommunities.org/doc/district-council/wyre,30/03/2022,People and Places,"Cultural, Environ and Planning",137B,DAN HAYWOOD,14/03/2022,Dan Haywood,,PE139996,1179.60,0.00,Professional services of an ornithologist to carry out a bird survey of Wyre`s coastal frontage for the Wyre Beach Management Scheme as detailed in email proposal dated 16/12/2020.43 days at 180/day plus travelEstimated 7740.00 plus travelTo,Professional Services Of An Ornithologist To Carry Out A Bird Survey Of Wyre`S Coastal Frontage For The Wyre Beach Management Scheme As Detailed In Email Proposal Dated 16/12/2020.43 Days At 180/Day Plus Travelestimated 7740.00 Plus Travelto,Consultants Fees (New CCR)
Wyre Council,http://opendatacommunities.org/doc/district-council/wyre,30/03/2022,People and Places,"Cultural, Environ and Planning",137B,Middlemarch-Environmental Ltd,14/03/2022,Middlemarch-Environmental Ltd,,PE139824,-1440.00,0.00," FAO Tom DockerManaging Director Carry out ecological survey works for to support the Environmental Impact Assessment for the Wyre Beach Management Scheme as per your proposal SB-MME-152562-03. Cost 53,085.00"," Fao Tom Dockermanaging Director Carry Out Ecological Survey Works For To Support The Environmental Impact Assessment For The Wyre Beach Management Scheme As Per Your Proposal Sb-Mme-152562-03. Cost 53,085.00",Consultants Fees (New CCR)
Wyre Council,http://opendatacommunities.org/doc/district-council/wyre,30/03/2022,People and Places,"Cultural, Environ and Planning",137B,Middlemarch-Environmental Ltd,14/03/2022,Middlemarch-Environmental Ltd,,PE139824,1440.00,0.00," FAO Tom DockerManaging Director Carry out ecological survey works for to support the Environmental Impact Assessment for the Wyre Beach Management Scheme as per your proposal SB-MME-152562-03. Cost 53,085.00"," Fao Tom Dockermanaging Director Carry Out Ecological Survey Works For To Support The Environmental Impact Assessment For The Wyre Beach Management Scheme As Per Your Proposal Sb-Mme-152562-03. Cost 53,085.00",Consultants Fees (New CCR)
Wyre Council,http://opendatacommunities.org/doc/district-council/wyre,30/03/2022,People and Places,"Cultural, Environ and Planning",137B,Middlemarch-Environmental Ltd,16/03/2022,Middlemarch-Environmental Ltd,,PE139763,1440.00,0.00," FAO Tom Docker Managing Director   Carry out ecological survey works for to support the Environmental Impact Assessment for the Wyre Beach Management Scheme as per your proposal SB-MME-152562-03.   Cost 53,085.00"," Fao Tom Docker Managing Director   Carry Out Ecological Survey Works For To Support The Environmental Impact Assessment For The Wyre Beach Management Scheme As Per Your Proposal Sb-Mme-152562-03.   Cost 53,085.00",Consultants Fees (New CCR)
Wyre Council,http://opendatacommunities.org/doc/district-council/wyre,30/03/2022,People and Places,"Cultural, Environ and Planning",137B,Middlemarch-Environmental Ltd,25/03/2022,Middlemarch-Environmental Ltd,,PE140055,1440.00,0.00," FAO Tom Docker Managing Director   Carry out ecological survey works for to support the Environmental Impact Assessment for the Wyre Beach Management Scheme as per your proposal SB-MME-152562-03.   Cost 53,085.00"," Fao Tom Docker Managing Director   Carry Out Ecological Survey Works For To Support The Environmental Impact Assessment For The Wyre Beach Management Scheme As Per Your Proposal Sb-Mme-152562-03.   Cost 53,085.00",Consultants Fees (New CCR)
Wyre Council,http://opendatacommunities.org/doc/district-council/wyre,30/03/2022,People and Places,"Cultural, Environ and Planning",137B,Visual Print and Design Ltd,30/03/2022,Visual Print And Design Ltd,,PE140255,315.00,0.00,Banners for HAZ - Fleetwood,Banners For Haz - Fleetwood,Consultants Fees (New CCR)
Wyre Council,http://opendatacommunities.org/doc/district-council/wyre,30/03/2022,People and Places,"Cultural, Environ and Planning",137B,Purcell Architecture Limited,24/03/2022,Purcell Architecture Limited,,PE140340,5867.52,0.00,Fleetwood Market Feasibility & Business Planning work as quoted for in your fee proposal E-mailed 30 March 2021,Fleetwood Market Feasibility & Business Planning Work As Quoted For In Your Fee Proposal E-Mailed 30 March 2021,Consultants Fees (New CCR)
Wyre Council,http://opendatacommunities.org/doc/district-council/wyre,30/03/2022,People and Places,"Cultural, Environ and Planning",137B,Purcell Architecture Limited,24/03/2022,Purcell Architecture Limited,,PE140340,6030.92,0.00,*Linked to PEO0022366* `Fleetwood Market Feasibility & Business Planning� work as quoted for in your fee proposal E-mailed 30 March 2021,*Linked To Peo0022366* `Fleetwood Market Feasibility & Business Planning� Work As Quoted For In Your Fee Proposal E-Mailed 30 March 2021,Consultants Fees (New CCR)
Wyre Council,http://opendatacommunities.org/doc/district-council/wyre,30/03/2022,People and Places,"Cultural, Environ and Planning",137B,Purcell Architecture Limited,03/03/2022,Purcell Architecture Limited,,PE139831,14456.25,0.00,"Services for at Fleetwood Market:-Measured survey to include internal services schematic 14,456.25-Condition survey 4,846.88-M&E Fees 7,973.44","Services For At Fleetwood Market:-Measured Survey To Include Internal Services Schematic 14,456.25-Condition Survey 4,846.88-M&E Fees 7,973.44",Consultants Fees (New CCR)
Wyre Council,http://opendatacommunities.org/doc/district-council/wyre,30/03/2022,People and Places,"Cultural, Environ and Planning",137B,Purcell Architecture Limited,08/03/2022,Purcell Architecture Limited,,PE139884,13381.25,0.00,Fleetwood Market Feasibility & Business Planning work as quoted for in your fee proposal E-mailed 30 March 2021,Fleetwood Market Feasibility & Business Planning Work As Quoted For In Your Fee Proposal E-Mailed 30 March 2021,Consultants Fees (New CCR)
Wyre Council,http://opendatacommunities.org/doc/district-council/wyre,30/03/2022,People and Places,"Cultural, Environ and Planning",137B,GARRY CARR BUILDING SERVICES LTD,09/03/2022,Garry Carr Building Services Ltd,,PE139883,440.00,0.00,Fleetwood Market HAZ project 22,Fleetwood Market Haz Project 22,Consultants Fees (New CCR)
Wyre Council,http://opendatacommunities.org/doc/district-council/wyre,30/03/2022,Resources,Central Services to the Public,131C,Blackpool Council,18/03/2022,Blackpool Council,,RS140118,5028.00,0.00,Covid Vaccine Van Charges Feb 2022,Covid Vaccine Van Charges Feb 2022,Contain Outbreak Management Fund
Wyre Council,http://opendatacommunities.org/doc/district-council/wyre,30/03/2022,Resources,Central Services to the Public,131C,Blackpool Council,18/03/2022,Blackpool Council,,RS140118,830.28,0.00,Covid Vaccine Van Charges Feb 2022 - additional vaccine guarantee charges,Covid Vaccine Van Charges Feb 2022 - Additional Vaccine Guarantee Charges,Contain Outbreak Management Fund
Wyre Council,http://opendatacommunities.org/doc/district-council/wyre,30/03/2022,People and Places,Central Services to the Public,131C,Smiths Equipment Hire,14/03/2022,Smiths Equipment Hire,,PE139999,208.00,0.00,Chemical toilets February 2022Covid Invoice no: 12-1017147 @ 208Invoice no: 12-1017148 @ 208,Chemical Toilets February 2022Covid Invoice No: 12-1017147 @ 208Invoice No: 12-1017148 @ 208,Contain Outbreak Management Fund
Wyre Council,http://opendatacommunities.org/doc/district-council/wyre,30/03/2022,People and Places,Central Services to the Public,131C,Smiths Equipment Hire,14/03/2022,Smiths Equipment Hire,,PE139997,208.00,0.00,Chemical toilets February 2022Covid Invoice no: 12-1017147 @ 208Invoice no: 12-1017148 @ 208,Chemical Toilets February 2022Covid Invoice No: 12-1017147 @ 208Invoice No: 12-1017148 @ 208,Contain Outbreak Management Fund
Wyre Council,http://opendatacommunities.org/doc/district-council/wyre,30/03/2022,Resources,Central Services to the Public,131C,Preston City Council,31/03/2022,Preston City Council,,RS140684,150.00,0.00,5k covid leaflets for the marshals,5K Covid Leaflets For The Marshals,Contain Outbreak Management Fund
Wyre Council,http://opendatacommunities.org/doc/district-council/wyre,30/03/2022,Resources,Central Services to the Public,131C,Preston City Council,31/03/2022,Preston City Council,,RS140683,150.00,0.00,6k vaccine leaflets,6K Vaccine Leaflets,Contain Outbreak Management Fund
Wyre Council,http://opendatacommunities.org/doc/district-council/wyre,30/03/2022,Resources,Central Services to the Public,131C,Preston City Council,31/03/2022,Preston City Council,,RS140683,125.00,0.00,5k vaccine van leaflets for distribution,5K Vaccine Van Leaflets For Distribution,Contain Outbreak Management Fund
Wyre Council,http://opendatacommunities.org/doc/district-council/wyre,30/03/2022,People and Places,Central Services to the Public,131C,Fylde Coast YMCA,28/03/2022,Fylde Coast Ymca,,PE140432,15531.90,0.00,Lateral Flow August Poulton Testing - YMCA Operations.,Lateral Flow August Poulton Testing - Ymca Operations.,Contain Outbreak Management Fund
Wyre Council,http://opendatacommunities.org/doc/district-council/wyre,30/03/2022,People and Places,Central Services to the Public,131C,Fylde Coast YMCA,28/03/2022,Fylde Coast Ymca,,PE140428,15531.90,0.00,Lateral flow July - Poulton Testing YMCA Operations.,Lateral Flow July - Poulton Testing Ymca Operations.,Contain Outbreak Management Fund
Wyre Council,http://opendatacommunities.org/doc/district-council/wyre,30/03/2022,People and Places,Central Services to the Public,131C,SHARD SURFACING LTD,29/03/2022,Shard Surfacing Ltd,,PE140270,720.00,0.00,St Michael`s village hall car park (non WBC) used for PCR Testing - Repair of potholes Thursday 10th February 2022 as per quotation Cost of 1200 plus vat,St Michael`S Village Hall Car Park (Non Wbc) Used For Pcr Testing - Repair Of Potholes Thursday 10Th February 2022 As Per Quotation Cost Of 1200 Plus Vat,Contain Outbreak Management Fund
Wyre Council,http://opendatacommunities.org/doc/district-council/wyre,30/03/2022,People and Places,Central Services to the Public,131C,SHARD SURFACING LTD,29/03/2022,Shard Surfacing Ltd,,PE140270,480.00,0.00,St Michael`s village hall car park (non WBC) used for PCR Testing - Repair of potholes Thursday 10th February 2022 as per quotation Cost of 1200 plus vat,St Michael`S Village Hall Car Park (Non Wbc) Used For Pcr Testing - Repair Of Potholes Thursday 10Th February 2022 As Per Quotation Cost Of 1200 Plus Vat,Contain Outbreak Management Fund
Wyre Council,http://opendatacommunities.org/doc/district-council/wyre,30/03/2022,Resources,"Cultural, Environ and Planning",137B,Orange PCS LTD,16/03/2022,Orange Pcs Ltd,,RS139771,743.16,0.00,Monthly Charges,Monthly Charges,Contract (New CCR)
Wyre Council,http://opendatacommunities.org/doc/district-council/wyre,30/03/2022,People and Places,Non Service Related Exp,137F,M D Security,16/03/2022,M D Security,,PE139924,6000.00,0.00,Supply and install new approved cctv system within Fleetwood market to cover internal and external areas,Supply And Install New Approved Cctv System Within Fleetwood Market To Cover Internal And External Areas,Contract (New CCR)
Wyre Council,http://opendatacommunities.org/doc/district-council/wyre,30/03/2022,People and Places,Non Service Related Exp,137F,M D Security,24/03/2022,M D Security,,PE140067,6400.00,0.00,Supply and install new approved cctv system within Fleetwood market to cover internal and external areas,Supply And Install New Approved Cctv System Within Fleetwood Market To Cover Internal And External Areas,Contract (New CCR)
Wyre Council,http://opendatacommunities.org/doc/district-council/wyre,30/03/2022,People and Places,Non Service Related Exp,137F,CONSERVATION SERVICES NORTH WEST LTD,03/03/2022,Conservation Services North West Ltd,,PE139825,5926.64,0.00,CONFIRMATION ORDERRebuilding of boundary wall to St Chads church grounds.All as per quote,Confirmation Orderrebuilding Of Boundary Wall To St Chads Church Grounds.All As Per Quote,Contract (New CCR)
Wyre Council,http://opendatacommunities.org/doc/district-council/wyre,30/03/2022,People and Places,"Cultural, Environ and Planning",137B,Purcell Architecture Limited,22/03/2022,Purcell Architecture Limited,,PE139984,83367.51,0.00,Design services for Fleetwood Market Hall External Repairs Project as per you fee proposal dated 21 January 2022 for RIBA services 2-4,Design Services For Fleetwood Market Hall External Repairs Project As Per You Fee Proposal Dated 21 January 2022 For Riba Services 2-4,Contract (New CCR)
Wyre Council,http://opendatacommunities.org/doc/district-council/wyre,30/03/2022,Resources,"Cultural, Environ and Planning",137B,VODAFONE LIMITED,16/03/2022,Vodafone Limited,,RS139775,24.00,0.00,Monthly Charges,Monthly Charges,Contract (New CCR)
Wyre Council,http://opendatacommunities.org/doc/district-council/wyre,30/03/2022,People and Places,"Cultural, Environ and Planning",137B,Balfour Beatty Civil Engineering Ltd,22/03/2022,Balfour Beatty Civil Engineering Ltd,,PE140008,11705.35,0.00,Wyre Beach Management Scheme Phase 1 - Preconstruction Works.FAO Chloe SumnerBalfour Beatty Civil Engineering LtdChaddock Lane WorsleyManchesterM28 1XY,Wyre Beach Management Scheme Phase 1 - Preconstruction Works.Fao Chloe Sumnerbalfour Beatty Civil Engineering Ltdchaddock Lane Worsleymanchesterm28 1Xy,Contract (New CCR)
Wyre Council,http://opendatacommunities.org/doc/district-council/wyre,30/03/2022,People and Places,"Cultural, Environ and Planning",137B,Balfour Beatty Civil Engineering Ltd,22/03/2022,Balfour Beatty Civil Engineering Ltd,,PE140009,7260.00,0.00,"FAO Chloe Sumner Balfour Beatty Civil Engineering Ltd Chaddock Lane  Worsley Manchester M28 1XY  Tel, 0161 638 0800 Chloe.Sumner@balfourbeatty.com   Wyre Beach Management Scheme Phase 2 - Preconstruction Works.  Cost 1,313,701.70","Fao Chloe Sumner Balfour Beatty Civil Engineering Ltd Chaddock Lane  Worsley Manchester M28 1Xy  Tel, 0161 638 0800 Chloe.Sumner@Balfourbeatty.Com   Wyre Beach Management Scheme Phase 2 - Preconstruction Works.  Cost 1,313,701.70",Contract (New CCR)
Wyre Council,http://opendatacommunities.org/doc/district-council/wyre,30/03/2022,People and Places,Support Services,135B,Sefton Council,17/03/2022,Sefton Council,,PE140127,755.00,0.00,Northern Coastal Sub-group Contribution 2021/22  Customer ID: 30196323  Invoice no: 1419356,Northern Coastal Sub-Group Contribution 2021/22  Customer Id: 30196323  Invoice No: 1419356,Corporate and Professional Subscriptions
Wyre Council,http://opendatacommunities.org/doc/district-council/wyre,30/03/2022,Resources,Cultural and Related Services,132A,VODAFONE LIMITED,16/03/2022,Vodafone Limited,,RS139775,27.10,0.00,Monthly Charges,Monthly Charges,Corporate and Professional Subscriptions
Wyre Council,http://opendatacommunities.org/doc/district-council/wyre,30/03/2022,People and Places,Housing General Fund,134A,Bolton at Home Ltd,29/03/2022,Bolton At Home Ltd,,PE140622,500.00,0.00,Contribution To New Housing Forum.,Contribution To New Housing Forum.,Corporate and Professional Subscriptions
Wyre Council,http://opendatacommunities.org/doc/district-council/wyre,30/03/2022,Resources,Support Services,135B,BLACKPOOL AND FYLDE COLLEGE,15/03/2022,Blackpool And Fylde College,,RS140075,210.00,0.00,3 day First Aid at Work Course - Mark Birley2nd March - 4th March,3 Day First Aid At Work Course - Mark Birley2Nd March - 4Th March,Corporate Training - Health and Safety
Wyre Council,http://opendatacommunities.org/doc/district-council/wyre,30/03/2022,Resources,Support Services,135B,BLACKPOOL AND FYLDE COLLEGE,03/03/2022,Blackpool And Fylde College,,RS139755,185.00,0.00,First Aid Refresher Course 16h and 17th February 20222 delegates,First Aid Refresher Course 16H And 17Th February 20222 Delegates,Corporate Training - Health and Safety
Wyre Council,http://opendatacommunities.org/doc/district-council/wyre,30/03/2022,Resources,Support Services,135B,BLACKPOOL AND FYLDE COLLEGE,03/03/2022,Blackpool And Fylde College,,RS139756,185.00,0.00,First Aid Refresher Course 16h and 17th February 20222 delegates,First Aid Refresher Course 16H And 17Th February 20222 Delegates,Corporate Training - Health and Safety
Wyre Council,http://opendatacommunities.org/doc/district-council/wyre,30/03/2022,Resources,Support Services,135B,BLACKPOOL AND FYLDE COLLEGE,17/03/2022,Blackpool And Fylde College,,RS139341,370.00,0.00,FAW Refresher course 19th January 2022 for 2 delegates,Faw Refresher Course 19Th January 2022 For 2 Delegates,Corporate Training - Health and Safety
Wyre Council,http://opendatacommunities.org/doc/district-council/wyre,30/03/2022,Resources,Support Services,135B,Myerscough College,03/03/2022,Myerscough College,,RS139780,560.00,0.00,Delivery of Train the Trainer course27th October at your premises 9.30 - 4.307 delegates,Delivery Of Train The Trainer Course27Th October At Your Premises 9.30 - 4.307 Delegates,Corporate Training - Health and Safety
Wyre Council,http://opendatacommunities.org/doc/district-council/wyre,30/03/2022,Resources,Support Services,135B,Bill Rogerson Safety Services LTD,29/03/2022,Bill Rogerson Safety Services Ltd,,RS140607,375.00,0.00,"To deliver 1 day Mobile Scaffold Course for  3 Delegates to include training on ladders, steps and hop ups 21 March 2022","To Deliver 1 Day Mobile Scaffold Course For  3 Delegates To Include Training On Ladders, Steps And Hop Ups 21 March 2022",Corporate Training - Health and Safety
Wyre Council,http://opendatacommunities.org/doc/district-council/wyre,30/03/2022,Resources,Support Services,135B,Bill Rogerson Safety Services LTD,15/03/2022,Bill Rogerson Safety Services Ltd,,RS140070,875.00,0.00,"To deliver Manual Handling training 2 x courses per day, 10 delegates per course:23 February 2022, 9 March 2022 and 23 March 2022 at your premises in Bispham.PM Course 9 March now cancelled","To Deliver Manual Handling Training 2 X Courses Per Day, 10 Delegates Per Course:23 February 2022, 9 March 2022 And 23 March 2022 At Your Premises In Bispham.Pm Course 9 March Now Cancelled",Corporate Training - Health and Safety
Wyre Council,http://opendatacommunities.org/doc/district-council/wyre,30/03/2022,Resources,Support Services,135B,BRADLEY ENVIRONMENTAL CONSULTANTS LTD,03/03/2022,Bradley Environmental Consultants Ltd,,RS138295,590.00,0.00,provision of Non Licenced Asbestos Awareness Refresher as per booking form provided 30 November 2021 at the Civic Centre,Provision Of Non Licenced Asbestos Awareness Refresher As Per Booking Form Provided 30 November 2021 At The Civic Centre,Corporate Training - Health and Safety
Wyre Council,http://opendatacommunities.org/doc/district-council/wyre,30/03/2022,Finance,Current Assets,130B,,07/03/2022,,,WPST00038728,12491.49,0.00,ctaxrefunds 25/2,Ctaxrefunds 25/2,Council Tax Refunds
Wyre Council,http://opendatacommunities.org/doc/district-council/wyre,30/03/2022,Finance,Current Assets,130B,,07/03/2022,,,WPST00038691,28454.74,0.00,ctax refunds 28/1,Ctax Refunds 28/1,Council Tax Refunds
Wyre Council,http://opendatacommunities.org/doc/district-council/wyre,30/03/2022,Finance,Current Assets,130B,,07/03/2022,,,WPST00038730,22686.34,0.00,ctax refunds 18/2,Ctax Refunds 18/2,Council Tax Refunds
Wyre Council,http://opendatacommunities.org/doc/district-council/wyre,30/03/2022,Finance,Current Assets,130B,,23/03/2022,,,WPST00042147,22754.27,0.00,ctax refunds 18/3,Ctax Refunds 18/3,Council Tax Refunds
Wyre Council,http://opendatacommunities.org/doc/district-council/wyre,30/03/2022,Finance,Current Assets,130B,,09/03/2022,,,WPST00039204,13204.81,0.00,CTAX REFUNDS 4/3,Ctax Refunds 4/3,Council Tax Refunds
Wyre Council,http://opendatacommunities.org/doc/district-council/wyre,30/03/2022,Finance,Current Assets,130B,,31/03/2022,,,WPST00043227,22059.43,0.00,ctax refunds 25/3,Ctax Refunds 25/3,Council Tax Refunds
Wyre Council,http://opendatacommunities.org/doc/district-council/wyre,30/03/2022,People and Places,Planning and Development Servs,132C,Pilling Moss Veg Ltd,22/03/2022,Pilling Moss Veg Ltd,,PE140358,15373.50,0.00,ARG - Vacant High Street Premises,Arg - Vacant High Street Premises,COVID-19 Business Support Funding Add. R
Wyre Council,http://opendatacommunities.org/doc/district-council/wyre,30/03/2022,People and Places,Planning and Development Servs,132C,Bluebells & Daisies,25/03/2022,Bluebells & Daisies,,PE140542,3000.00,0.00,VACHS ARG 4160 for Bluebells & Daisy,Vachs Arg 4160 For Bluebells & Daisy,COVID-19 Business Support Funding Add. R
Wyre Council,http://opendatacommunities.org/doc/district-council/wyre,30/03/2022,People and Places,Planning and Development Servs,132C,Victors Tapas and Cocktails,03/03/2022,Victors Tapas And Cocktails,,PE139745,15000.00,0.00,ARG Vacant High Street Premises,Arg Vacant High Street Premises,COVID-19 Business Support Funding Add. R
Wyre Council,http://opendatacommunities.org/doc/district-council/wyre,30/03/2022,People and Places,Planning and Development Servs,132C,Jack Jackson T/A JK Blinds,03/03/2022,Jack Jackson T/A Jk Blinds,,PE139830,17841.03,0.00,VACHS Grant 14211 for JK Blinds,Vachs Grant 14211 For Jk Blinds,COVID-19 Business Support Funding Add. R
Wyre Council,http://opendatacommunities.org/doc/district-council/wyre,30/03/2022,People and Places,Planning and Development Servs,132C,Ex Catalogue Outlet Blackpool Ltd,03/03/2022,Ex Catalogue Outlet Blackpool Ltd,,PE139769,25000.00,0.00,"VACHS Grant 7063 for Ex Catalogue Outlet for 25,000","Vachs Grant 7063 For Ex Catalogue Outlet For 25,000",COVID-19 Business Support Funding Add. R
Wyre Council,http://opendatacommunities.org/doc/district-council/wyre,30/03/2022,People and Places,Planning and Development Servs,132C,Pauls Hewitt Slippers,09/03/2022,Pauls Hewitt Slippers,,PE139947,10932.60,0.00,ARG - Vacant High Street Premises,Arg - Vacant High Street Premises,COVID-19 Business Support Funding Add. R
Wyre Council,http://opendatacommunities.org/doc/district-council/wyre,30/03/2022,People and Places,Planning and Development Servs,132C,Fazpack Ltd,18/03/2022,Fazpack Ltd,,PE140237,25000.00,0.00,ARG - Vacant High Street Premises,Arg - Vacant High Street Premises,COVID-19 Business Support Funding Add. R
Wyre Council,http://opendatacommunities.org/doc/district-council/wyre,30/03/2022,People and Places,Planning and Development Servs,132C,Play Chest Ltd,07/03/2022,Play Chest Ltd,,PE139886,2466.93,0.00,ARG Vacant High Street Premises,Arg Vacant High Street Premises,COVID-19 Business Support Funding Add. R
Wyre Council,http://opendatacommunities.org/doc/district-council/wyre,30/03/2022,People and Places,Planning and Development Servs,132C,Crystal Clear Management Services Ltd T/A Crystal,17/03/2022,Crystal Clear Management Services Ltd T/A Crystal,,PE140159,17522.53,0.00,ARG - Vacant High Street Premises,Arg - Vacant High Street Premises,COVID-19 Business Support Funding Add. R
Wyre Council,http://opendatacommunities.org/doc/district-council/wyre,30/03/2022,People and Places,Planning and Development Servs,132C,Decade`s Retro Cafe and Bar Ltd,03/03/2022,Decade`S Retro Cafe And Bar Ltd,,PE139741,25000.00,0.00,AVG - Vacant High Street Premises,Avg - Vacant High Street Premises,COVID-19 Business Support Funding Add. R
Wyre Council,http://opendatacommunities.org/doc/district-council/wyre,30/03/2022,People and Places,Planning and Development Servs,132C,McF Collectables Ltd,24/03/2022,Mcf Collectables Ltd,,PE140437,17200.49,0.00,ARG - Vacant High Street Premises,Arg - Vacant High Street Premises,COVID-19 Business Support Funding Add. R
Wyre Council,http://opendatacommunities.org/doc/district-council/wyre,30/03/2022,People and Places,Planning and Development Servs,132C,Oh The Joys,21/03/2022,Oh The Joys,,PE140275,8103.06,0.00,ARG - Vacant High Street Premises,Arg - Vacant High Street Premises,COVID-19 Business Support Funding Add. R
Wyre Council,http://opendatacommunities.org/doc/district-council/wyre,30/03/2022,People and Places,Planning and Development Servs,132C,The Wok Box,17/03/2022,The Wok Box,,PE140160,19104.97,0.00,ARG - Vacant High Street Premises,Arg - Vacant High Street Premises,COVID-19 Business Support Funding Add. R
Wyre Council,http://opendatacommunities.org/doc/district-council/wyre,30/03/2022,People and Places,Planning and Development Servs,132C,FYSeven,17/03/2022,Fyseven,,PE140185,4193.45,0.00,ARG - vacant high street premises,Arg - Vacant High Street Premises,COVID-19 Business Support Funding Add. R
Wyre Council,http://opendatacommunities.org/doc/district-council/wyre,30/03/2022,People and Places,Planning and Development Servs,132C,Bling Bling UK Sparkle & Shine Ltd T/A Bling Bling,23/03/2022,Bling Bling Uk Sparkle & Shine Ltd T/A Bling Bling,,PE140408,12974.48,0.00,ARG - Vacant High Street Premises,Arg - Vacant High Street Premises,COVID-19 Business Support Funding Add. R
Wyre Council,http://opendatacommunities.org/doc/district-council/wyre,30/03/2022,People and Places,Planning and Development Servs,132C,Lucky`s Fashion,16/03/2022,Lucky`S Fashion,,PE140119,14353.98,0.00,ARG - Vacant High Street Premises,Arg - Vacant High Street Premises,COVID-19 Business Support Funding Add. R
Wyre Council,http://opendatacommunities.org/doc/district-council/wyre,30/03/2022,People and Places,Planning and Development Servs,132C,GPTV Wyre,16/03/2022,Gptv Wyre,,PE140103,13985.99,0.00,ARG - Vacant High Street Premises,Arg - Vacant High Street Premises,COVID-19 Business Support Funding Add. R
Wyre Council,http://opendatacommunities.org/doc/district-council/wyre,30/03/2022,People and Places,Planning and Development Servs,132C,Muriel and May Interiors Ltd,22/03/2022,Muriel And May Interiors Ltd,,PE140359,5995.53,0.00,ARG - Vacant High Street Premises,Arg - Vacant High Street Premises,COVID-19 Business Support Funding Add. R
Wyre Council,http://opendatacommunities.org/doc/district-council/wyre,30/03/2022,People and Places,Planning and Development Servs,132C,Doc Laptop Repairs,18/03/2022,Doc Laptop Repairs,,PE140235,12531.30,0.00,ARG - Vacant High Street Premises,Arg - Vacant High Street Premises,COVID-19 Business Support Funding Add. R
Wyre Council,http://opendatacommunities.org/doc/district-council/wyre,30/03/2022,People and Places,Planning and Development Servs,132C,Lee Brougham T/A Craft Works,23/03/2022,Lee Brougham T/A Craft Works,,PE140436,19172.03,0.00,ARG - Vacant High Street Premises,Arg - Vacant High Street Premises,COVID-19 Business Support Funding Add. R
Wyre Council,http://opendatacommunities.org/doc/district-council/wyre,30/03/2022,People and Places,Planning and Development Servs,132C,The Curtains Boutique,23/03/2022,The Curtains Boutique,,PE140435,16384.41,0.00,ARG - Vacant High Street Premises,Arg - Vacant High Street Premises,COVID-19 Business Support Funding Add. R
Wyre Council,http://opendatacommunities.org/doc/district-council/wyre,30/03/2022,People and Places,Cultural and Related Services,132A,Road Safety Services LTD,03/03/2022,Road Safety Services Ltd,,PE139726,1185.00,0.00,For the LANTRA training of 12 event volunteers. Tuesday 8th February 2022,For The Lantra Training Of 12 Event Volunteers. Tuesday 8Th February 2022,Creative People and Places Contribution
Wyre Council,http://opendatacommunities.org/doc/district-council/wyre,30/03/2022,People and Places,Cultural and Related Services,132A,JANINE WALKER ART,21/03/2022,Janine Walker Art,,PE140318,750.00,0.00,Payment for 5 X Arts and Health sessions at Fleetwood - 750,Payment For 5 X Arts And Health Sessions At Fleetwood - 750,Creative People and Places Contribution
Wyre Council,http://opendatacommunities.org/doc/district-council/wyre,30/03/2022,People and Places,Cultural and Related Services,132A,JANINE WALKER ART,22/03/2022,Janine Walker Art,,PE140348,750.00,0.00,Fee for 5 arts and health sessions at Fleetwood Market 750 - this payment is sessions 6 - 10 and is the final payment in the current contract,Fee For 5 Arts And Health Sessions At Fleetwood Market 750 - This Payment Is Sessions 6 - 10 And Is The Final Payment In The Current Contract,Creative People and Places Contribution
Wyre Council,http://opendatacommunities.org/doc/district-council/wyre,30/03/2022,Resources,Cultural and Related Services,132A,Visual Print and Design Ltd,24/03/2022,Visual Print And Design Ltd,,RS140387,45.00,0.00,1 x Generic Just Reminiscing pop up banner,1 X Generic Just Reminiscing Pop Up Banner,Creative People and Places Contribution
Wyre Council,http://opendatacommunities.org/doc/district-council/wyre,30/03/2022,People and Places,Support Services,135B,EK Motors Factors LTD,30/03/2022,Ek Motors Factors Ltd,,PE140661,31.60,0.00,Parts,Parts,Daywork Materials (Excl.Tyres)
Wyre Council,http://opendatacommunities.org/doc/district-council/wyre,30/03/2022,People and Places,Support Services,135B,EK Motors Factors LTD,30/03/2022,Ek Motors Factors Ltd,,PE140659,7.70,0.00,Parts,Parts,Daywork Materials (Excl.Tyres)
Wyre Council,http://opendatacommunities.org/doc/district-council/wyre,30/03/2022,People and Places,Support Services,135B,EK Motors Factors LTD,30/03/2022,Ek Motors Factors Ltd,,PE140660,76.55,0.00,Parts,Parts,Daywork Materials (Excl.Tyres)
Wyre Council,http://opendatacommunities.org/doc/district-council/wyre,30/03/2022,People and Places,Environmental Services,132B,EK Motors Factors LTD,17/03/2022,Ek Motors Factors Ltd,,PE140146,47.42,0.00,Parts,Parts,Daywork Materials (Excl.Tyres)
Wyre Council,http://opendatacommunities.org/doc/district-council/wyre,30/03/2022,People and Places,Support Services,135B,EK Motors Factors LTD,17/03/2022,Ek Motors Factors Ltd,,PE140139,298.28,0.00,Parts,Parts,Daywork Materials (Excl.Tyres)
Wyre Council,http://opendatacommunities.org/doc/district-council/wyre,30/03/2022,People and Places,Environmental Services,132B,EK Motors Factors LTD,17/03/2022,Ek Motors Factors Ltd,,PE140151,21.53,0.00,Parts,Parts,Daywork Materials (Excl.Tyres)
Wyre Council,http://opendatacommunities.org/doc/district-council/wyre,30/03/2022,People and Places,Environmental Services,132B,EK Motors Factors LTD,17/03/2022,Ek Motors Factors Ltd,,PE140151,21.53,0.00,Parts,Parts,Daywork Materials (Excl.Tyres)
Wyre Council,http://opendatacommunities.org/doc/district-council/wyre,30/03/2022,People and Places,Environmental Services,132B,EK Motors Factors LTD,17/03/2022,Ek Motors Factors Ltd,,PE140152,34.00,0.00,Parts,Parts,Daywork Materials (Excl.Tyres)
Wyre Council,http://opendatacommunities.org/doc/district-council/wyre,30/03/2022,People and Places,Support Services,135B,EK Motors Factors LTD,30/03/2022,Ek Motors Factors Ltd,,PE140654,69.17,0.00,Parts,Parts,Daywork Materials (Excl.Tyres)
Wyre Council,http://opendatacommunities.org/doc/district-council/wyre,30/03/2022,People and Places,Environmental Services,132B,EK Motors Factors LTD,17/03/2022,Ek Motors Factors Ltd,,PE140153,26.02,0.00,Parts,Parts,Daywork Materials (Excl.Tyres)
Wyre Council,http://opendatacommunities.org/doc/district-council/wyre,30/03/2022,People and Places,Environmental Services,132B,EK Motors Factors LTD,17/03/2022,Ek Motors Factors Ltd,,PE140149,55.13,0.00,Parts,Parts,Daywork Materials (Excl.Tyres)
Wyre Council,http://opendatacommunities.org/doc/district-council/wyre,30/03/2022,People and Places,Environmental Services,132B,EK Motors Factors LTD,17/03/2022,Ek Motors Factors Ltd,,PE140148,26.02,0.00,Parts,Parts,Daywork Materials (Excl.Tyres)
Wyre Council,http://opendatacommunities.org/doc/district-council/wyre,30/03/2022,People and Places,Environmental Services,132B,EK Motors Factors LTD,17/03/2022,Ek Motors Factors Ltd,,PE140150,21.87,0.00,Parts,Parts,Daywork Materials (Excl.Tyres)
Wyre Council,http://opendatacommunities.org/doc/district-council/wyre,30/03/2022,People and Places,Support Services,135B,FR Sharrock LTD,28/03/2022,Fr Sharrock Ltd,,PE140162,415.64,0.00,Various parts,Various Parts,Daywork Materials (Excl.Tyres)
Wyre Council,http://opendatacommunities.org/doc/district-council/wyre,30/03/2022,People and Places,Support Services,135B,FR Sharrock LTD,28/03/2022,Fr Sharrock Ltd,,PE140163,696.03,0.00,Various parts,Various Parts,Daywork Materials (Excl.Tyres)
Wyre Council,http://opendatacommunities.org/doc/district-council/wyre,30/03/2022,People and Places,Support Services,135B,FR Sharrock LTD,28/03/2022,Fr Sharrock Ltd,,PE140162,548.42,0.00,Various parts,Various Parts,Daywork Materials (Excl.Tyres)
Wyre Council,http://opendatacommunities.org/doc/district-council/wyre,30/03/2022,People and Places,Support Services,135B,FR Sharrock LTD,28/03/2022,Fr Sharrock Ltd,,PE140162,548.43,0.00,Various parts,Various Parts,Daywork Materials (Excl.Tyres)
Wyre Council,http://opendatacommunities.org/doc/district-council/wyre,30/03/2022,People and Places,Support Services,135B,FR Sharrock LTD,28/03/2022,Fr Sharrock Ltd,,PE140163,696.03,0.00,Various parts,Various Parts,Daywork Materials (Excl.Tyres)
Wyre Council,http://opendatacommunities.org/doc/district-council/wyre,30/03/2022,People and Places,Support Services,135B,FR Sharrock LTD,28/03/2022,Fr Sharrock Ltd,,PE140162,548.43,0.00,Various parts,Various Parts,Daywork Materials (Excl.Tyres)
Wyre Council,http://opendatacommunities.org/doc/district-council/wyre,30/03/2022,People and Places,Support Services,135B,FR Sharrock LTD,28/03/2022,Fr Sharrock Ltd,,PE140163,696.03,0.00,Various parts,Various Parts,Daywork Materials (Excl.Tyres)
Wyre Council,http://opendatacommunities.org/doc/district-council/wyre,30/03/2022,People and Places,Environmental Services,132B,Bucher Municipal Limited,28/03/2022,Bucher Municipal Limited,,PE140601,35.10,0.00,Coil 12v,Coil 12V,Daywork Materials (Excl.Tyres)
Wyre Council,http://opendatacommunities.org/doc/district-council/wyre,30/03/2022,People and Places,Environmental Services,132B,Bucher Municipal Limited,28/03/2022,Bucher Municipal Limited,,PE140545,336.21,0.00,Water Pump,Water Pump,Daywork Materials (Excl.Tyres)
Wyre Council,http://opendatacommunities.org/doc/district-council/wyre,30/03/2022,People and Places,Environmental Services,132B,Bucher Municipal Limited,16/03/2022,Bucher Municipal Limited,,PE139853,101.04,0.00,Ball Joint Assembly Cylinder Rod End,Ball Joint Assembly Cylinder Rod End,Daywork Materials (Excl.Tyres)
Wyre Council,http://opendatacommunities.org/doc/district-council/wyre,30/03/2022,People and Places,Environmental Services,132B,Bucher Municipal Limited,16/03/2022,Bucher Municipal Limited,,PE139853,101.04,0.00,Ball Joint Assembly Cylinder Rod End,Ball Joint Assembly Cylinder Rod End,Daywork Materials (Excl.Tyres)
Wyre Council,http://opendatacommunities.org/doc/district-council/wyre,30/03/2022,People and Places,Environmental Services,132B,Bucher Municipal Limited,28/03/2022,Bucher Municipal Limited,,PE140556,729.02,0.00,Rear Mesh Welded Assembly x 2,Rear Mesh Welded Assembly X 2,Daywork Materials (Excl.Tyres)
Wyre Council,http://opendatacommunities.org/doc/district-council/wyre,30/03/2022,People and Places,Environmental Services,132B,Stuart Taylor International Ltd,28/03/2022,Stuart Taylor International Ltd,,PE140438,104.00,0.00,Cartridge Air Filter,Cartridge Air Filter,Daywork Materials (Excl.Tyres)
Wyre Council,http://opendatacommunities.org/doc/district-council/wyre,30/03/2022,People and Places,Environmental Services,132B,Stuart Taylor International Ltd,28/03/2022,Stuart Taylor International Ltd,,PE140585,158.10,0.00,Parts,Parts,Daywork Materials (Excl.Tyres)
Wyre Council,http://opendatacommunities.org/doc/district-council/wyre,30/03/2022,People and Places,Environmental Services,132B,Stuart Taylor International Ltd,28/03/2022,Stuart Taylor International Ltd,,PE140439,509.01,0.00,parts,Parts,Daywork Materials (Excl.Tyres)
Wyre Council,http://opendatacommunities.org/doc/district-council/wyre,30/03/2022,People and Places,Environmental Services,132B,Stuart Taylor International Ltd,28/03/2022,Stuart Taylor International Ltd,,PE140438,104.00,0.00,Cartridge Air Filter,Cartridge Air Filter,Daywork Materials (Excl.Tyres)
Wyre Council,http://opendatacommunities.org/doc/district-council/wyre,30/03/2022,People and Places,Environmental Services,132B,Stuart Taylor International Ltd,28/03/2022,Stuart Taylor International Ltd,,PE140438,104.00,0.00,Cartridge Air Filter,Cartridge Air Filter,Daywork Materials (Excl.Tyres)
Wyre Council,http://opendatacommunities.org/doc/district-council/wyre,30/03/2022,People and Places,Environmental Services,132B,Stuart Taylor International Ltd,28/03/2022,Stuart Taylor International Ltd,,PE140438,104.00,0.00,Cartridge Air Filter,Cartridge Air Filter,Daywork Materials (Excl.Tyres)
Wyre Council,http://opendatacommunities.org/doc/district-council/wyre,30/03/2022,People and Places,Environmental Services,132B,Stuart Taylor International Ltd,28/03/2022,Stuart Taylor International Ltd,,PE140438,104.00,0.00,Cartridge Air Filter,Cartridge Air Filter,Daywork Materials (Excl.Tyres)
Wyre Council,http://opendatacommunities.org/doc/district-council/wyre,30/03/2022,People and Places,Environmental Services,132B,CORNTHWAITE GROUP,14/03/2022,Cornthwaite Group,,PE140007,1159.99,0.00,Work to vehicle PF67 HCO including parts,Work To Vehicle Pf67 Hco Including Parts,Daywork Materials (Excl.Tyres)
Wyre Council,http://opendatacommunities.org/doc/district-council/wyre,30/03/2022,People and Places,Support Services,135B,CORNTHWAITE GROUP,23/03/2022,Cornthwaite Group,,PE140446,1595.35,0.00,Works to PF67 HCOincluding parts,Works To Pf67 Hcoincluding Parts,Daywork Materials (Excl.Tyres)
Wyre Council,http://opendatacommunities.org/doc/district-council/wyre,30/03/2022,Resources,Support Services,135B,Experian Ltd,21/03/2022,Experian Ltd,,RS140279,1823.00,0.00,CV Plus - manual Invoice - Annual bill - one off,Cv Plus - Manual Invoice - Annual Bill - One Off,Debtor Tracing
Wyre Council,http://opendatacommunities.org/doc/district-council/wyre,30/03/2022,Resources,Support Services,135B,Experian Ltd,21/03/2022,Experian Ltd,,RS140280,66.00,0.00,Searches and reports,Searches And Reports,Debtor Tracing
Wyre Council,http://opendatacommunities.org/doc/district-council/wyre,30/03/2022,People and Places,Environmental Services,132B,RENTOKIL INITIAL UK LTD,17/03/2022,Rentokil Initial Uk Ltd,,PE140158,64.19,0.00,Clinical waste collection and disposal services to Wyre domestic customersTo include the provision of containers for financial year 2021/22,Clinical Waste Collection And Disposal Services To Wyre Domestic Customersto Include The Provision Of Containers For Financial Year 2021/22,Disposal Costs Hazardous Waste
Wyre Council,http://opendatacommunities.org/doc/district-council/wyre,30/03/2022,People and Places,Environmental Services,132B,RENTOKIL INITIAL UK LTD,08/03/2022,Rentokil Initial Uk Ltd,,PE139846,566.47,0.00,Clinical waste collection and disposal services to Wyre domestic customers To include the provision of containers for financial year 2021/22,Clinical Waste Collection And Disposal Services To Wyre Domestic Customers To Include The Provision Of Containers For Financial Year 2021/22,Disposal Costs Hazardous Waste
Wyre Council,http://opendatacommunities.org/doc/district-council/wyre,30/03/2022,People and Places,Cultural and Related Services,132A,Carlsberg UK LTD,07/03/2022,Carlsberg Uk Ltd,,PE139889,705.60,0.00,Marine Hall Bar order 26/1/22,Marine Hall Bar Order 26/1/22,Drinks
Wyre Council,http://opendatacommunities.org/doc/district-council/wyre,30/03/2022,People and Places,Cultural and Related Services,132A,Carlsberg UK LTD,07/03/2022,Carlsberg Uk Ltd,,PE139888,63.84,0.00,Gas invoice,Gas Invoice,Drinks
Wyre Council,http://opendatacommunities.org/doc/district-council/wyre,30/03/2022,People and Places,Cultural and Related Services,132A,Carlsberg UK LTD,07/03/2022,Carlsberg Uk Ltd,,PE139890,74.48,0.00,Gas invoice,Gas Invoice,Drinks
Wyre Council,http://opendatacommunities.org/doc/district-council/wyre,30/03/2022,People and Places,Cultural and Related Services,132A,Carlsberg UK LTD,09/03/2022,Carlsberg Uk Ltd,,PE139931,90.44,0.00,Gas invoice,Gas Invoice,Drinks
Wyre Council,http://opendatacommunities.org/doc/district-council/wyre,30/03/2022,People and Places,Parking Services,133F,E-ON Energy Electricity,29/03/2022,E-On Energy Electricity,,PE139483,859.84,0.00,Electricity supplied for the period 01/03/21-31/3/21,Electricity Supplied For The Period 01/03/21-31/3/21,Electricity
Wyre Council,http://opendatacommunities.org/doc/district-council/wyre,30/03/2022,People and Places,Parking Services,133F,E-ON Energy Electricity,29/03/2022,E-On Energy Electricity,,PE139688,2.25,0.00,Electricity charges for the period 01/12/21-31/12/21,Electricity Charges For The Period 01/12/21-31/12/21,Electricity
Wyre Council,http://opendatacommunities.org/doc/district-council/wyre,30/03/2022,People and Places,Environmental Services,132B,E-ON Energy Electricity,29/03/2022,E-On Energy Electricity,,PE139688,0.40,0.00,Electricity charges for the period 01/12/21-31/12/21,Electricity Charges For The Period 01/12/21-31/12/21,Electricity
Wyre Council,http://opendatacommunities.org/doc/district-council/wyre,30/03/2022,People and Places,Environmental Services,132B,E-ON Energy Electricity,29/03/2022,E-On Energy Electricity,,PE139483,153.32,0.00,Electricity supplied for the period 01/03/21-31/3/21,Electricity Supplied For The Period 01/03/21-31/3/21,Electricity
Wyre Council,http://opendatacommunities.org/doc/district-council/wyre,30/03/2022,People and Places,Planning and Development Servs,132C,Western Power Distribution,03/03/2022,Western Power Distribution,,PE139098,175.00,0.00,Metering Services Charges up to 31/8/22,Metering Services Charges Up To 31/8/22,Electricity
Wyre Council,http://opendatacommunities.org/doc/district-council/wyre,30/03/2022,People and Places,Support Services,135B,Western Power Distribution,03/03/2022,Western Power Distribution,,PE139098,175.00,0.00,Metering Services Charges up to 31/8/22,Metering Services Charges Up To 31/8/22,Electricity
Wyre Council,http://opendatacommunities.org/doc/district-council/wyre,30/03/2022,People and Places,Cultural and Related Services,132A,Western Power Distribution,03/03/2022,Western Power Distribution,,PE139098,175.00,0.00,Metering Services Charges up to 31/8/22,Metering Services Charges Up To 31/8/22,Electricity
Wyre Council,http://opendatacommunities.org/doc/district-council/wyre,30/03/2022,People and Places,Cultural and Related Services,132A,Bryt Energy Limited,29/03/2022,Bryt Energy Limited,,PE140020,143.66,0.00,Electricity supplied for the period 01/02/22-28/02/22,Electricity Supplied For The Period 01/02/22-28/02/22,Electricity
Wyre Council,http://opendatacommunities.org/doc/district-council/wyre,30/03/2022,People and Places,Cultural and Related Services,132A,Bryt Energy Limited,03/03/2022,Bryt Energy Limited,,PE139705,171.17,0.00,Electricity charges for the period 01/01/22-31/1/22,Electricity Charges For The Period 01/01/22-31/1/22,Electricity
Wyre Council,http://opendatacommunities.org/doc/district-council/wyre,30/03/2022,People and Places,Cultural and Related Services,132A,Bryt Energy Limited,03/03/2022,Bryt Energy Limited,,PE139704,225.64,0.00,Electricity charges for the period 01/01/22-31/01/22,Electricity Charges For The Period 01/01/22-31/01/22,Electricity
Wyre Council,http://opendatacommunities.org/doc/district-council/wyre,30/03/2022,People and Places,Cultural and Related Services,132A,Bryt Energy Limited,03/03/2022,Bryt Energy Limited,,PE139703,4773.74,0.00,Electricity charges for the period 01/01/22-31/01/22,Electricity Charges For The Period 01/01/22-31/01/22,Electricity
Wyre Council,http://opendatacommunities.org/doc/district-council/wyre,30/03/2022,People and Places,Cultural and Related Services,132A,Bryt Energy Limited,29/03/2022,Bryt Energy Limited,,PE140018,4092.48,0.00,Electricity supplied for the period 01/02/22-28/02/22,Electricity Supplied For The Period 01/02/22-28/02/22,Electricity
Wyre Council,http://opendatacommunities.org/doc/district-council/wyre,30/03/2022,People and Places,Cultural and Related Services,132A,Bryt Energy Limited,23/03/2022,Bryt Energy Limited,,PE140019,326.64,0.00,Electricity supplied for the period 01/02/22-28/02/22,Electricity Supplied For The Period 01/02/22-28/02/22,Electricity
Wyre Council,http://opendatacommunities.org/doc/district-council/wyre,30/03/2022,People and Places,Environmental Services,132B,Bryt Energy Limited,03/03/2022,Bryt Energy Limited,,PE139707,57.37,0.00,Electricity charges for the period 01/01/22-31/01/22,Electricity Charges For The Period 01/01/22-31/01/22,Electricity
Wyre Council,http://opendatacommunities.org/doc/district-council/wyre,30/03/2022,People and Places,Support Services,135B,Bryt Energy Limited,29/03/2022,Bryt Energy Limited,,PE140022,5609.77,0.00,Electricity supplied for the period 01/02/22-28/02/22,Electricity Supplied For The Period 01/02/22-28/02/22,Electricity
Wyre Council,http://opendatacommunities.org/doc/district-council/wyre,30/03/2022,People and Places,Planning and Development Servs,132C,Bryt Energy Limited,29/03/2022,Bryt Energy Limited,,PE140021,3162.21,0.00,Electricity supplied for the period 01/01/22-31/1/22,Electricity Supplied For The Period 01/01/22-31/1/22,Electricity
Wyre Council,http://opendatacommunities.org/doc/district-council/wyre,30/03/2022,People and Places,Environmental Services,132B,Bryt Energy Limited,29/03/2022,Bryt Energy Limited,,PE140023,100.17,0.00,Electricity supplied for the period 01/02/22-28/02/22,Electricity Supplied For The Period 01/02/22-28/02/22,Electricity
Wyre Council,http://opendatacommunities.org/doc/district-council/wyre,30/03/2022,People and Places,Support Services,135B,Bryt Energy Limited,03/03/2022,Bryt Energy Limited,,PE139706,6401.38,0.00,Electricity charges for the period 01/01/22-31/01/22,Electricity Charges For The Period 01/01/22-31/01/22,Electricity
Wyre Council,http://opendatacommunities.org/doc/district-council/wyre,30/03/2022,People and Places,Planning and Development Servs,132C,Bryt Energy Limited,29/03/2022,Bryt Energy Limited,,PE140017,1058.01,0.00,Electricity supplied for the period 01/02/22-28/02/22,Electricity Supplied For The Period 01/02/22-28/02/22,Electricity
Wyre Council,http://opendatacommunities.org/doc/district-council/wyre,30/03/2022,People and Places,Planning and Development Servs,132C,Bryt Energy Limited,03/03/2022,Bryt Energy Limited,,PE139702,1179.71,0.00,Electricity charges for the period 01/01/22-31/01/22,Electricity Charges For The Period 01/01/22-31/01/22,Electricity
Wyre Council,http://opendatacommunities.org/doc/district-council/wyre,30/03/2022,People and Places,Planning and Development Servs,132C,Bryt Energy Limited,03/03/2022,Bryt Energy Limited,,PE139712,-3272.83,0.00,Credit against I-138383 biling period 01/12/21-31/12/21,Credit Against I-138383 Biling Period 01/12/21-31/12/21,Electricity
Wyre Council,http://opendatacommunities.org/doc/district-council/wyre,30/03/2022,People and Places,Cultural and Related Services,132A,Corona Energy Retail 4 Limited,23/03/2022,Corona Energy Retail 4 Limited,,PE140094,106.80,0.00,Electricity charges for February 2032,Electricity Charges For February 2032,Electricity
Wyre Council,http://opendatacommunities.org/doc/district-council/wyre,30/03/2022,People and Places,Environmental Services,132B,Corona Energy Retail 4 Limited,23/03/2022,Corona Energy Retail 4 Limited,,PE140094,37.90,0.00,Electricity charges for February 2036,Electricity Charges For February 2036,Electricity
Wyre Council,http://opendatacommunities.org/doc/district-council/wyre,30/03/2022,People and Places,Environmental Services,132B,Corona Energy Retail 4 Limited,16/03/2022,Corona Energy Retail 4 Limited,,PE136989,-1296.07,0.00,Monthly Electricity Charges,Monthly Electricity Charges,Electricity
Wyre Council,http://opendatacommunities.org/doc/district-council/wyre,30/03/2022,People and Places,Environmental Services,132B,Corona Energy Retail 4 Limited,16/03/2022,Corona Energy Retail 4 Limited,,PE140109,-1.46,0.00,Monthly Electricity Charges,Monthly Electricity Charges,Electricity
Wyre Council,http://opendatacommunities.org/doc/district-council/wyre,30/03/2022,People and Places,Environmental Services,132B,Corona Energy Retail 4 Limited,16/03/2022,Corona Energy Retail 4 Limited,,PE140109,1296.07,0.00,Monthly Electricity Charges,Monthly Electricity Charges,Electricity
Wyre Council,http://opendatacommunities.org/doc/district-council/wyre,30/03/2022,People and Places,Planning and Development Servs,132C,Corona Energy Retail 4 Limited,16/03/2022,Corona Energy Retail 4 Limited,,PE140109,505.51,0.00,Monthly Electricity Charges,Monthly Electricity Charges,Electricity
Wyre Council,http://opendatacommunities.org/doc/district-council/wyre,30/03/2022,People and Places,Planning and Development Servs,132C,Corona Energy Retail 4 Limited,16/03/2022,Corona Energy Retail 4 Limited,,PE136989,-505.51,0.00,Monthly Electricity Charges,Monthly Electricity Charges,Electricity
Wyre Council,http://opendatacommunities.org/doc/district-council/wyre,30/03/2022,People and Places,Planning and Development Servs,132C,Corona Energy Retail 4 Limited,16/03/2022,Corona Energy Retail 4 Limited,,PE140109,346.19,0.00,Monthly Electricity Charges,Monthly Electricity Charges,Electricity
Wyre Council,http://opendatacommunities.org/doc/district-council/wyre,30/03/2022,People and Places,Planning and Development Servs,132C,Corona Energy Retail 4 Limited,16/03/2022,Corona Energy Retail 4 Limited,,PE136989,-346.19,0.00,Monthly Electricity Charges,Monthly Electricity Charges,Electricity
Wyre Council,http://opendatacommunities.org/doc/district-council/wyre,30/03/2022,People and Places,Planning and Development Servs,132C,Corona Energy Retail 4 Limited,23/03/2022,Corona Energy Retail 4 Limited,,PE140094,274.62,0.00,Electricity charges for February 2048,Electricity Charges For February 2048,Electricity
Wyre Council,http://opendatacommunities.org/doc/district-council/wyre,30/03/2022,People and Places,Environmental Services,132B,Corona Energy Retail 4 Limited,16/03/2022,Corona Energy Retail 4 Limited,,PE140109,36.63,0.00,Monthly Electricity Charges,Monthly Electricity Charges,Electricity
Wyre Council,http://opendatacommunities.org/doc/district-council/wyre,30/03/2022,People and Places,Environmental Services,132B,Corona Energy Retail 4 Limited,16/03/2022,Corona Energy Retail 4 Limited,,PE136989,-36.63,0.00,Monthly Electricity Charges,Monthly Electricity Charges,Electricity
Wyre Council,http://opendatacommunities.org/doc/district-council/wyre,30/03/2022,People and Places,Environmental Services,132B,Corona Energy Retail 4 Limited,16/03/2022,Corona Energy Retail 4 Limited,,PE140111,-4581.09,0.00,Monthly Charges,Monthly Charges,Electricity
Wyre Council,http://opendatacommunities.org/doc/district-council/wyre,30/03/2022,People and Places,Planning and Development Servs,132C,Corona Energy Retail 4 Limited,23/03/2022,Corona Energy Retail 4 Limited,,PE140094,411.93,0.00,Electricity charges for February 2038,Electricity Charges For February 2038,Electricity
Wyre Council,http://opendatacommunities.org/doc/district-council/wyre,30/03/2022,People and Places,Central Services to the Public,131C,Corona Energy Retail 4 Limited,23/03/2022,Corona Energy Retail 4 Limited,,PE140094,700.21,0.00,Electricity charges for February 2039,Electricity Charges For February 2039,Electricity
Wyre Council,http://opendatacommunities.org/doc/district-council/wyre,30/03/2022,People and Places,Central Services to the Public,131C,Corona Energy Retail 4 Limited,16/03/2022,Corona Energy Retail 4 Limited,,PE136149,-579.19,0.00,Monthly Charges,Monthly Charges,Electricity
Wyre Council,http://opendatacommunities.org/doc/district-council/wyre,30/03/2022,People and Places,Central Services to the Public,131C,Corona Energy Retail 4 Limited,16/03/2022,Corona Energy Retail 4 Limited,,PE136989,-559.00,0.00,Monthly Electricity Charges,Monthly Electricity Charges,Electricity
Wyre Council,http://opendatacommunities.org/doc/district-council/wyre,30/03/2022,People and Places,Central Services to the Public,131C,Corona Energy Retail 4 Limited,16/03/2022,Corona Energy Retail 4 Limited,,PE140109,559.00,0.00,Monthly Electricity Charges,Monthly Electricity Charges,Electricity
Wyre Council,http://opendatacommunities.org/doc/district-council/wyre,30/03/2022,People and Places,Cultural and Related Services,132A,Corona Energy Retail 4 Limited,16/03/2022,Corona Energy Retail 4 Limited,,PE140109,16.42,0.00,Monthly Electricity Charges,Monthly Electricity Charges,Electricity
Wyre Council,http://opendatacommunities.org/doc/district-council/wyre,30/03/2022,People and Places,Cultural and Related Services,132A,Corona Energy Retail 4 Limited,16/03/2022,Corona Energy Retail 4 Limited,,PE136989,-345.21,0.00,Monthly Electricity Charges,Monthly Electricity Charges,Electricity
Wyre Council,http://opendatacommunities.org/doc/district-council/wyre,30/03/2022,People and Places,Cultural and Related Services,132A,Corona Energy Retail 4 Limited,16/03/2022,Corona Energy Retail 4 Limited,,PE140109,345.21,0.00,Monthly Electricity Charges,Monthly Electricity Charges,Electricity
Wyre Council,http://opendatacommunities.org/doc/district-council/wyre,30/03/2022,People and Places,Cultural and Related Services,132A,Corona Energy Retail 4 Limited,23/03/2022,Corona Energy Retail 4 Limited,,PE140094,452.33,0.00,Electricity charges for February 2040,Electricity Charges For February 2040,Electricity
Wyre Council,http://opendatacommunities.org/doc/district-council/wyre,30/03/2022,People and Places,Cultural and Related Services,132A,Corona Energy Retail 4 Limited,23/03/2022,Corona Energy Retail 4 Limited,,PE140094,49.52,0.00,Electricity charges for February 2026,Electricity Charges For February 2026,Electricity
Wyre Council,http://opendatacommunities.org/doc/district-council/wyre,30/03/2022,People and Places,Cultural and Related Services,132A,Corona Energy Retail 4 Limited,16/03/2022,Corona Energy Retail 4 Limited,,PE136989,20.87,0.00,Monthly Electricity Charges,Monthly Electricity Charges,Electricity
Wyre Council,http://opendatacommunities.org/doc/district-council/wyre,30/03/2022,People and Places,Cultural and Related Services,132A,Corona Energy Retail 4 Limited,16/03/2022,Corona Energy Retail 4 Limited,,PE140109,-20.87,0.00,Monthly Electricity Charges,Monthly Electricity Charges,Electricity
Wyre Council,http://opendatacommunities.org/doc/district-council/wyre,30/03/2022,People and Places,Environmental Services,132B,Corona Energy Retail 4 Limited,23/03/2022,Corona Energy Retail 4 Limited,,PE140094,492.47,0.00,Electricity charges for February 2047,Electricity Charges For February 2047,Electricity
Wyre Council,http://opendatacommunities.org/doc/district-council/wyre,30/03/2022,People and Places,Environmental Services,132B,Corona Energy Retail 4 Limited,23/03/2022,Corona Energy Retail 4 Limited,,PE140094,1169.94,0.00,Electricity charges for February 2035,Electricity Charges For February 2035,Electricity
Wyre Council,http://opendatacommunities.org/doc/district-council/wyre,30/03/2022,People and Places,Environmental Services,132B,Corona Energy Retail 4 Limited,16/03/2022,Corona Energy Retail 4 Limited,,PE136149,-1037.51,0.00,Monthly Charges,Monthly Charges,Electricity
Wyre Council,http://opendatacommunities.org/doc/district-council/wyre,30/03/2022,People and Places,Cultural and Related Services,132A,Corona Energy Retail 4 Limited,23/03/2022,Corona Energy Retail 4 Limited,,PE140094,171.90,0.00,Electricity charges for February 2028,Electricity Charges For February 2028,Electricity
Wyre Council,http://opendatacommunities.org/doc/district-council/wyre,30/03/2022,People and Places,Cultural and Related Services,132A,Corona Energy Retail 4 Limited,23/03/2022,Corona Energy Retail 4 Limited,,PE140094,1505.11,0.00,Electricity charges for February 2042,Electricity Charges For February 2042,Electricity
Wyre Council,http://opendatacommunities.org/doc/district-council/wyre,30/03/2022,People and Places,Cultural and Related Services,132A,Corona Energy Retail 4 Limited,23/03/2022,Corona Energy Retail 4 Limited,,PE140094,202.92,0.00,Electricity charges for February 2029,Electricity Charges For February 2029,Electricity
Wyre Council,http://opendatacommunities.org/doc/district-council/wyre,30/03/2022,People and Places,Cultural and Related Services,132A,Corona Energy Retail 4 Limited,16/03/2022,Corona Energy Retail 4 Limited,,PE140109,432.49,0.00,Monthly Electricity Charges,Monthly Electricity Charges,Electricity
Wyre Council,http://opendatacommunities.org/doc/district-council/wyre,30/03/2022,People and Places,Cultural and Related Services,132A,Corona Energy Retail 4 Limited,16/03/2022,Corona Energy Retail 4 Limited,,PE140123,461.69,0.00,Monthly Charges,Monthly Charges,Electricity
Wyre Council,http://opendatacommunities.org/doc/district-council/wyre,30/03/2022,People and Places,Cultural and Related Services,132A,Corona Energy Retail 4 Limited,16/03/2022,Corona Energy Retail 4 Limited,,PE136989,-432.49,0.00,Monthly Electricity Charges,Monthly Electricity Charges,Electricity
Wyre Council,http://opendatacommunities.org/doc/district-council/wyre,30/03/2022,People and Places,Cultural and Related Services,132A,Corona Energy Retail 4 Limited,16/03/2022,Corona Energy Retail 4 Limited,,PE136989,-141.33,0.00,Monthly Electricity Charges,Monthly Electricity Charges,Electricity
Wyre Council,http://opendatacommunities.org/doc/district-council/wyre,30/03/2022,People and Places,Cultural and Related Services,132A,Corona Energy Retail 4 Limited,16/03/2022,Corona Energy Retail 4 Limited,,PE140109,141.33,0.00,Monthly Electricity Charges,Monthly Electricity Charges,Electricity
Wyre Council,http://opendatacommunities.org/doc/district-council/wyre,30/03/2022,People and Places,Cultural and Related Services,132A,Corona Energy Retail 4 Limited,23/03/2022,Corona Energy Retail 4 Limited,,PE140094,191.27,0.00,Electricity charges for February 2043,Electricity Charges For February 2043,Electricity
Wyre Council,http://opendatacommunities.org/doc/district-council/wyre,30/03/2022,People and Places,Cultural and Related Services,132A,Corona Energy Retail 4 Limited,23/03/2022,Corona Energy Retail 4 Limited,,PE140094,134.32,0.00,Electricity charges for February 2030,Electricity Charges For February 2030,Electricity
Wyre Council,http://opendatacommunities.org/doc/district-council/wyre,30/03/2022,People and Places,Cultural and Related Services,132A,Corona Energy Retail 4 Limited,16/03/2022,Corona Energy Retail 4 Limited,,PE140109,41.85,0.00,Monthly Electricity Charges,Monthly Electricity Charges,Electricity
Wyre Council,http://opendatacommunities.org/doc/district-council/wyre,30/03/2022,People and Places,Cultural and Related Services,132A,Corona Energy Retail 4 Limited,16/03/2022,Corona Energy Retail 4 Limited,,PE136989,-41.85,0.00,Monthly Electricity Charges,Monthly Electricity Charges,Electricity
Wyre Council,http://opendatacommunities.org/doc/district-council/wyre,30/03/2022,People and Places,Cultural and Related Services,132A,Corona Energy Retail 4 Limited,16/03/2022,Corona Energy Retail 4 Limited,,PE136989,-126.50,0.00,Monthly Electricity Charges,Monthly Electricity Charges,Electricity
Wyre Council,http://opendatacommunities.org/doc/district-council/wyre,30/03/2022,People and Places,Cultural and Related Services,132A,Corona Energy Retail 4 Limited,16/03/2022,Corona Energy Retail 4 Limited,,PE140109,126.50,0.00,Monthly Electricity Charges,Monthly Electricity Charges,Electricity
Wyre Council,http://opendatacommunities.org/doc/district-council/wyre,30/03/2022,People and Places,Cultural and Related Services,132A,Corona Energy Retail 4 Limited,23/03/2022,Corona Energy Retail 4 Limited,,PE140094,591.82,0.00,Electricity charges for February 2044,Electricity Charges For February 2044,Electricity
Wyre Council,http://opendatacommunities.org/doc/district-council/wyre,30/03/2022,People and Places,Environmental Services,132B,Corona Energy Retail 4 Limited,16/03/2022,Corona Energy Retail 4 Limited,,PE136989,1.46,0.00,Monthly Electricity Charges,Monthly Electricity Charges,Electricity
Wyre Council,http://opendatacommunities.org/doc/district-council/wyre,30/03/2022,People and Places,Cultural and Related Services,132A,Corona Energy Retail 4 Limited,16/03/2022,Corona Energy Retail 4 Limited,,PE140109,227.74,0.00,Monthly Electricity Charges,Monthly Electricity Charges,Electricity
Wyre Council,http://opendatacommunities.org/doc/district-council/wyre,30/03/2022,People and Places,Cultural and Related Services,132A,Corona Energy Retail 4 Limited,16/03/2022,Corona Energy Retail 4 Limited,,PE140109,580.92,0.00,Monthly Electricity Charges,Monthly Electricity Charges,Electricity
Wyre Council,http://opendatacommunities.org/doc/district-council/wyre,30/03/2022,People and Places,Cultural and Related Services,132A,Corona Energy Retail 4 Limited,16/03/2022,Corona Energy Retail 4 Limited,,PE136989,-227.74,0.00,Monthly Electricity Charges,Monthly Electricity Charges,Electricity
Wyre Council,http://opendatacommunities.org/doc/district-council/wyre,30/03/2022,People and Places,Cultural and Related Services,132A,Corona Energy Retail 4 Limited,16/03/2022,Corona Energy Retail 4 Limited,,PE136989,-580.92,0.00,Monthly Electricity Charges,Monthly Electricity Charges,Electricity
Wyre Council,http://opendatacommunities.org/doc/district-council/wyre,30/03/2022,People and Places,Cultural and Related Services,132A,Corona Energy Retail 4 Limited,16/03/2022,Corona Energy Retail 4 Limited,,PE140109,475.27,0.00,Monthly Electricity Charges,Monthly Electricity Charges,Electricity
Wyre Council,http://opendatacommunities.org/doc/district-council/wyre,30/03/2022,People and Places,Cultural and Related Services,132A,Corona Energy Retail 4 Limited,16/03/2022,Corona Energy Retail 4 Limited,,PE136989,-16.42,0.00,Monthly Electricity Charges,Monthly Electricity Charges,Electricity
Wyre Council,http://opendatacommunities.org/doc/district-council/wyre,30/03/2022,People and Places,Cultural and Related Services,132A,Corona Energy Retail 4 Limited,16/03/2022,Corona Energy Retail 4 Limited,,PE136989,-475.27,0.00,Monthly Electricity Charges,Monthly Electricity Charges,Electricity
Wyre Council,http://opendatacommunities.org/doc/district-council/wyre,30/03/2022,People and Places,Cultural and Related Services,132A,Corona Energy Retail 4 Limited,23/03/2022,Corona Energy Retail 4 Limited,,PE140094,90.24,0.00,Electricity charges for February 2027,Electricity Charges For February 2027,Electricity
Wyre Council,http://opendatacommunities.org/doc/district-council/wyre,30/03/2022,People and Places,Cultural and Related Services,132A,Corona Energy Retail 4 Limited,23/03/2022,Corona Energy Retail 4 Limited,,PE140094,137.36,0.00,Electricity charges for February 2031,Electricity Charges For February 2031,Electricity
Wyre Council,http://opendatacommunities.org/doc/district-council/wyre,30/03/2022,People and Places,Cultural and Related Services,132A,Corona Energy Retail 4 Limited,16/03/2022,Corona Energy Retail 4 Limited,,PE136989,-51.15,0.00,Monthly Electricity Charges,Monthly Electricity Charges,Electricity
Wyre Council,http://opendatacommunities.org/doc/district-council/wyre,30/03/2022,People and Places,Cultural and Related Services,132A,Corona Energy Retail 4 Limited,16/03/2022,Corona Energy Retail 4 Limited,,PE140109,51.15,0.00,Monthly Electricity Charges,Monthly Electricity Charges,Electricity
Wyre Council,http://opendatacommunities.org/doc/district-council/wyre,30/03/2022,People and Places,Cultural and Related Services,132A,Corona Energy Retail 4 Limited,23/03/2022,Corona Energy Retail 4 Limited,,PE140094,406.64,0.00,Electricity charges for February 2041,Electricity Charges For February 2041,Electricity
Wyre Council,http://opendatacommunities.org/doc/district-council/wyre,30/03/2022,People and Places,Cultural and Related Services,132A,Corona Energy Retail 4 Limited,23/03/2022,Corona Energy Retail 4 Limited,,PE140094,71.03,0.00,Electricity charges for February 2023,Electricity Charges For February 2023,Electricity
Wyre Council,http://opendatacommunities.org/doc/district-council/wyre,30/03/2022,People and Places,Cultural and Related Services,132A,Corona Energy Retail 4 Limited,23/03/2022,Corona Energy Retail 4 Limited,,PE140094,31.61,0.00,Electricity charges for February 2025,Electricity Charges For February 2025,Electricity
Wyre Council,http://opendatacommunities.org/doc/district-council/wyre,30/03/2022,People and Places,Cultural and Related Services,132A,Corona Energy Retail 4 Limited,16/03/2022,Corona Energy Retail 4 Limited,,PE140109,31.61,0.00,Monthly Electricity Charges,Monthly Electricity Charges,Electricity
Wyre Council,http://opendatacommunities.org/doc/district-council/wyre,30/03/2022,People and Places,Cultural and Related Services,132A,Corona Energy Retail 4 Limited,16/03/2022,Corona Energy Retail 4 Limited,,PE136989,-31.61,0.00,Monthly Electricity Charges,Monthly Electricity Charges,Electricity
Wyre Council,http://opendatacommunities.org/doc/district-council/wyre,30/03/2022,People and Places,Cultural and Related Services,132A,Corona Energy Retail 4 Limited,16/03/2022,Corona Energy Retail 4 Limited,,PE136989,-148.94,0.00,Monthly Electricity Charges,Monthly Electricity Charges,Electricity
Wyre Council,http://opendatacommunities.org/doc/district-council/wyre,30/03/2022,People and Places,Cultural and Related Services,132A,Corona Energy Retail 4 Limited,16/03/2022,Corona Energy Retail 4 Limited,,PE140109,148.94,0.00,Monthly Electricity Charges,Monthly Electricity Charges,Electricity
Wyre Council,http://opendatacommunities.org/doc/district-council/wyre,30/03/2022,People and Places,Environmental Services,132B,Corona Energy Retail 4 Limited,16/03/2022,Corona Energy Retail 4 Limited,,PE140109,255.95,0.00,Monthly Electricity Charges,Monthly Electricity Charges,Electricity
Wyre Council,http://opendatacommunities.org/doc/district-council/wyre,30/03/2022,People and Places,Environmental Services,132B,Corona Energy Retail 4 Limited,16/03/2022,Corona Energy Retail 4 Limited,,PE136989,-255.95,0.00,Monthly Electricity Charges,Monthly Electricity Charges,Electricity
Wyre Council,http://opendatacommunities.org/doc/district-council/wyre,30/03/2022,People and Places,Environmental Services,132B,Corona Energy Retail 4 Limited,23/03/2022,Corona Energy Retail 4 Limited,,PE140094,365.91,0.00,Electricity charges for February 2046,Electricity Charges For February 2046,Electricity
Wyre Council,http://opendatacommunities.org/doc/district-council/wyre,30/03/2022,People and Places,Cultural and Related Services,132A,Corona Energy Retail 4 Limited,23/03/2022,Corona Energy Retail 4 Limited,,PE140094,60.71,0.00,Electricity charges for February 2022,Electricity Charges For February 2022,Electricity
Wyre Council,http://opendatacommunities.org/doc/district-council/wyre,30/03/2022,People and Places,Cultural and Related Services,132A,Corona Energy Retail 4 Limited,16/03/2022,Corona Energy Retail 4 Limited,,PE140109,51.94,0.00,Monthly Electricity Charges,Monthly Electricity Charges,Electricity
Wyre Council,http://opendatacommunities.org/doc/district-council/wyre,30/03/2022,People and Places,Cultural and Related Services,132A,Corona Energy Retail 4 Limited,16/03/2022,Corona Energy Retail 4 Limited,,PE136989,-51.94,0.00,Monthly Electricity Charges,Monthly Electricity Charges,Electricity
Wyre Council,http://opendatacommunities.org/doc/district-council/wyre,30/03/2022,People and Places,Environmental Services,132B,Corona Energy Retail 4 Limited,23/03/2022,Corona Energy Retail 4 Limited,,PE140094,182.33,0.00,Electricity charges for February 2037,Electricity Charges For February 2037,Electricity
Wyre Council,http://opendatacommunities.org/doc/district-council/wyre,30/03/2022,People and Places,Environmental Services,132B,Corona Energy Retail 4 Limited,16/03/2022,Corona Energy Retail 4 Limited,,PE140109,141.25,0.00,Monthly Electricity Charges,Monthly Electricity Charges,Electricity
Wyre Council,http://opendatacommunities.org/doc/district-council/wyre,30/03/2022,People and Places,Environmental Services,132B,Corona Energy Retail 4 Limited,16/03/2022,Corona Energy Retail 4 Limited,,PE136989,-141.25,0.00,Monthly Electricity Charges,Monthly Electricity Charges,Electricity
Wyre Council,http://opendatacommunities.org/doc/district-council/wyre,30/03/2022,People and Places,Cultural and Related Services,132A,Corona Energy Retail 4 Limited,23/03/2022,Corona Energy Retail 4 Limited,,PE140094,89.06,0.00,Electricity charges for February 2033,Electricity Charges For February 2033,Electricity
Wyre Council,http://opendatacommunities.org/doc/district-council/wyre,30/03/2022,People and Places,Cultural and Related Services,132A,Corona Energy Retail 4 Limited,16/03/2022,Corona Energy Retail 4 Limited,,PE140109,73.40,0.00,Monthly Electricity Charges,Monthly Electricity Charges,Electricity
Wyre Council,http://opendatacommunities.org/doc/district-council/wyre,30/03/2022,People and Places,Cultural and Related Services,132A,Corona Energy Retail 4 Limited,16/03/2022,Corona Energy Retail 4 Limited,,PE136989,-73.40,0.00,Monthly Electricity Charges,Monthly Electricity Charges,Electricity
Wyre Council,http://opendatacommunities.org/doc/district-council/wyre,30/03/2022,People and Places,Cultural and Related Services,132A,Corona Energy Retail 4 Limited,23/03/2022,Corona Energy Retail 4 Limited,,PE140094,33.76,0.00,Electricity charges for February 2024,Electricity Charges For February 2024,Electricity
Wyre Council,http://opendatacommunities.org/doc/district-council/wyre,30/03/2022,People and Places,Cultural and Related Services,132A,Corona Energy Retail 4 Limited,16/03/2022,Corona Energy Retail 4 Limited,,PE136989,-29.46,0.00,Monthly Electricity Charges,Monthly Electricity Charges,Electricity
Wyre Council,http://opendatacommunities.org/doc/district-council/wyre,30/03/2022,People and Places,Cultural and Related Services,132A,Corona Energy Retail 4 Limited,16/03/2022,Corona Energy Retail 4 Limited,,PE140109,29.46,0.00,Monthly Electricity Charges,Monthly Electricity Charges,Electricity
Wyre Council,http://opendatacommunities.org/doc/district-council/wyre,30/03/2022,People and Places,Environmental Services,132B,Corona Energy Retail 4 Limited,16/03/2022,Corona Energy Retail 4 Limited,,PE140109,-19.28,0.00,Monthly Electricity Charges,Monthly Electricity Charges,Electricity
Wyre Council,http://opendatacommunities.org/doc/district-council/wyre,30/03/2022,People and Places,Environmental Services,132B,Corona Energy Retail 4 Limited,16/03/2022,Corona Energy Retail 4 Limited,,PE136989,19.28,0.00,Monthly Electricity Charges,Monthly Electricity Charges,Electricity
Wyre Council,http://opendatacommunities.org/doc/district-council/wyre,30/03/2022,People and Places,Environmental Services,132B,Corona Energy Retail 4 Limited,23/03/2022,Corona Energy Retail 4 Limited,,PE140094,307.04,0.00,Electricity charges for February 2045,Electricity Charges For February 2045,Electricity
Wyre Council,http://opendatacommunities.org/doc/district-council/wyre,30/03/2022,People and Places,Environmental Services,132B,Corona Energy Retail 4 Limited,23/03/2022,Corona Energy Retail 4 Limited,,PE140094,16.69,0.00,Electricity charges for February 2034,Electricity Charges For February 2034,Electricity
Wyre Council,http://opendatacommunities.org/doc/district-council/wyre,30/03/2022,People and Places,Cultural and Related Services,132A,Heckford Printers LTD,29/03/2022,Heckford Printers Ltd,,PE139302,2050.00,0.00,To produce a promotional video for the Holiday activity and food programme at 3 venues in Wyre - 2 days videoing and 2 days editing to produce a promo video and a 30 second social media clip.,To Produce A Promotional Video For The Holiday Activity And Food Programme At 3 Venues In Wyre - 2 Days Videoing And 2 Days Editing To Produce A Promo Video And A 30 Second Social Media Clip.,External Coaching
Wyre Council,http://opendatacommunities.org/doc/district-council/wyre,30/03/2022,People and Places,Cultural and Related Services,132A,Fleetwood Town Community Trust,16/03/2022,Fleetwood Town Community Trust,,PE140110,4040.00,0.00,Tackling Inequalities Activities,Tackling Inequalities Activities,External Coaching
Wyre Council,http://opendatacommunities.org/doc/district-council/wyre,30/03/2022,People and Places,Cultural and Related Services,132A,Fleetwood Town Community Trust,24/03/2022,Fleetwood Town Community Trust,,PE140468,7390.00,0.00,Trysport Delivery,Trysport Delivery,External Coaching
Wyre Council,http://opendatacommunities.org/doc/district-council/wyre,30/03/2022,People and Places,Cultural and Related Services,132A,AFC FYLDE COMMUNITY FOUNDATION,31/03/2022,Afc Fylde Community Foundation,,PE140681,2150.00,0.00,Staff costs @ 25 per coach per hour to deliver  the Holiday Activity Fund programme at  Elswick Community Centre on the following  dates: 27th July x 5 hours x 2 staff = 250 29th July x 5 hours x 2 staff = 250 3rd August x 5 hours x 2 staff = 250 5th,Staff Costs @ 25 Per Coach Per Hour To Deliver  The Holiday Activity Fund Programme At  Elswick Community Centre On The Following  Dates: 27Th July X 5 Hours X 2 Staff = 250 29Th July X 5 Hours X 2 Staff = 250 3Rd August X 5 Hours X 2 Staff = 250 5Th,External Coaching
Wyre Council,http://opendatacommunities.org/doc/district-council/wyre,30/03/2022,People and Places,Cultural and Related Services,132A,Healthy Heads Education Ltd,24/03/2022,Healthy Heads Education Ltd,,PE140469,1667.00,0.00,"Delivery of PASTA programme 1 at Larkholme Primary school, Fleetwood, Feb 21st - 28th March 2022 by Healthy Heads","Delivery Of Pasta Programme 1 At Larkholme Primary School, Fleetwood, Feb 21St - 28Th March 2022 By Healthy Heads",External Coaching
Wyre Council,http://opendatacommunities.org/doc/district-council/wyre,30/03/2022,People and Places,Cultural and Related Services,132A,Non Slip Shop Ltd,22/03/2022,Non Slip Shop Ltd,,PE140373,1897.80,0.00,400 white grip strips,400 White Grip Strips,External Contractor
Wyre Council,http://opendatacommunities.org/doc/district-council/wyre,30/03/2022,People and Places,Environmental Services,132B,United Utilities Standpipes,21/03/2022,United Utilities Standpipes,,PE139106,217.86,0.00,FAO Rachel Aitken Senior Client Liaison Scientist Quality & Scientific Services United Utilities   PWS Supply Ref: 207/WP/3 � Hudsbrook  Supply on 2/11/2021  PSW Analysis at Dandy Birks Farmhouse  kitchen cold water tap.  Reg 9 - Tag 63784108,Fao Rachel Aitken Senior Client Liaison Scientist Quality & Scientific Services United Utilities   Pws Supply Ref: 207/Wp/3 � Hudsbrook  Supply On 2/11/2021  Psw Analysis At Dandy Birks Farmhouse  Kitchen Cold Water Tap.  Reg 9 - Tag 63784108,Food and Drug Etc Samples
Wyre Council,http://opendatacommunities.org/doc/district-council/wyre,30/03/2022,People and Places,Environmental Services,132B,United Utilities Standpipes,21/03/2022,United Utilities Standpipes,,PE139106,52.72,0.00,"PWS Supply Ref: 207/WP/32 � Stang Yule  Supply  PSW Analysis utility room Stang Yule, Bleasdale on 26/08/2021  Reg 10 Tag No. 63743386","Pws Supply Ref: 207/Wp/32 � Stang Yule  Supply  Psw Analysis Utility Room Stang Yule, Bleasdale On 26/08/2021  Reg 10 Tag No. 63743386",Food and Drug Etc Samples
Wyre Council,http://opendatacommunities.org/doc/district-council/wyre,30/03/2022,People and Places,Environmental Services,132B,United Utilities Standpipes,21/03/2022,United Utilities Standpipes,,PE139106,217.86,0.00,"PWS Supply Ref: 207/WP/19 � School  Supply  PSW Analysis Shoot room kitchen cold tap, Estate Office, Bleasdale Tower, Bleasdale on 27/07/2021  Reg 9 (C01) Tag No. 63784107","Pws Supply Ref: 207/Wp/19 � School  Supply  Psw Analysis Shoot Room Kitchen Cold Tap, Estate Office, Bleasdale Tower, Bleasdale On 27/07/2021  Reg 9 (C01) Tag No. 63784107",Food and Drug Etc Samples
Wyre Council,http://opendatacommunities.org/doc/district-council/wyre,30/03/2022,People and Places,Cultural and Related Services,132A,Lancashire County Council,28/03/2022,Lancashire County Council,,PE140554,6800.00,0.00,Authority contribution to the Forest of Bowland AONB Partnership,Authority Contribution To The Forest Of Bowland Aonb Partnership,Forest of Bowland Joint Advise Com Contr
Wyre Council,http://opendatacommunities.org/doc/district-council/wyre,30/03/2022,People and Places,Planning and Development Servs,132C,AvantiGas ON Ltd,23/03/2022,Avantigas On Ltd,,PE140199,164.15,0.00,Gas supplied for the period 01/02/22-28/02/22,Gas Supplied For The Period 01/02/22-28/02/22,Gas
Wyre Council,http://opendatacommunities.org/doc/district-council/wyre,30/03/2022,People and Places,Planning and Development Servs,132C,AvantiGas ON Ltd,03/03/2022,Avantigas On Ltd,,PE139694,135.72,0.00,Supply of gas for the period 01/01/22-31/01/22,Supply Of Gas For The Period 01/01/22-31/01/22,Gas
Wyre Council,http://opendatacommunities.org/doc/district-council/wyre,30/03/2022,People and Places,Planning and Development Servs,132C,AvantiGas ON Ltd,18/03/2022,Avantigas On Ltd,,PE139803,-4392.35,0.00,Credit against Invoice 400244686 which has already been paid,Credit Against Invoice 400244686 Which Has Already Been Paid,Gas
Wyre Council,http://opendatacommunities.org/doc/district-council/wyre,30/03/2022,People and Places,Planning and Development Servs,132C,AvantiGas ON Ltd,29/03/2022,Avantigas On Ltd,,PE139799,4279.75,0.00,Gas Charges for the period 01/12/21-31/12/21,Gas Charges For The Period 01/12/21-31/12/21,Gas
Wyre Council,http://opendatacommunities.org/doc/district-council/wyre,30/03/2022,People and Places,Cultural and Related Services,132A,AvantiGas ON Ltd,03/03/2022,Avantigas On Ltd,,PE139696,997.54,0.00,Gas Supply for the period 01/01/22-31/01/22,Gas Supply For The Period 01/01/22-31/01/22,Gas
Wyre Council,http://opendatacommunities.org/doc/district-council/wyre,30/03/2022,People and Places,Cultural and Related Services,132A,AvantiGas ON Ltd,23/03/2022,Avantigas On Ltd,,PE140200,837.91,0.00,Gas supplied for the period 01/02/22-28/02/22,Gas Supplied For The Period 01/02/22-28/02/22,Gas
Wyre Council,http://opendatacommunities.org/doc/district-council/wyre,30/03/2022,People and Places,Support Services,135B,AvantiGas ON Ltd,23/03/2022,Avantigas On Ltd,,PE140202,5681.77,0.00,Gas charges for the period 01/02/22-28/02/22,Gas Charges For The Period 01/02/22-28/02/22,Gas
Wyre Council,http://opendatacommunities.org/doc/district-council/wyre,30/03/2022,People and Places,Support Services,135B,AvantiGas ON Ltd,07/03/2022,Avantigas On Ltd,,PE139697,6181.99,0.00,Gas supplied for the period 01/01/22-31/01/22,Gas Supplied For The Period 01/01/22-31/01/22,Gas
Wyre Council,http://opendatacommunities.org/doc/district-council/wyre,30/03/2022,People and Places,Planning and Development Servs,132C,AvantiGas ON Ltd,29/03/2022,Avantigas On Ltd,,PE139800,6569.79,0.00,Gas Charges for the period 01/01/22-31/01/22,Gas Charges For The Period 01/01/22-31/01/22,Gas
Wyre Council,http://opendatacommunities.org/doc/district-council/wyre,30/03/2022,People and Places,Planning and Development Servs,132C,AvantiGas ON Ltd,23/03/2022,Avantigas On Ltd,,PE140201,5917.81,0.00,Gas charges for the period 01/02/22-28/02/22,Gas Charges For The Period 01/02/22-28/02/22,Gas
Wyre Council,http://opendatacommunities.org/doc/district-council/wyre,30/03/2022,People and Places,Planning and Development Servs,132C,AvantiGas ON Ltd,31/03/2022,Avantigas On Ltd,,PE139798,11768.02,0.00,Gas charges for the period 01/01/22-31/01/22,Gas Charges For The Period 01/01/22-31/01/22,Gas
Wyre Council,http://opendatacommunities.org/doc/district-council/wyre,30/03/2022,People and Places,Planning and Development Servs,132C,AvantiGas ON Ltd,31/03/2022,Avantigas On Ltd,,PE139804,-11768.02,0.00,Gas charges for the period 01/01/22-31/01/22,Gas Charges For The Period 01/01/22-31/01/22,Gas
Wyre Council,http://opendatacommunities.org/doc/district-council/wyre,30/03/2022,Resources,"Cultural, Environ and Planning",137B,Associated British Ports,03/03/2022,Associated British Ports,,RS139750,974728.46,0.00,Project NeptuneCustomer account number: 903322Document Number: 6100251864January Claim,Project Neptunecustomer Account Number: 903322Document Number: 6100251864January Claim,Grants and Advances
Wyre Council,http://opendatacommunities.org/doc/district-council/wyre,30/03/2022,Resources,"Cultural, Environ and Planning",137B,Fleetwood Museum Trust,24/03/2022,Fleetwood Museum Trust,,RS140451,64883.36,0.00,Fleetwood HSHAZ GrantHSNW27_14Fleetwood Museum,Fleetwood Hshaz Granthsnw27_14Fleetwood Museum,Grants and Advances
Wyre Council,http://opendatacommunities.org/doc/district-council/wyre,30/03/2022,Resources,"Cultural, Environ and Planning",137B,Fleetwood Museum Trust,24/03/2022,Fleetwood Museum Trust,,RS140449,6732.42,0.00,Fleetwood HSHAZ GrantHSNW27_14Fleetwood Museum,Fleetwood Hshaz Granthsnw27_14Fleetwood Museum,Grants and Advances
Wyre Council,http://opendatacommunities.org/doc/district-council/wyre,30/03/2022,Resources,"Cultural, Environ and Planning",137B,Fleetwood Museum Trust,22/03/2022,Fleetwood Museum Trust,,RS140379,1093.76,0.00,Fleetwood HSHAZ GrantProject Number HSNW27_14Fleetwood Museum,Fleetwood Hshaz Grantproject Number Hsnw27_14Fleetwood Museum,Grants and Advances
Wyre Council,http://opendatacommunities.org/doc/district-council/wyre,30/03/2022,People and Places,"Cultural, Environ and Planning",137B,"ST Mary`s Church, Fleetwood",08/03/2022,"St Mary`S Church, Fleetwood",,PE139885,5204.50,0.00,Fleetwood HSHAZ Grant HSNW27_12_1 Parish of St Mary Fleetwood,Fleetwood Hshaz Grant Hsnw27_12_1 Parish Of St Mary Fleetwood,Grants and Advances
Wyre Council,http://opendatacommunities.org/doc/district-council/wyre,30/03/2022,Resources,"Cultural, Environ and Planning",137B,"ST Mary`s Church, Fleetwood",28/03/2022,"St Mary`S Church, Fleetwood",,RS140560,20620.56,0.00,Fleetwood HSHAZ GrantHSNW27_12_1St Mary�s RC Church Presbytery,Fleetwood Hshaz Granthsnw27_12_1St Mary�S Rc Church Presbytery,Grants and Advances
Wyre Council,http://opendatacommunities.org/doc/district-council/wyre,30/03/2022,Resources,"Cultural, Environ and Planning",137B,"ST Mary`s Church, Fleetwood",28/03/2022,"St Mary`S Church, Fleetwood",,RS140561,33588.02,0.00,Fleetwood HSHAZ GrantHSNW27_12_1St Mary�s RC Church Presbytery,Fleetwood Hshaz Granthsnw27_12_1St Mary�S Rc Church Presbytery,Grants and Advances
Wyre Council,http://opendatacommunities.org/doc/district-council/wyre,30/03/2022,Resources,"Cultural, Environ and Planning",137B,JOHN KELLEY & JAMES PARR,24/03/2022,John Kelley & James Parr,,RS140450,3521.47,0.00,"Fleetwood HSHAZ GrantHSNW27_7_1The Steamer,Queen�s TerraceFleetwood","Fleetwood Hshaz Granthsnw27_7_1The Steamer,Queen�S Terracefleetwood",Grants and Advances
Wyre Council,http://opendatacommunities.org/doc/district-council/wyre,30/03/2022,Resources,"Cultural, Environ and Planning",137B,JOHN KELLEY & JAMES PARR,16/03/2022,John Kelley & James Parr,,RS140082,3521.47,0.00,"Fleetwood HSHAZ GrantProject Number HSNW27_7_1The Steamer, Queen�s Terrace, Fleetwood","Fleetwood Hshaz Grantproject Number Hsnw27_7_1The Steamer, Queen�S Terrace, Fleetwood",Grants and Advances
Wyre Council,http://opendatacommunities.org/doc/district-council/wyre,30/03/2022,People and Places,"Cultural, Environ and Planning",137B,Kaylins Barn Ltd T/A North Albert Cafe & Grill,21/03/2022,Kaylins Barn Ltd T/A North Albert Cafe & Grill,,PE140229,3438.98,0.00,Fleetwood HSAZ Grant for 13 North Albert Street,Fleetwood Hsaz Grant For 13 North Albert Street,Grants and Advances
Wyre Council,http://opendatacommunities.org/doc/district-council/wyre,30/03/2022,People and Places,"Cultural, Environ and Planning",137B,Lucy Moss,09/03/2022,Lucy Moss,,PE139930,450.30,0.00,Fleetwood HSHAZ Grant HSNW27_8_1 for 19-23 Adelaide Street,Fleetwood Hshaz Grant Hsnw27_8_1 For 19-23 Adelaide Street,Grants and Advances
Wyre Council,http://opendatacommunities.org/doc/district-council/wyre,30/03/2022,Resources,"Cultural, Environ and Planning",137B,Lucy Moss,14/03/2022,Lucy Moss,,RS140066,13305.95,0.00,Project Number HSNW27_8_1Fleetwood HSHAZ Grant19-23 Adelaide Street,Project Number Hsnw27_8_1Fleetwood Hshaz Grant19-23 Adelaide Street,Grants and Advances
Wyre Council,http://opendatacommunities.org/doc/district-council/wyre,30/03/2022,Resources,"Cultural, Environ and Planning",137B,Lucy Moss,22/03/2022,Lucy Moss,,RS140380,3762.00,0.00,Fleetwood HSHAZ GrantProject Number  HSNW27_8_119  23 Adelaide Street,Fleetwood Hshaz Grantproject Number  Hsnw27_8_119  23 Adelaide Street,Grants and Advances
Wyre Council,http://opendatacommunities.org/doc/district-council/wyre,30/03/2022,Resources,"Cultural, Environ and Planning",137B,Lucy Moss,22/03/2022,Lucy Moss,,RS140381,1881.00,0.00,Fleetwood HSHAZ GrantHSNW27_8_119  23 Adelaide Street,Fleetwood Hshaz Granthsnw27_8_119  23 Adelaide Street,Grants and Advances
Wyre Council,http://opendatacommunities.org/doc/district-council/wyre,30/03/2022,Resources,"Cultural, Environ and Planning",137B,Relax and Re-mind Ltd,24/03/2022,Relax And Re-Mind Ltd,,RS140470,2304.00,0.00,"Fleetwood HSHAZ GrantHSNW27_5_145  47 Lord Street, Fleetwood","Fleetwood Hshaz Granthsnw27_5_145  47 Lord Street, Fleetwood",Grants and Advances
Wyre Council,http://opendatacommunities.org/doc/district-council/wyre,30/03/2022,Resources,"Cultural, Environ and Planning",137B,Relax and Re-mind Ltd,22/03/2022,Relax And Re-Mind Ltd,,RS140378,7692.02,0.00,"Fleetwood HSHAZ Grant45  47 Lord Street, FleetwoodProject Number HSNW27_5_1","Fleetwood Hshaz Grant45  47 Lord Street, Fleetwoodproject Number Hsnw27_5_1",Grants and Advances
Wyre Council,http://opendatacommunities.org/doc/district-council/wyre,30/03/2022,Resources,"Cultural, Environ and Planning",137B,RH Property Management Ltd,28/03/2022,Rh Property Management Ltd,,RS140569,21660.00,0.00,"Fleetwood HSHAZ GrantHSNW27_6Former HSBC Bank, Albert Street, Fleetwood","Fleetwood Hshaz Granthsnw27_6Former Hsbc Bank, Albert Street, Fleetwood",Grants and Advances
Wyre Council,http://opendatacommunities.org/doc/district-council/wyre,30/03/2022,People and Places,Cultural and Related Services,132A,Keep Britain Tidy,23/03/2022,Keep Britain Tidy,,PE140412,339.00,0.00,"Green Flag Application Jean Stansfield, Poulton","Green Flag Application Jean Stansfield, Poulton",Green Flag and Other Awards
Wyre Council,http://opendatacommunities.org/doc/district-council/wyre,30/03/2022,People and Places,Cultural and Related Services,132A,Keep Britain Tidy,29/03/2022,Keep Britain Tidy,,PE140386,339.00,0.00,1 x Green flag award WECP,1 X Green Flag Award Wecp,Green Flag and Other Awards
Wyre Council,http://opendatacommunities.org/doc/district-council/wyre,30/03/2022,People and Places,Parking Services,133F,Pipescan LTD,29/03/2022,Pipescan Ltd,,PE140227,1500.00,0.00,"Carry out clearing of car park gullies, as agreed with Maria Leeder","Carry Out Clearing Of Car Park Gullies, As Agreed With Maria Leeder",Gully Emptying
Wyre Council,http://opendatacommunities.org/doc/district-council/wyre,30/03/2022,People and Places,Parking Services,133F,Pipescan LTD,29/03/2022,Pipescan Ltd,,PE140227,1000.00,0.00,"Carry out clearing of car park gullies, as agreed with Maria Leeder","Carry Out Clearing Of Car Park Gullies, As Agreed With Maria Leeder",Gully Emptying
Wyre Council,http://opendatacommunities.org/doc/district-council/wyre,30/03/2022,People and Places,Parking Services,133F,Pipescan LTD,29/03/2022,Pipescan Ltd,,PE140227,512.00,0.00,additional costs agreed by Paul Long,Additional Costs Agreed By Paul Long,Gully Emptying
Wyre Council,http://opendatacommunities.org/doc/district-council/wyre,30/03/2022,Resources,Planning and Development Servs,132C,Konica Minolta Business Solutions UK LTD,28/03/2022,Konica Minolta Business Solutions Uk Ltd,,RS140416,34.65,0.00,bizhub,Bizhub,Hire of Tools or Equipment
Wyre Council,http://opendatacommunities.org/doc/district-council/wyre,30/03/2022,Resources,Cultural and Related Services,132A,Konica Minolta Business Solutions UK LTD,28/03/2022,Konica Minolta Business Solutions Uk Ltd,,RS140416,24.09,0.00,bizhub,Bizhub,Hire of Tools or Equipment
Wyre Council,http://opendatacommunities.org/doc/district-council/wyre,30/03/2022,People and Places,Support Services,135B,Konica Minolta Business Solutions UK LTD,24/03/2022,Konica Minolta Business Solutions Uk Ltd,,PE140099,723.45,0.00,Rental Charges for 2021/22 for C458,Rental Charges For 2021/22 For C458,Hire of Tools or Equipment
Wyre Council,http://opendatacommunities.org/doc/district-council/wyre,30/03/2022,Resources,Support Services,135B,Konica Minolta Business Solutions UK LTD,09/03/2022,Konica Minolta Business Solutions Uk Ltd,,RS139841,816.75,0.00,Copy and Print charges -  12 MFD Civic Centre and Marine Hall.  Please quote this order number on all invoices for this year,Copy And Print Charges -  12 Mfd Civic Centre And Marine Hall.  Please Quote This Order Number On All Invoices For This Year,Hire of Tools or Equipment
Wyre Council,http://opendatacommunities.org/doc/district-council/wyre,30/03/2022,Resources,Support Services,135B,Konica Minolta Business Solutions UK LTD,09/03/2022,Konica Minolta Business Solutions Uk Ltd,,RS139829,737.45,0.00,Copy and Print Charges - Please quote this order number on all invoices for the print and copying on 1823533444 and 1823440258,Copy And Print Charges - Please Quote This Order Number On All Invoices For The Print And Copying On 1823533444 And 1823440258,Hire of Tools or Equipment
Wyre Council,http://opendatacommunities.org/doc/district-council/wyre,30/03/2022,Resources,Support Services,135B,Konica Minolta Business Solutions UK LTD,15/03/2022,Konica Minolta Business Solutions Uk Ltd,,RS140002,4.04,0.00,"Colour copiers C300i - 10 based at the Civic Centre, 1 at Marine Hall and one at Copse Road125.90 per printer","Colour Copiers C300I - 10 Based At The Civic Centre, 1 At Marine Hall And One At Copse Road125.90 Per Printer",Hire of Tools or Equipment
Wyre Council,http://opendatacommunities.org/doc/district-council/wyre,30/03/2022,Resources,Support Services,135B,Konica Minolta Business Solutions UK LTD,16/03/2022,Konica Minolta Business Solutions Uk Ltd,,RS139925,1510.65,0.00,"Colour copiers C300i - 10 based at the Civic Centre, 1 at Marine Hall and one at Copse Road 125.90 per printer","Colour Copiers C300I - 10 Based At The Civic Centre, 1 At Marine Hall And One At Copse Road 125.90 Per Printer",Hire of Tools or Equipment
Wyre Council,http://opendatacommunities.org/doc/district-council/wyre,30/03/2022,People and Places,Support Services,135B,M J Wilkinson,25/03/2022,M J Wilkinson,,PE140547,80.00,0.00,For hire of mini diggers to support Bereavement Services at various cemeteries around the borough in 2021/22 (as per individual requests to hire and confirmation email from Gary Scott),For Hire Of Mini Diggers To Support Bereavement Services At Various Cemeteries Around The Borough In 2021/22 (As Per Individual Requests To Hire And Confirmation Email From Gary Scott),Hire of Tools or Equipment
Wyre Council,http://opendatacommunities.org/doc/district-council/wyre,30/03/2022,Finance,Central Services to the Public,131C,,31/03/2022,,,WPST00043108,50000.00,0.00,Post Office HSF - 6th pmnt,Post Office Hsf - 6Th Pmnt,Household Support Fund
Wyre Council,http://opendatacommunities.org/doc/district-council/wyre,30/03/2022,Finance,Central Services to the Public,131C,,22/03/2022,,,WPST00041845,100000.00,0.00,HSF 1st tranche payment to Post Office P,Hsf 1St Tranche Payment To Post Office P,Household Support Fund
Wyre Council,http://opendatacommunities.org/doc/district-council/wyre,30/03/2022,Resources,Central Services to the Public,131C,Critiqom LTD,21/03/2022,Critiqom Ltd,,RS140203,930.59,0.00,HSF Letter,Hsf Letter,Household Support Fund
Wyre Council,http://opendatacommunities.org/doc/district-council/wyre,30/03/2022,Resources,Central Services to the Public,131C,Post Office Limited,28/03/2022,Post Office Limited,,RS140518,1500.00,0.00,30010756 PO Payout Scheme requested by M Corry,30010756 Po Payout Scheme Requested By M Corry,Household Support Fund
Wyre Council,http://opendatacommunities.org/doc/district-council/wyre,30/03/2022,People and Places,Environmental Services,132B,Poulton Pets LTD,17/03/2022,Poulton Pets Ltd,,PE140131,1374.00,0.00,Provision of stray dog kennelling service 2021/22,Provision Of Stray Dog Kennelling Service 2021/22,Impounded Dogs Costs
Wyre Council,http://opendatacommunities.org/doc/district-council/wyre,30/03/2022,People and Places,Central Services to the Public,131C,Andrew Signs LTD,09/03/2022,Andrew Signs Ltd,,PE139939,686.25,0.00,Supply of 45 x robust signs (composite material) 300mm x 200mm with 2 x metal fixing clips.  Text provided by C.Mason.,Supply Of 45 X Robust Signs (Composite Material) 300Mm X 200Mm With 2 X Metal Fixing Clips.  Text Provided By C.Mason.,Incidents
Wyre Council,http://opendatacommunities.org/doc/district-council/wyre,30/03/2022,Resources,Support Services,135B,Daisy Communications LTD,08/03/2022,Daisy Communications Ltd,,RS139711,18.96,0.00,Monthly Charges,Monthly Charges,Internet and Telephone Charges
Wyre Council,http://opendatacommunities.org/doc/district-council/wyre,30/03/2022,Resources,Support Services,135B,Daisy Communications LTD,08/03/2022,Daisy Communications Ltd,,RS139711,38.48,0.00,Monthly Charges,Monthly Charges,Internet and Telephone Charges
Wyre Council,http://opendatacommunities.org/doc/district-council/wyre,30/03/2022,Resources,Support Services,135B,Daisy Communications LTD,30/03/2022,Daisy Communications Ltd,,RS140003,38.48,0.00,Monthly Charges,Monthly Charges,Internet and Telephone Charges
Wyre Council,http://opendatacommunities.org/doc/district-council/wyre,30/03/2022,Resources,Support Services,135B,Daisy Communications LTD,30/03/2022,Daisy Communications Ltd,,RS140003,18.96,0.00,Monthly Charges,Monthly Charges,Internet and Telephone Charges
Wyre Council,http://opendatacommunities.org/doc/district-council/wyre,30/03/2022,Resources,Cultural and Related Services,132A,Daisy Communications LTD,08/03/2022,Daisy Communications Ltd,,RS139711,9.48,0.00,Monthly Charges,Monthly Charges,Internet and Telephone Charges
Wyre Council,http://opendatacommunities.org/doc/district-council/wyre,30/03/2022,Resources,Cultural and Related Services,132A,Daisy Communications LTD,30/03/2022,Daisy Communications Ltd,,RS140003,9.48,0.00,Monthly Charges,Monthly Charges,Internet and Telephone Charges
Wyre Council,http://opendatacommunities.org/doc/district-council/wyre,30/03/2022,Resources,Support Services,135B,Daisy Communications LTD,30/03/2022,Daisy Communications Ltd,,RS140003,15.00,0.00,Monthly Charges,Monthly Charges,Internet and Telephone Charges
Wyre Council,http://opendatacommunities.org/doc/district-council/wyre,30/03/2022,Resources,Support Services,135B,Daisy Communications LTD,08/03/2022,Daisy Communications Ltd,,RS139711,15.00,0.00,Monthly Charges,Monthly Charges,Internet and Telephone Charges
Wyre Council,http://opendatacommunities.org/doc/district-council/wyre,30/03/2022,Resources,Corporate and Democratic Core,131A,Daisy Communications LTD,30/03/2022,Daisy Communications Ltd,,RS140003,9.49,0.00,Monthly Charges,Monthly Charges,Internet and Telephone Charges
Wyre Council,http://opendatacommunities.org/doc/district-council/wyre,30/03/2022,Resources,Corporate and Democratic Core,131A,Daisy Communications LTD,08/03/2022,Daisy Communications Ltd,,RS139711,9.49,0.00,Monthly Charges,Monthly Charges,Internet and Telephone Charges
Wyre Council,http://opendatacommunities.org/doc/district-council/wyre,30/03/2022,Resources,Cultural and Related Services,132A,Daisy Communications LTD,30/03/2022,Daisy Communications Ltd,,RS140003,24.47,0.00,Monthly Charges,Monthly Charges,Internet and Telephone Charges
Wyre Council,http://opendatacommunities.org/doc/district-council/wyre,30/03/2022,Resources,Cultural and Related Services,132A,Daisy Communications LTD,08/03/2022,Daisy Communications Ltd,,RS139711,24.47,0.00,Monthly Charges,Monthly Charges,Internet and Telephone Charges
Wyre Council,http://opendatacommunities.org/doc/district-council/wyre,30/03/2022,Resources,Support Services,135B,Vodafone LTD,03/03/2022,Vodafone Ltd,,RS138995,604.47,0.00,Quarterley charges,Quarterley Charges,Internet and Telephone Charges
Wyre Council,http://opendatacommunities.org/doc/district-council/wyre,30/03/2022,Resources,Support Services,135B,THE NETWORKING PEOPLE (TNP) LTD,07/03/2022,The Networking People (Tnp) Ltd,,RS139870,3762.00,0.00,0.1/0.1Gb internet service at Marine Hall PY7 6HF - Annual Rental,0.1/0.1Gb Internet Service At Marine Hall Py7 6Hf - Annual Rental,Internet and Telephone Charges
Wyre Council,http://opendatacommunities.org/doc/district-council/wyre,30/03/2022,Finance,Central Services to the Public,131C,HM COURT SERVICES,22/03/2022,Hm Court Services,,WPST00041639,661.00,0.00,CTAX L/O August,Ctax L/O August,Legal Fees
Wyre Council,http://opendatacommunities.org/doc/district-council/wyre,30/03/2022,Resources,Support Services,135B,Forbes Solicitors,23/03/2022,Forbes Solicitors,,RS140368,1555.00,0.00,Professional Fees - 27/01/2022 to 24/02/2022,Professional Fees - 27/01/2022 To 24/02/2022,Legal Fees
Wyre Council,http://opendatacommunities.org/doc/district-council/wyre,30/03/2022,Resources,Support Services,135B,Forbes Solicitors,22/03/2022,Forbes Solicitors,,RS140344,3544.00,0.00,,,Legal Fees
Wyre Council,http://opendatacommunities.org/doc/district-council/wyre,30/03/2022,Resources,Support Services,135B,Forbes Solicitors,23/03/2022,Forbes Solicitors,,RS140367,3475.00,0.00,Professional Fees - 27/01/2022 to 24/02/2022,Professional Fees - 27/01/2022 To 24/02/2022,Legal Fees
Wyre Council,http://opendatacommunities.org/doc/district-council/wyre,30/03/2022,Resources,Support Services,135B,Forbes Solicitors,23/03/2022,Forbes Solicitors,,RS140402,3442.50,0.00,Professional Fees -  27/01/2022 to 24/01/2022,Professional Fees -  27/01/2022 To 24/01/2022,Legal Fees
Wyre Council,http://opendatacommunities.org/doc/district-council/wyre,30/03/2022,People and Places,Planning and Development Servs,132C,EAS Electrical Mechanical,29/03/2022,Eas Electrical Mechanical,,PE140001,63.00,0.00,Complete PAT testing Labour,Complete Pat Testing Labour,Maintenance of Tools or Equipment
Wyre Council,http://opendatacommunities.org/doc/district-council/wyre,30/03/2022,People and Places,Planning and Development Servs,132C,EAS Electrical Mechanical,29/03/2022,Eas Electrical Mechanical,,PE140632,1777.05,0.00,Install power supply and socket at Fleetwood Market,Install Power Supply And Socket At Fleetwood Market,Maintenance of Tools or Equipment
Wyre Council,http://opendatacommunities.org/doc/district-council/wyre,30/03/2022,People and Places,Planning and Development Servs,132C,EAS Electrical Mechanical,17/03/2022,Eas Electrical Mechanical,,PE140187,154.68,0.00,Isolated power in dance steps at Fleetwood Market,Isolated Power In Dance Steps At Fleetwood Market,Maintenance of Tools or Equipment
Wyre Council,http://opendatacommunities.org/doc/district-council/wyre,30/03/2022,People and Places,Planning and Development Servs,132C,Glasdon UK LTD,14/03/2022,Glasdon Uk Ltd,,PE139718,60.18,0.00,"Supply one black phoenix memorial bench plaque as attached PDF in the emailPlaque inscription to read as attached Please deliver bench to Copse Road Depot, Copse Road, Fleetwood.  Please contact Bob Greaves on 07967 116043 for access  and info","Supply One Black Phoenix Memorial Bench Plaque As Attached Pdf In The Emailplaque Inscription To Read As Attached Please Deliver Bench To Copse Road Depot, Copse Road, Fleetwood.  Please Contact Bob Greaves On 07967 116043 For Access  And Info",Maintenance of Tools or Equipment
Wyre Council,http://opendatacommunities.org/doc/district-council/wyre,30/03/2022,Resources,Parking Services,133F,VODAFONE LIMITED,16/03/2022,Vodafone Limited,,RS139775,27.00,0.00,Monthly Charges,Monthly Charges,Maintenance of Tools or Equipment
Wyre Council,http://opendatacommunities.org/doc/district-council/wyre,30/03/2022,People and Places,Cultural and Related Services,132A,JAMES ROBERTSHAW AND SONS (1954) LTD,22/03/2022,James Robertshaw And Sons (1954) Ltd,,PE139146,-1495.00,0.00,Works at marine hall,Works At Marine Hall,Maintenance of Tools or Equipment
Wyre Council,http://opendatacommunities.org/doc/district-council/wyre,30/03/2022,People and Places,Cultural and Related Services,132A,JAMES ROBERTSHAW AND SONS (1954) LTD,18/03/2022,James Robertshaw And Sons (1954) Ltd,,PE139146,1495.00,0.00,Works at marine hall,Works At Marine Hall,Maintenance of Tools or Equipment
Wyre Council,http://opendatacommunities.org/doc/district-council/wyre,30/03/2022,People and Places,Cultural and Related Services,132A,JAMES ROBERTSHAW AND SONS (1954) LTD,22/03/2022,James Robertshaw And Sons (1954) Ltd,,PE140342,430.84,0.00,Supply and install new support tubw at Marine Hall,Supply And Install New Support Tubw At Marine Hall,Maintenance of Tools or Equipment
Wyre Council,http://opendatacommunities.org/doc/district-council/wyre,30/03/2022,People and Places,Cultural and Related Services,132A,JAMES ROBERTSHAW AND SONS (1954) LTD,22/03/2022,James Robertshaw And Sons (1954) Ltd,,PE140342,1064.16,0.00,Supply and install new support tubw at Marine Hall,Supply And Install New Support Tubw At Marine Hall,Maintenance of Tools or Equipment
Wyre Council,http://opendatacommunities.org/doc/district-council/wyre,30/03/2022,People and Places,Highways,133B,Dr Tree Surgeons,25/03/2022,Dr Tree Surgeons,,PE140529,250.00,0.00,Quote Number: 511  highways tree O/s 16 Derby Rd PLFThe removal of one Laburnum tree to ground level . 150.00 1 Stump grind. 100.00Total Net Amount: 250.00VAT @ 20%: 50.00Quote Total: 300.00,Quote Number: 511  Highways Tree O/S 16 Derby Rd Plfthe Removal Of One Laburnum Tree To Ground Level . 150.00 1 Stump Grind. 100.00Total Net Amount: 250.00Vat @ 20%: 50.00Quote Total: 300.00,Maintenance of Trees and Shrubs
Wyre Council,http://opendatacommunities.org/doc/district-council/wyre,30/03/2022,People and Places,Environmental Services,132B,Andrew Signs LTD,21/03/2022,Andrew Signs Ltd,,PE140238,196.50,0.00,payment in ful of invoice INV-1159 for various goods from the direct works teams,Payment In Ful Of Invoice Inv-1159 For Various Goods From The Direct Works Teams,Materials and Consumables
Wyre Council,http://opendatacommunities.org/doc/district-council/wyre,30/03/2022,People and Places,Environmental Services,132B,Andrew Signs LTD,25/03/2022,Andrew Signs Ltd,,PE140541,254.00,0.00,payment of invoice  inv-1167 ( goods already received ),Payment Of Invoice  Inv-1167 ( Goods Already Received ),Materials and Consumables
Wyre Council,http://opendatacommunities.org/doc/district-council/wyre,30/03/2022,People and Places,Support Services,135B,EK Motors Factors LTD,30/03/2022,Ek Motors Factors Ltd,,PE140655,6.05,0.00,Parts,Parts,Materials and Consumables
Wyre Council,http://opendatacommunities.org/doc/district-council/wyre,30/03/2022,People and Places,Support Services,135B,EK Motors Factors LTD,17/03/2022,Ek Motors Factors Ltd,,PE140136,23.04,0.00,Parts,Parts,Materials and Consumables
Wyre Council,http://opendatacommunities.org/doc/district-council/wyre,30/03/2022,People and Places,Support Services,135B,EK Motors Factors LTD,30/03/2022,Ek Motors Factors Ltd,,PE140657,222.34,0.00,Parts,Parts,Materials and Consumables
Wyre Council,http://opendatacommunities.org/doc/district-council/wyre,30/03/2022,People and Places,Support Services,135B,EK Motors Factors LTD,30/03/2022,Ek Motors Factors Ltd,,PE140658,177.22,0.00,Parts,Parts,Materials and Consumables
Wyre Council,http://opendatacommunities.org/doc/district-council/wyre,30/03/2022,People and Places,Support Services,135B,EK Motors Factors LTD,17/03/2022,Ek Motors Factors Ltd,,PE140143,60.78,0.00,Parts,Parts,Materials and Consumables
Wyre Council,http://opendatacommunities.org/doc/district-council/wyre,30/03/2022,People and Places,Support Services,135B,EK Motors Factors LTD,17/03/2022,Ek Motors Factors Ltd,,PE140142,3.60,0.00,Parts,Parts,Materials and Consumables
Wyre Council,http://opendatacommunities.org/doc/district-council/wyre,30/03/2022,People and Places,Support Services,135B,EK Motors Factors LTD,17/03/2022,Ek Motors Factors Ltd,,PE140145,22.46,0.00,Parts,Parts,Materials and Consumables
Wyre Council,http://opendatacommunities.org/doc/district-council/wyre,30/03/2022,People and Places,Support Services,135B,EK Motors Factors LTD,17/03/2022,Ek Motors Factors Ltd,,PE140144,78.11,0.00,Parts,Parts,Materials and Consumables
Wyre Council,http://opendatacommunities.org/doc/district-council/wyre,30/03/2022,People and Places,Support Services,135B,EK Motors Factors LTD,17/03/2022,Ek Motors Factors Ltd,,PE140141,48.78,0.00,Parts,Parts,Materials and Consumables
Wyre Council,http://opendatacommunities.org/doc/district-council/wyre,30/03/2022,People and Places,Support Services,135B,Key Engineering & Hygiene Supplies LTD,25/03/2022,Key Engineering & Hygiene Supplies Ltd,,PE140014,37.40,0.00,SUPPLY AND DELIVER AS PER QUOTATION 12662 8/2/22  ESPHTGI360 1 GREEN 1 PLY INTER-FOLD HAND TOWEL 250L X 190W 3600 SHEETS 18.70 EACH 18.70,Supply And Deliver As Per Quotation 12662 8/2/22  Esphtgi360 1 Green 1 Ply Inter-Fold Hand Towel 250L X 190W 3600 Sheets 18.70 Each 18.70,Materials and Consumables
Wyre Council,http://opendatacommunities.org/doc/district-council/wyre,30/03/2022,People and Places,Support Services,135B,Malcolm McCulloch & Sons LTD,25/03/2022,Malcolm Mcculloch & Sons Ltd,,PE140549,273.00,0.00,420 ADBLUE @ 273.002 OVERALLS @ 155.0020 GRIP GLOVES @ 220,420 Adblue @ 273.002 Overalls @ 155.0020 Grip Gloves @ 220,Materials and Consumables
Wyre Council,http://opendatacommunities.org/doc/district-council/wyre,30/03/2022,People and Places,Support Services,135B,Malcolm McCulloch & Sons LTD,25/03/2022,Malcolm Mcculloch & Sons Ltd,,PE140549,220.00,0.00,420 ADBLUE @ 273.002 OVERALLS @ 155.0020 GRIP GLOVES @ 220,420 Adblue @ 273.002 Overalls @ 155.0020 Grip Gloves @ 220,Materials and Consumables
Wyre Council,http://opendatacommunities.org/doc/district-council/wyre,30/03/2022,People and Places,Environmental Services,132B,Malcolm McCulloch & Sons LTD,25/03/2022,Malcolm Mcculloch & Sons Ltd,,PE140548,223.50,0.00,150.00 TRAFFIC,150.00 Traffic,Materials and Consumables
Wyre Council,http://opendatacommunities.org/doc/district-council/wyre,30/03/2022,People and Places,Support Services,135B,Road Safety Services LTD,07/03/2022,Road Safety Services Ltd,,PE139840,320.00,0.00,"Confirmation order for Traffic management Scheme - Traffic lightsLocation on Fleetwood Road, by Nautical College, Fleetwood (as per attached map)Booked in job in for 23rd Feb 20221 OPP WITH VEH, 2 WAY LIGHTS ALL CH8 SIGNS CONES 1 DAY 320 As","Confirmation Order For Traffic Management Scheme - Traffic Lightslocation On Fleetwood Road, By Nautical College, Fleetwood (As Per Attached Map)Booked In Job In For 23Rd Feb 20221 Opp With Veh, 2 Way Lights All Ch8 Signs Cones 1 Day 320 As",Materials and Consumables
Wyre Council,http://opendatacommunities.org/doc/district-council/wyre,30/03/2022,People and Places,Support Services,135B,Smiths Equipment Hire,24/03/2022,Smiths Equipment Hire,,PE140411,216.00,0.00,12.0m Self prop boom (cherry picker) for flag pole at the civic 15/3/22,12.0M Self Prop Boom (Cherry Picker) For Flag Pole At The Civic 15/3/22,Materials and Consumables
Wyre Council,http://opendatacommunities.org/doc/district-council/wyre,30/03/2022,People and Places,Support Services,135B,Smiths Equipment Hire,24/03/2022,Smiths Equipment Hire,,PE140411,80.00,0.00,Delivery,Delivery,Materials and Consumables
Wyre Council,http://opendatacommunities.org/doc/district-council/wyre,30/03/2022,People and Places,Support Services,135B,Smiths Equipment Hire,24/03/2022,Smiths Equipment Hire,,PE140411,80.00,0.00,Collection,Collection,Materials and Consumables
Wyre Council,http://opendatacommunities.org/doc/district-council/wyre,30/03/2022,People and Places,Environmental Services,132B,Mogo UK,03/03/2022,Mogo Uk,,PE139813,14.90,0.00,Postage - rate 3,Postage - Rate 3,Materials and Consumables
Wyre Council,http://opendatacommunities.org/doc/district-council/wyre,30/03/2022,People and Places,Environmental Services,132B,Newauto Limited T/A Mogo,29/03/2022,Newauto Limited T/A Mogo,,PE140626,239.00,0.00,MDSV-1 Private Hire door sign,Mdsv-1 Private Hire Door Sign,Materials and Consumables
Wyre Council,http://opendatacommunities.org/doc/district-council/wyre,30/03/2022,People and Places,Environmental Services,132B,Newauto Limited T/A Mogo,29/03/2022,Newauto Limited T/A Mogo,,PE140626,113.40,0.00,MP-2 Hackney carriage rear printed plate,Mp-2 Hackney Carriage Rear Printed Plate,Materials and Consumables
Wyre Council,http://opendatacommunities.org/doc/district-council/wyre,30/03/2022,People and Places,Environmental Services,132B,Newauto Limited T/A Mogo,29/03/2022,Newauto Limited T/A Mogo,,PE140626,113.40,0.00,MP-2 Hackney Carriage front  printed plate,Mp-2 Hackney Carriage Front  Printed Plate,Materials and Consumables
Wyre Council,http://opendatacommunities.org/doc/district-council/wyre,30/03/2022,People and Places,Environmental Services,132B,Newauto Limited T/A Mogo,29/03/2022,Newauto Limited T/A Mogo,,PE140626,17.40,0.00,IP-3-D Internal plate Hackney,Ip-3-D Internal Plate Hackney,Materials and Consumables
Wyre Council,http://opendatacommunities.org/doc/district-council/wyre,30/03/2022,People and Places,Environmental Services,132B,Newauto Limited T/A Mogo,29/03/2022,Newauto Limited T/A Mogo,,PE140626,30.00,0.00,SSP-Int Self seal Internal,Ssp-Int Self Seal Internal,Materials and Consumables
Wyre Council,http://opendatacommunities.org/doc/district-council/wyre,30/03/2022,People and Places,Environmental Services,132B,Newauto Limited T/A Mogo,29/03/2022,Newauto Limited T/A Mogo,,PE140626,44.40,0.00,WP-1 Windscreen Pouch,Wp-1 Windscreen Pouch,Materials and Consumables
Wyre Council,http://opendatacommunities.org/doc/district-council/wyre,30/03/2022,People and Places,Environmental Services,132B,Newauto Limited T/A Mogo,29/03/2022,Newauto Limited T/A Mogo,,PE140626,14.90,0.00,Postage rate 3,Postage Rate 3,Materials and Consumables
Wyre Council,http://opendatacommunities.org/doc/district-council/wyre,30/03/2022,People and Places,Environmental Services,132B,Mogo UK,03/03/2022,Mogo Uk,,PE139814,29.00,0.00,IP-3-C Mogo Internal Plate A4 Tear Out Hackney Carriage,Ip-3-C Mogo Internal Plate A4 Tear Out Hackney Carriage,Materials and Consumables
Wyre Council,http://opendatacommunities.org/doc/district-council/wyre,30/03/2022,People and Places,Environmental Services,132B,Mogo UK,03/03/2022,Mogo Uk,,PE139814,29.00,0.00,IP-3-C Mogo Internal Plate A4 Tear Out Private Hire,Ip-3-C Mogo Internal Plate A4 Tear Out Private Hire,Materials and Consumables
Wyre Council,http://opendatacommunities.org/doc/district-council/wyre,30/03/2022,People and Places,Environmental Services,132B,Mogo UK,03/03/2022,Mogo Uk,,PE139814,7.90,0.00,Postage,Postage,Materials and Consumables
Wyre Council,http://opendatacommunities.org/doc/district-council/wyre,30/03/2022,People and Places,Environmental Services,132B,Mogo UK,03/03/2022,Mogo Uk,,PE139813,29.00,0.00,IP - 3- C Mogo internal plate A4 tear out plate - Hackney,Ip - 3- C Mogo Internal Plate A4 Tear Out Plate - Hackney,Materials and Consumables
Wyre Council,http://opendatacommunities.org/doc/district-council/wyre,30/03/2022,People and Places,Environmental Services,132B,Mogo UK,03/03/2022,Mogo Uk,,PE139813,74.00,0.00,WP-1 Windscreen Pouch,Wp-1 Windscreen Pouch,Materials and Consumables
Wyre Council,http://opendatacommunities.org/doc/district-council/wyre,30/03/2022,People and Places,Environmental Services,132B,Mogo UK,03/03/2022,Mogo Uk,,PE139813,50.00,0.00,SSP -INT Self seal (internals),Ssp -Int Self Seal (Internals),Materials and Consumables
Wyre Council,http://opendatacommunities.org/doc/district-council/wyre,30/03/2022,People and Places,Environmental Services,132B,Mogo UK,03/03/2022,Mogo Uk,,PE139813,95.60,0.00,MDSV -1 Mogo door sign - vinyl private hire,Mdsv -1 Mogo Door Sign - Vinyl Private Hire,Materials and Consumables
Wyre Council,http://opendatacommunities.org/doc/district-council/wyre,30/03/2022,Resources,Support Services,135B,TMR Executive Agency LTD,24/03/2022,Tmr Executive Agency Ltd,,RS140293,169.95,0.00,TMR Postal Rate Change Franking Machine,Tmr Postal Rate Change Franking Machine,Materials and Consumables
Wyre Council,http://opendatacommunities.org/doc/district-council/wyre,30/03/2022,People and Places,Environmental Services,132B,Probrush T/A Northern Municipal Spares LTD,14/03/2022,Probrush T/A Northern Municipal Spares Ltd,,PE139730,1593.15,0.00,Parts,Parts,Materials and Consumables
Wyre Council,http://opendatacommunities.org/doc/district-council/wyre,30/03/2022,People and Places,Support Services,135B,Agrovista UK LTD,21/03/2022,Agrovista Uk Ltd,,PE139844,294.00,0.00,Supply and deliver the following:-costnumbertotalEcomark24.512294,Supply And Deliver The Following:-Costnumbertotalecomark24.512294,Materials and Consumables
Wyre Council,http://opendatacommunities.org/doc/district-council/wyre,30/03/2022,People and Places,Support Services,135B,Agrovista UK LTD,21/03/2022,Agrovista Uk Ltd,,PE139844,788.00,0.00,roundup 48078.810788,Roundup 48078.810788,Materials and Consumables
Wyre Council,http://opendatacommunities.org/doc/district-council/wyre,30/03/2022,People and Places,Support Services,135B,Agrovista UK LTD,21/03/2022,Agrovista Uk Ltd,,PE139844,94.40,0.00,icade47.2294.4,Icade47.2294.4,Materials and Consumables
Wyre Council,http://opendatacommunities.org/doc/district-council/wyre,30/03/2022,People and Places,Support Services,135B,Agrovista UK LTD,21/03/2022,Agrovista Uk Ltd,,PE139844,93.75,0.00,go green31.25393.75,Go Green31.25393.75,Materials and Consumables
Wyre Council,http://opendatacommunities.org/doc/district-council/wyre,30/03/2022,People and Places,Support Services,135B,Agrovista UK LTD,21/03/2022,Agrovista Uk Ltd,,PE139844,20.00,0.00,"Delivery to Wyre Council, Copse Road Depot, Copse Road, Fleetwood, Lancashire, FY7 6RP.","Delivery To Wyre Council, Copse Road Depot, Copse Road, Fleetwood, Lancashire, Fy7 6Rp.",Materials and Consumables
Wyre Council,http://opendatacommunities.org/doc/district-council/wyre,30/03/2022,People and Places,Support Services,135B,Agrovista UK LTD,21/03/2022,Agrovista Uk Ltd,,PE140228,224.00,0.00,dualitas1122224,Dualitas1122224,Materials and Consumables
Wyre Council,http://opendatacommunities.org/doc/district-council/wyre,30/03/2022,People and Places,Environmental Services,132B,John H Mayor And Sons LTD,23/03/2022,John H Mayor And Sons Ltd,,PE140283,3666.00,0.00,78.00 - 5.2X225x75 U/T @ 47.00 per unit @ 3666.00,78.00 - 5.2X225X75 U/T @ 47.00 Per Unit @ 3666.00,Materials and Consumables
Wyre Council,http://opendatacommunities.org/doc/district-council/wyre,30/03/2022,People and Places,Environmental Services,132B,John H Mayor And Sons LTD,23/03/2022,John H Mayor And Sons Ltd,,PE140283,40.00,0.00,Delivery charge,Delivery Charge,Materials and Consumables
Wyre Council,http://opendatacommunities.org/doc/district-council/wyre,30/03/2022,People and Places,Environmental Services,132B,Aitch Tools & Fasteners LTD,17/03/2022,Aitch Tools & Fasteners Ltd,,PE140135,5371.60,0.00,Materials,Materials,Materials and Consumables
Wyre Council,http://opendatacommunities.org/doc/district-council/wyre,30/03/2022,People and Places,Cultural and Related Services,132A,HUWS GRAY LTD,25/03/2022,Huws Gray Ltd,,PE138949,160.00,0.00,1 x 5 bar 10ft gate,1 X 5 Bar 10Ft Gate,Materials and Consumables
Wyre Council,http://opendatacommunities.org/doc/district-council/wyre,30/03/2022,People and Places,Cultural and Related Services,132A,HUWS GRAY LTD,25/03/2022,Huws Gray Ltd,,PE138949,34.40,0.00,variety of coach bolts and screws,Variety Of Coach Bolts And Screws,Materials and Consumables
Wyre Council,http://opendatacommunities.org/doc/district-council/wyre,30/03/2022,People and Places,Support Services,135B,HUWS GRAY LTD,28/03/2022,Huws Gray Ltd,,PE140176,109.88,0.00,2 x 2440x1220x12mm Marine Ply @ 50 each + 100 1 100x47mm 3600mm timber @ 9.88,2 X 2440X1220X12Mm Marine Ply @ 50 Each + 100 1 100X47Mm 3600Mm Timber @ 9.88,Materials and Consumables
Wyre Council,http://opendatacommunities.org/doc/district-council/wyre,30/03/2022,People and Places,Support Services,135B,HUWS GRAY LTD,25/03/2022,Huws Gray Ltd,,PE138949,112.68,0.00,1 Werner 6 Tread Fibreglass builders step @ 95.23 1 x Wood Adhesive @ 17.45,1 Werner 6 Tread Fibreglass Builders Step @ 95.23 1 X Wood Adhesive @ 17.45,Materials and Consumables
Wyre Council,http://opendatacommunities.org/doc/district-council/wyre,30/03/2022,People and Places,Support Services,135B,HUWS GRAY LTD,25/03/2022,Huws Gray Ltd,,PE138949,51.43,0.00,1 Maxidry gloves @ 4.87 1 Linseed oil @ 7.88 1 Wood Adhesive @ 6.62 1 Primer @ 17.46 1 water container @ 14.60,1 Maxidry Gloves @ 4.87 1 Linseed Oil @ 7.88 1 Wood Adhesive @ 6.62 1 Primer @ 17.46 1 Water Container @ 14.60,Materials and Consumables
Wyre Council,http://opendatacommunities.org/doc/district-council/wyre,30/03/2022,People and Places,Support Services,135B,HUWS GRAY LTD,25/03/2022,Huws Gray Ltd,,PE138949,59.81,0.00,2 Gate eyes @ 17.76 10 Roofing bolts @ 1.90 2 Hippo grip tape @ 21.16 1 Storage box @ 18.99,2 Gate Eyes @ 17.76 10 Roofing Bolts @ 1.90 2 Hippo Grip Tape @ 21.16 1 Storage Box @ 18.99,Materials and Consumables
Wyre Council,http://opendatacommunities.org/doc/district-council/wyre,30/03/2022,People and Places,Support Services,135B,HUWS GRAY LTD,25/03/2022,Huws Gray Ltd,,PE138949,6.59,0.00,1 Wire brush @ 3.26 1 Coco brush @ 3.33,1 Wire Brush @ 3.26 1 Coco Brush @ 3.33,Materials and Consumables
Wyre Council,http://opendatacommunities.org/doc/district-council/wyre,30/03/2022,People and Places,Support Services,135B,HUWS GRAY LTD,25/03/2022,Huws Gray Ltd,,PE138949,55.79,0.00,1 Earth Magnet @ 19.99 1 Double plumb @ 19.56 1 Studding @ 1.50 2 Nut full hex @ 0.06 15 Washers @ 0.90 1 Wire broom @ 13.78,1 Earth Magnet @ 19.99 1 Double Plumb @ 19.56 1 Studding @ 1.50 2 Nut Full Hex @ 0.06 15 Washers @ 0.90 1 Wire Broom @ 13.78,Materials and Consumables
Wyre Council,http://opendatacommunities.org/doc/district-council/wyre,30/03/2022,People and Places,Support Services,135B,HUWS GRAY LTD,25/03/2022,Huws Gray Ltd,,PE138949,78.22,0.00,2 Studding @ 2.80 20 Washers @ 0.40 20 Nuts @ 0.80 1 Gorilla tub @ 1.22 2 Scaffold board @ 73.00,2 Studding @ 2.80 20 Washers @ 0.40 20 Nuts @ 0.80 1 Gorilla Tub @ 1.22 2 Scaffold Board @ 73.00,Materials and Consumables
Wyre Council,http://opendatacommunities.org/doc/district-council/wyre,30/03/2022,People and Places,Support Services,135B,HUWS GRAY LTD,25/03/2022,Huws Gray Ltd,,PE138949,117.39,0.00,1 Storage box @ 18.99 1 Wood Adhesive @ 6.62 2 Hippo tape @ 18.32 1 Clamps 12.29 1 Chisel set and wallet @ 61.17,1 Storage Box @ 18.99 1 Wood Adhesive @ 6.62 2 Hippo Tape @ 18.32 1 Clamps 12.29 1 Chisel Set And Wallet @ 61.17,Materials and Consumables
Wyre Council,http://opendatacommunities.org/doc/district-council/wyre,30/03/2022,People and Places,Support Services,135B,HUWS GRAY LTD,17/03/2022,Huws Gray Ltd,,PE140125,103.10,0.00,SUPPLY MATERIALS AS PER QUOTATION H5L06140 15FEB22  TO BE COLLECTED W/B 14 FEB OR W/B 21 FEB  2440 x 1220 x 12mm MARINE PLYWOOD CE2+ 50.00 100.00  BS1088:2003 EN636-3 EN314-2 CLASS 3 3rd PTY APPR TI700260 ATTENTION TO & MAINTAINANCE OF A WATERPROOF SEAL I,Supply Materials As Per Quotation H5L06140 15Feb22  To Be Collected W/B 14 Feb Or W/B 21 Feb  2440 X 1220 X 12Mm Marine Plywood Ce2+ 50.00 100.00  Bs1088:2003 En636-3 En314-2 Class 3 3Rd Pty Appr Ti700260 Attention To & Maintainance Of A Waterproof Seal I,Materials and Consumables
Wyre Council,http://opendatacommunities.org/doc/district-council/wyre,30/03/2022,People and Places,Support Services,135B,HUWS GRAY LTD,07/03/2022,Huws Gray Ltd,,PE139465,31.70,0.00,Collected FROM POULTON Advice note A8823994 11Jan22 Order ref EPE0004242 12 CUP SQUARE BOLT & NUT BZP M12 x 130mm OJ472881 0.92 11.04 20.00% 12 NYLOC NUTS TYPE T M12 OJ243092 0.18 2.16 20.00% 12 BZP BRIGHT STEEL WASHERS TYPE A M12 OJ125367 0.10 1.20 20.00,Collected From Poulton Advice Note A8823994 11Jan22 Order Ref Epe0004242 12 Cup Square Bolt & Nut Bzp M12 X 130Mm Oj472881 0.92 11.04 20.00% 12 Nyloc Nuts Type T M12 Oj243092 0.18 2.16 20.00% 12 Bzp Bright Steel Washers Type A M12 Oj125367 0.10 1.20 20.00,Materials and Consumables
Wyre Council,http://opendatacommunities.org/doc/district-council/wyre,30/03/2022,People and Places,Support Services,135B,HUWS GRAY LTD,07/03/2022,Huws Gray Ltd,,PE139465,25.78,0.00,"Collected FROM POULTON Advice note A8824191 19Jan22 Order ref epe0004245 9.6 GREEN BATTEN TYPE A UNGRADED 50 x 25mm PER METRE 0.89 8.54 20.00% 70% PEFC CERTIFIED SA-PEFC/COC-002262 2/4.8, 2 pieces 0.012m3 2 SPARKPAK CP139 4.8 x 200mm CABLE TIES BLACK 3.31","Collected From Poulton Advice Note A8824191 19Jan22 Order Ref Epe0004245 9.6 Green Batten Type A Ungraded 50 X 25Mm Per Metre 0.89 8.54 20.00% 70% Pefc Certified Sa-Pefc/Coc-002262 2/4.8, 2 Pieces 0.012M3 2 Sparkpak Cp139 4.8 X 200Mm Cable Ties Black 3.31",Materials and Consumables
Wyre Council,http://opendatacommunities.org/doc/district-council/wyre,30/03/2022,People and Places,Environmental Services,132B,George Hewitt Fabrications,17/03/2022,George Hewitt Fabrications,,PE140167,6800.00,0.00,55 Sandblast and paint 55 bench ends. 100 5500Repair and welding of broken cast iron benches 30010 Stainless steel threaded rods for sea defencegates100 1000,55 Sandblast And Paint 55 Bench Ends. 100 5500Repair And Welding Of Broken Cast Iron Benches 30010 Stainless Steel Threaded Rods For Sea Defencegates100 1000,Materials and Consumables
Wyre Council,http://opendatacommunities.org/doc/district-council/wyre,30/03/2022,Resources,Support Services,135B,Amazon Business,22/03/2022,Amazon Business,,RS139795,3.98,0.00,Panasonic D cell Zinc Carbon Single Use Batteries 4 Batteries (2x2 Packs),Panasonic D Cell Zinc Carbon Single Use Batteries 4 Batteries (2X2 Packs),Materials and Consumables
Wyre Council,http://opendatacommunities.org/doc/district-council/wyre,30/03/2022,Resources,Support Services,135B,Amazon Business,22/03/2022,Amazon Business,,RS139797,4.94,0.00,Panasonic R14RZ-2BP Zinc Chloride C Size Battery - 4 Packs of two.,Panasonic R14Rz-2Bp Zinc Chloride C Size Battery - 4 Packs Of Two.,Materials and Consumables
Wyre Council,http://opendatacommunities.org/doc/district-council/wyre,30/03/2022,Resources,Support Services,135B,Amazon Business,22/03/2022,Amazon Business,,RS139809,6.67,0.00,"Energizer AAA Batteries, Alkaline Power, 24 Family Pack","Energizer Aaa Batteries, Alkaline Power, 24 Family Pack",Materials and Consumables
Wyre Council,http://opendatacommunities.org/doc/district-council/wyre,30/03/2022,Resources,Support Services,135B,Amazon Business,25/03/2022,Amazon Business,,RS140448,10.00,0.00,100 x Dyestar Blank White PVC Cards for ID Card Badge Printing | Compatible with All Plastic Card Printers | 760 Micron and CR80 Sized - Credit Card Size,100 X Dyestar Blank White Pvc Cards For Id Card Badge Printing | Compatible With All Plastic Card Printers | 760 Micron And Cr80 Sized - Credit Card Size,Materials and Consumables
Wyre Council,http://opendatacommunities.org/doc/district-council/wyre,30/03/2022,Resources,Support Services,135B,Amazon Business,08/03/2022,Amazon Business,,RS139858,5.68,0.00,Amazon Basics 9 Volt Everyday Alkaline Batteries - Pack of 8,Amazon Basics 9 Volt Everyday Alkaline Batteries - Pack Of 8,Materials and Consumables
Wyre Council,http://opendatacommunities.org/doc/district-council/wyre,30/03/2022,People and Places,Cultural and Related Services,132A,Non Slip Shop Ltd,28/03/2022,Non Slip Shop Ltd,,PE140592,1897.80,0.00,400 white non slip grip strips,400 White Non Slip Grip Strips,Materials and Consumables
Wyre Council,http://opendatacommunities.org/doc/district-council/wyre,30/03/2022,Resources,Housing General Fund,134A,Huck Properties LTD,16/03/2022,Huck Properties Ltd,,RS140086,210.00,0.00,REDACT,Redact,Minor Adaptations
Wyre Council,http://opendatacommunities.org/doc/district-council/wyre,30/03/2022,Resources,Housing General Fund,134A,Huck Properties LTD,08/03/2022,Huck Properties Ltd,,RS139864,480.00,0.00,REDACT,Redact,Minor Adaptations
Wyre Council,http://opendatacommunities.org/doc/district-council/wyre,30/03/2022,Resources,Housing General Fund,134A,Mobility Care Services,08/03/2022,Mobility Care Services,,RS139851,374.00,0.00,REDACT,Redact,Minor Adaptations
Wyre Council,http://opendatacommunities.org/doc/district-council/wyre,30/03/2022,Resources,Housing General Fund,134A,Mobility Care Services,08/03/2022,Mobility Care Services,,RS139850,220.00,0.00,REDACT,Redact,Minor Adaptations
Wyre Council,http://opendatacommunities.org/doc/district-council/wyre,30/03/2022,Resources,Housing General Fund,134A,Mobility Care Services,14/03/2022,Mobility Care Services,,RS139941,132.00,0.00,REDACT,Redact,Minor Adaptations
Wyre Council,http://opendatacommunities.org/doc/district-council/wyre,30/03/2022,Resources,Housing General Fund,134A,Mobility Care Services,14/03/2022,Mobility Care Services,,RS139945,320.00,0.00,REDACT,Redact,Minor Adaptations
Wyre Council,http://opendatacommunities.org/doc/district-council/wyre,30/03/2022,Resources,Housing General Fund,134A,Mobility Care Services,14/03/2022,Mobility Care Services,,RS139944,132.00,0.00,REDACT,Redact,Minor Adaptations
Wyre Council,http://opendatacommunities.org/doc/district-council/wyre,30/03/2022,Resources,Housing General Fund,134A,Mobility Care Services,14/03/2022,Mobility Care Services,,RS139943,55.00,0.00,REDACT,Redact,Minor Adaptations
Wyre Council,http://opendatacommunities.org/doc/district-council/wyre,30/03/2022,Resources,Housing General Fund,134A,Mobility Care Services,14/03/2022,Mobility Care Services,,RS139942,66.00,0.00,REDACT,Redact,Minor Adaptations
Wyre Council,http://opendatacommunities.org/doc/district-council/wyre,30/03/2022,People and Places,Housing General Fund,134A,Mobility Care Services,21/03/2022,Mobility Care Services,,PE140328,441.00,0.00,REDACT,Redact,Minor Adaptations
Wyre Council,http://opendatacommunities.org/doc/district-council/wyre,30/03/2022,People and Places,Housing General Fund,134A,Mobility Care Services,21/03/2022,Mobility Care Services,,PE140333,374.00,0.00,REDACT,Redact,Minor Adaptations
Wyre Council,http://opendatacommunities.org/doc/district-council/wyre,30/03/2022,People and Places,Housing General Fund,134A,Mobility Care Services,21/03/2022,Mobility Care Services,,PE140332,441.00,0.00,REDACT,Redact,Minor Adaptations
Wyre Council,http://opendatacommunities.org/doc/district-council/wyre,30/03/2022,People and Places,Housing General Fund,134A,Mobility Care Services,21/03/2022,Mobility Care Services,,PE140331,132.00,0.00,REDACT,Redact,Minor Adaptations
Wyre Council,http://opendatacommunities.org/doc/district-council/wyre,30/03/2022,People and Places,Housing General Fund,134A,Mobility Care Services,21/03/2022,Mobility Care Services,,PE140330,66.00,0.00,REDACT,Redact,Minor Adaptations
Wyre Council,http://opendatacommunities.org/doc/district-council/wyre,30/03/2022,People and Places,Housing General Fund,134A,Mobility Care Services,21/03/2022,Mobility Care Services,,PE140329,198.00,0.00,REDACT,Redact,Minor Adaptations
Wyre Council,http://opendatacommunities.org/doc/district-council/wyre,30/03/2022,People and Places,Housing General Fund,134A,Mobility Care Services,21/03/2022,Mobility Care Services,,PE140327,680.00,0.00,REDACT,Redact,Minor Adaptations
Wyre Council,http://opendatacommunities.org/doc/district-council/wyre,30/03/2022,People and Places,Housing General Fund,134A,Mobility Care Services,21/03/2022,Mobility Care Services,,PE140326,160.00,0.00,REDACT,Redact,Minor Adaptations
Wyre Council,http://opendatacommunities.org/doc/district-council/wyre,30/03/2022,Resources,Housing General Fund,134A,J A DICKENS LIMITED,21/03/2022,J A Dickens Limited,,RS140212,400.00,0.00,REDACT,Redact,Minor Adaptations
Wyre Council,http://opendatacommunities.org/doc/district-council/wyre,30/03/2022,Resources,Housing General Fund,134A,J A DICKENS LIMITED,21/03/2022,J A Dickens Limited,,RS140212,390.00,0.00,REDACT,Redact,Minor Adaptations
Wyre Council,http://opendatacommunities.org/doc/district-council/wyre,30/03/2022,Resources,Housing General Fund,134A,J A DICKENS LIMITED,21/03/2022,J A Dickens Limited,,RS140208,80.00,0.00,REDACT,Redact,Minor Adaptations
Wyre Council,http://opendatacommunities.org/doc/district-council/wyre,30/03/2022,Resources,Housing General Fund,134A,J A DICKENS LIMITED,21/03/2022,J A Dickens Limited,,RS140208,53.00,0.00,REDACT,Redact,Minor Adaptations
Wyre Council,http://opendatacommunities.org/doc/district-council/wyre,30/03/2022,Resources,Housing General Fund,134A,J A DICKENS LIMITED,21/03/2022,J A Dickens Limited,,RS140209,60.00,0.00,REDACT,Redact,Minor Adaptations
Wyre Council,http://opendatacommunities.org/doc/district-council/wyre,30/03/2022,Resources,Housing General Fund,134A,J A DICKENS LIMITED,21/03/2022,J A Dickens Limited,,RS140209,94.00,0.00,REDACT,Redact,Minor Adaptations
Wyre Council,http://opendatacommunities.org/doc/district-council/wyre,30/03/2022,Resources,Housing General Fund,134A,J A DICKENS LIMITED,21/03/2022,J A Dickens Limited,,RS140210,60.00,0.00,REDACT,Redact,Minor Adaptations
Wyre Council,http://opendatacommunities.org/doc/district-council/wyre,30/03/2022,Resources,Housing General Fund,134A,J A DICKENS LIMITED,09/03/2022,J A Dickens Limited,,RS139867,380.00,0.00,REDACT,Redact,Minor Adaptations
Wyre Council,http://opendatacommunities.org/doc/district-council/wyre,30/03/2022,Resources,Housing General Fund,134A,J A DICKENS LIMITED,09/03/2022,J A Dickens Limited,,RS139867,420.00,0.00,REDACT,Redact,Minor Adaptations
Wyre Council,http://opendatacommunities.org/doc/district-council/wyre,30/03/2022,Resources,Housing General Fund,134A,J A DICKENS LIMITED,09/03/2022,J A Dickens Limited,,RS139868,100.00,0.00,REDACT,Redact,Minor Adaptations
Wyre Council,http://opendatacommunities.org/doc/district-council/wyre,30/03/2022,Resources,Housing General Fund,134A,J A DICKENS LIMITED,09/03/2022,J A Dickens Limited,,RS139868,208.00,0.00,REDACT,Redact,Minor Adaptations
Wyre Council,http://opendatacommunities.org/doc/district-council/wyre,30/03/2022,Resources,Housing General Fund,134A,J A DICKENS LIMITED,21/03/2022,J A Dickens Limited,,RS140210,94.00,0.00,REDACT,Redact,Minor Adaptations
Wyre Council,http://opendatacommunities.org/doc/district-council/wyre,30/03/2022,Resources,Housing General Fund,134A,J A DICKENS LIMITED,21/03/2022,J A Dickens Limited,,RS140211,140.00,0.00,REDACT,Redact,Minor Adaptations
Wyre Council,http://opendatacommunities.org/doc/district-council/wyre,30/03/2022,Resources,Housing General Fund,134A,J A DICKENS LIMITED,21/03/2022,J A Dickens Limited,,RS140211,168.00,0.00,REDACT,Redact,Minor Adaptations
Wyre Council,http://opendatacommunities.org/doc/district-council/wyre,30/03/2022,Resources,Housing General Fund,134A,J A DICKENS LIMITED,29/03/2022,J A Dickens Limited,,RS140396,60.00,0.00,REDACT,Redact,Minor Adaptations
Wyre Council,http://opendatacommunities.org/doc/district-council/wyre,30/03/2022,Resources,Housing General Fund,134A,J A DICKENS LIMITED,29/03/2022,J A Dickens Limited,,RS140396,73.00,0.00,REDACT,Redact,Minor Adaptations
Wyre Council,http://opendatacommunities.org/doc/district-council/wyre,30/03/2022,Resources,Housing General Fund,134A,J A DICKENS LIMITED,29/03/2022,J A Dickens Limited,,RS140385,60.00,0.00,REDACT,Redact,Minor Adaptations
Wyre Council,http://opendatacommunities.org/doc/district-council/wyre,30/03/2022,Resources,Housing General Fund,134A,J A DICKENS LIMITED,29/03/2022,J A Dickens Limited,,RS140385,94.00,0.00,REDACT,Redact,Minor Adaptations
Wyre Council,http://opendatacommunities.org/doc/district-council/wyre,30/03/2022,Resources,Housing General Fund,134A,J A DICKENS LIMITED,29/03/2022,J A Dickens Limited,,RS140395,60.00,0.00,REDACT,Redact,Minor Adaptations
Wyre Council,http://opendatacommunities.org/doc/district-council/wyre,30/03/2022,Resources,Housing General Fund,134A,J A DICKENS LIMITED,29/03/2022,J A Dickens Limited,,RS140395,94.00,0.00,REDACT,Redact,Minor Adaptations
Wyre Council,http://opendatacommunities.org/doc/district-council/wyre,30/03/2022,Resources,Current Liabilities,130C,DEPARTMENT FOR COMMUNITIES AND LOCAL GOVERNMENT,03/03/2022,Department For Communities And Local Government,,RS139828,9524689.00,0.00,3700139100BR Grant Clawback Customer Number 100167,3700139100Br Grant Clawback Customer Number 100167,Miscellaneous Debits
Wyre Council,http://opendatacommunities.org/doc/district-council/wyre,30/03/2022,Resources,Current Liabilities,130C,"Department for Business, Energy & Industrial Strat",23/03/2022,"Department For Business, Energy & Industrial Strat",,RS140417,368190.00,0.00,Restart Grant (ref: 21RG316)  Wyre Council,Restart Grant (Ref: 21Rg316)  Wyre Council,Miscellaneous Debits
Wyre Council,http://opendatacommunities.org/doc/district-council/wyre,30/03/2022,Resources,Support Services,135B,Orange PCS LTD,14/03/2022,Orange Pcs Ltd,,RS139770,85.54,0.00,Monthly Charges,Monthly Charges,Mobile Devices
Wyre Council,http://opendatacommunities.org/doc/district-council/wyre,30/03/2022,Resources,Support Services,135B,Orange PCS LTD,16/03/2022,Orange Pcs Ltd,,RS139771,18.00,0.00,Monthly Charges,Monthly Charges,Mobile Devices
Wyre Council,http://opendatacommunities.org/doc/district-council/wyre,30/03/2022,Resources,Support Services,135B,Orange PCS LTD,16/03/2022,Orange Pcs Ltd,,RS139771,10.00,0.00,Monthly Charges,Monthly Charges,Mobile Devices
Wyre Council,http://opendatacommunities.org/doc/district-council/wyre,30/03/2022,Resources,Support Services,135B,Orange PCS LTD,16/03/2022,Orange Pcs Ltd,,RS139771,67.24,0.00,Monthly Charges,Monthly Charges,Mobile Devices
Wyre Council,http://opendatacommunities.org/doc/district-council/wyre,30/03/2022,Resources,Support Services,135B,Orange PCS LTD,14/03/2022,Orange Pcs Ltd,,RS139770,2.75,0.00,Monthly Charges,Monthly Charges,Mobile Devices
Wyre Council,http://opendatacommunities.org/doc/district-council/wyre,30/03/2022,Resources,Support Services,135B,Orange PCS LTD,16/03/2022,Orange Pcs Ltd,,RS139771,65.50,0.00,Monthly Charges,Monthly Charges,Mobile Devices
Wyre Council,http://opendatacommunities.org/doc/district-council/wyre,30/03/2022,Resources,Support Services,135B,Orange PCS LTD,16/03/2022,Orange Pcs Ltd,,RS139771,4.21,0.00,Monthly Charges,Monthly Charges,Mobile Devices
Wyre Council,http://opendatacommunities.org/doc/district-council/wyre,30/03/2022,Resources,Support Services,135B,Orange PCS LTD,14/03/2022,Orange Pcs Ltd,,RS139770,24.50,0.00,Monthly Charges,Monthly Charges,Mobile Devices
Wyre Council,http://opendatacommunities.org/doc/district-council/wyre,30/03/2022,Resources,Support Services,135B,Orange PCS LTD,14/03/2022,Orange Pcs Ltd,,RS139770,19.50,0.00,Monthly Charges,Monthly Charges,Mobile Devices
Wyre Council,http://opendatacommunities.org/doc/district-council/wyre,30/03/2022,Resources,Support Services,135B,Orange PCS LTD,14/03/2022,Orange Pcs Ltd,,RS139770,21.84,0.00,Monthly Charges,Monthly Charges,Mobile Devices
Wyre Council,http://opendatacommunities.org/doc/district-council/wyre,30/03/2022,Resources,Support Services,135B,Orange PCS LTD,14/03/2022,Orange Pcs Ltd,,RS139770,19.44,0.00,Monthly Charges,Monthly Charges,Mobile Devices
Wyre Council,http://opendatacommunities.org/doc/district-council/wyre,30/03/2022,Resources,Support Services,135B,Orange PCS LTD,14/03/2022,Orange Pcs Ltd,,RS139770,19.50,0.00,Monthly Charges,Monthly Charges,Mobile Devices
Wyre Council,http://opendatacommunities.org/doc/district-council/wyre,30/03/2022,Resources,Support Services,135B,Orange PCS LTD,16/03/2022,Orange Pcs Ltd,,RS139771,5.50,0.00,Monthly Charges,Monthly Charges,Mobile Devices
Wyre Council,http://opendatacommunities.org/doc/district-council/wyre,30/03/2022,Resources,Support Services,135B,Orange PCS LTD,16/03/2022,Orange Pcs Ltd,,RS139771,17.50,0.00,Monthly Charges,Monthly Charges,Mobile Devices
Wyre Council,http://opendatacommunities.org/doc/district-council/wyre,30/03/2022,Resources,Support Services,135B,Orange PCS LTD,16/03/2022,Orange Pcs Ltd,,RS139771,-2.02,0.00,Monthly Charges,Monthly Charges,Mobile Devices
Wyre Council,http://opendatacommunities.org/doc/district-council/wyre,30/03/2022,Resources,Support Services,135B,Orange PCS LTD,16/03/2022,Orange Pcs Ltd,,RS139771,2.75,0.00,Monthly Charges,Monthly Charges,Mobile Devices
Wyre Council,http://opendatacommunities.org/doc/district-council/wyre,30/03/2022,Resources,Support Services,135B,Orange PCS LTD,16/03/2022,Orange Pcs Ltd,,RS139771,7.24,0.00,Monthly Charges,Monthly Charges,Mobile Devices
Wyre Council,http://opendatacommunities.org/doc/district-council/wyre,30/03/2022,Resources,Parking Services,133F,Orange PCS LTD,16/03/2022,Orange Pcs Ltd,,RS139771,4.49,0.00,Monthly Charges,Monthly Charges,Mobile Devices
Wyre Council,http://opendatacommunities.org/doc/district-council/wyre,30/03/2022,Resources,Housing General Fund,134A,Orange PCS LTD,16/03/2022,Orange Pcs Ltd,,RS139771,109.73,0.00,Monthly Charges,Monthly Charges,Mobile Devices
Wyre Council,http://opendatacommunities.org/doc/district-council/wyre,30/03/2022,Resources,Support Services,135B,Orange PCS LTD,16/03/2022,Orange Pcs Ltd,,RS139771,-3.50,0.00,Monthly Charges,Monthly Charges,Mobile Devices
Wyre Council,http://opendatacommunities.org/doc/district-council/wyre,30/03/2022,Resources,Support Services,135B,Orange PCS LTD,16/03/2022,Orange Pcs Ltd,,RS139771,74.01,0.00,Monthly Charges,Monthly Charges,Mobile Devices
Wyre Council,http://opendatacommunities.org/doc/district-council/wyre,30/03/2022,Resources,Cultural and Related Services,132A,Orange PCS LTD,16/03/2022,Orange Pcs Ltd,,RS139771,-1.10,0.00,Monthly Charges,Monthly Charges,Mobile Devices
Wyre Council,http://opendatacommunities.org/doc/district-council/wyre,30/03/2022,Resources,Environmental Services,132B,Orange PCS LTD,16/03/2022,Orange Pcs Ltd,,RS139771,-1.01,0.00,Monthly Charges,Monthly Charges,Mobile Devices
Wyre Council,http://opendatacommunities.org/doc/district-council/wyre,30/03/2022,Resources,Environmental Services,132B,Orange PCS LTD,14/03/2022,Orange Pcs Ltd,,RS139770,54.64,0.00,Monthly Charges,Monthly Charges,Mobile Devices
Wyre Council,http://opendatacommunities.org/doc/district-council/wyre,30/03/2022,Resources,Planning and Development Servs,132C,Orange PCS LTD,16/03/2022,Orange Pcs Ltd,,RS139771,2.75,0.00,Monthly Charges,Monthly Charges,Mobile Devices
Wyre Council,http://opendatacommunities.org/doc/district-council/wyre,30/03/2022,Resources,Housing General Fund,134A,Orange PCS LTD,16/03/2022,Orange Pcs Ltd,,RS139771,30.00,0.00,Monthly Charges,Monthly Charges,Mobile Devices
Wyre Council,http://opendatacommunities.org/doc/district-council/wyre,30/03/2022,Resources,Housing General Fund,134A,Orange PCS LTD,16/03/2022,Orange Pcs Ltd,,RS139771,2.75,0.00,Monthly Charges,Monthly Charges,Mobile Devices
Wyre Council,http://opendatacommunities.org/doc/district-council/wyre,30/03/2022,Resources,Support Services,135B,Orange PCS LTD,16/03/2022,Orange Pcs Ltd,,RS139771,12.00,0.00,Monthly Charges,Monthly Charges,Mobile Devices
Wyre Council,http://opendatacommunities.org/doc/district-council/wyre,30/03/2022,Resources,Corporate and Democratic Core,131A,Orange PCS LTD,16/03/2022,Orange Pcs Ltd,,RS139771,158.75,0.00,Monthly Charges,Monthly Charges,Mobile Devices
Wyre Council,http://opendatacommunities.org/doc/district-council/wyre,30/03/2022,Resources,Cultural and Related Services,132A,Orange PCS LTD,16/03/2022,Orange Pcs Ltd,,RS139771,30.00,0.00,Monthly Charges,Monthly Charges,Mobile Devices
Wyre Council,http://opendatacommunities.org/doc/district-council/wyre,30/03/2022,Resources,Central Services to the Public,131C,Orange PCS LTD,16/03/2022,Orange Pcs Ltd,,RS139771,16.75,0.00,Monthly Charges,Monthly Charges,Mobile Devices
Wyre Council,http://opendatacommunities.org/doc/district-council/wyre,30/03/2022,Resources,Support Services,135B,Orange PCS LTD,16/03/2022,Orange Pcs Ltd,,RS139771,5.50,0.00,Monthly Charges,Monthly Charges,Mobile Devices
Wyre Council,http://opendatacommunities.org/doc/district-council/wyre,30/03/2022,Resources,Environmental Services,132B,Orange PCS LTD,16/03/2022,Orange Pcs Ltd,,RS139771,7.69,0.00,Monthly Charges,Monthly Charges,Mobile Devices
Wyre Council,http://opendatacommunities.org/doc/district-council/wyre,30/03/2022,Resources,Support Services,135B,Orange PCS LTD,16/03/2022,Orange Pcs Ltd,,RS139771,0.73,0.00,Monthly Charges,Monthly Charges,Mobile Devices
Wyre Council,http://opendatacommunities.org/doc/district-council/wyre,30/03/2022,Resources,Support Services,135B,Orange PCS LTD,14/03/2022,Orange Pcs Ltd,,RS139770,39.00,0.00,Monthly Charges,Monthly Charges,Mobile Devices
Wyre Council,http://opendatacommunities.org/doc/district-council/wyre,30/03/2022,Resources,Support Services,135B,Orange PCS LTD,16/03/2022,Orange Pcs Ltd,,RS139771,8.16,0.00,Monthly Charges,Monthly Charges,Mobile Devices
Wyre Council,http://opendatacommunities.org/doc/district-council/wyre,30/03/2022,Resources,Support Services,135B,Orange PCS LTD,16/03/2022,Orange Pcs Ltd,,RS139771,26.61,0.00,Monthly Charges,Monthly Charges,Mobile Devices
Wyre Council,http://opendatacommunities.org/doc/district-council/wyre,30/03/2022,Resources,Support Services,135B,Orange PCS LTD,16/03/2022,Orange Pcs Ltd,,RS139771,4.49,0.00,Monthly Charges,Monthly Charges,Mobile Devices
Wyre Council,http://opendatacommunities.org/doc/district-council/wyre,30/03/2022,Resources,Central Services to the Public,131C,Orange PCS LTD,14/03/2022,Orange Pcs Ltd,,RS139770,32.00,0.00,Monthly Charges,Monthly Charges,Mobile Devices
Wyre Council,http://opendatacommunities.org/doc/district-council/wyre,30/03/2022,Resources,Central Services to the Public,131C,Orange PCS LTD,16/03/2022,Orange Pcs Ltd,,RS139771,1.74,0.00,Monthly Charges,Monthly Charges,Mobile Devices
Wyre Council,http://opendatacommunities.org/doc/district-council/wyre,30/03/2022,Resources,Support Services,135B,Orange PCS LTD,16/03/2022,Orange Pcs Ltd,,RS139771,77.90,0.00,Monthly Charges,Monthly Charges,Mobile Devices
Wyre Council,http://opendatacommunities.org/doc/district-council/wyre,30/03/2022,Resources,Support Services,135B,Orange PCS LTD,14/03/2022,Orange Pcs Ltd,,RS139770,61.27,0.00,Monthly Charges,Monthly Charges,Mobile Devices
Wyre Council,http://opendatacommunities.org/doc/district-council/wyre,30/03/2022,Resources,Support Services,135B,Orange PCS LTD,16/03/2022,Orange Pcs Ltd,,RS139771,4.02,0.00,Monthly Charges,Monthly Charges,Mobile Devices
Wyre Council,http://opendatacommunities.org/doc/district-council/wyre,30/03/2022,Resources,Support Services,135B,VODAFONE LIMITED,16/03/2022,Vodafone Limited,,RS139775,57.00,0.00,Monthly Charges,Monthly Charges,Mobile Devices
Wyre Council,http://opendatacommunities.org/doc/district-council/wyre,30/03/2022,Resources,Support Services,135B,VODAFONE LIMITED,16/03/2022,Vodafone Limited,,RS139775,206.94,0.00,Monthly Charges,Monthly Charges,Mobile Devices
Wyre Council,http://opendatacommunities.org/doc/district-council/wyre,30/03/2022,Resources,Housing General Fund,134A,VODAFONE LIMITED,16/03/2022,Vodafone Limited,,RS139775,4.00,0.00,Monthly Charges,Monthly Charges,Mobile Devices
Wyre Council,http://opendatacommunities.org/doc/district-council/wyre,30/03/2022,Resources,Environmental Services,132B,VODAFONE LIMITED,16/03/2022,Vodafone Limited,,RS139775,37.65,0.00,Monthly Charges,Monthly Charges,Mobile Devices
Wyre Council,http://opendatacommunities.org/doc/district-council/wyre,30/03/2022,Resources,Cultural and Related Services,132A,VODAFONE LIMITED,16/03/2022,Vodafone Limited,,RS139775,4.65,0.00,Monthly Charges,Monthly Charges,Mobile Devices
Wyre Council,http://opendatacommunities.org/doc/district-council/wyre,30/03/2022,Resources,Support Services,135B,VODAFONE LIMITED,16/03/2022,Vodafone Limited,,RS139775,10.46,0.00,Monthly Charges,Monthly Charges,Mobile Devices
Wyre Council,http://opendatacommunities.org/doc/district-council/wyre,30/03/2022,Resources,Cultural and Related Services,132A,VODAFONE LIMITED,16/03/2022,Vodafone Limited,,RS139775,33.00,0.00,Monthly Charges,Monthly Charges,Mobile Devices
Wyre Council,http://opendatacommunities.org/doc/district-council/wyre,30/03/2022,Resources,Corporate and Democratic Core,131A,VODAFONE LIMITED,16/03/2022,Vodafone Limited,,RS139775,12.00,0.00,Monthly Charges,Monthly Charges,Mobile Devices
Wyre Council,http://opendatacommunities.org/doc/district-council/wyre,30/03/2022,Resources,Support Services,135B,VODAFONE LIMITED,16/03/2022,Vodafone Limited,,RS139775,49.65,0.00,Monthly Charges,Monthly Charges,Mobile Devices
Wyre Council,http://opendatacommunities.org/doc/district-council/wyre,30/03/2022,Resources,Housing General Fund,134A,VODAFONE LIMITED,16/03/2022,Vodafone Limited,,RS139775,20.65,0.00,Monthly Charges,Monthly Charges,Mobile Devices
Wyre Council,http://opendatacommunities.org/doc/district-council/wyre,30/03/2022,Resources,Support Services,135B,VODAFONE LIMITED,16/03/2022,Vodafone Limited,,RS139775,121.90,0.00,Monthly Charges,Monthly Charges,Mobile Devices
Wyre Council,http://opendatacommunities.org/doc/district-council/wyre,30/03/2022,Resources,Support Services,135B,VODAFONE LIMITED,16/03/2022,Vodafone Limited,,RS139775,24.00,0.00,Monthly Charges,Monthly Charges,Mobile Devices
Wyre Council,http://opendatacommunities.org/doc/district-council/wyre,30/03/2022,Resources,Support Services,135B,VODAFONE LIMITED,16/03/2022,Vodafone Limited,,RS139775,69.00,0.00,Monthly Charges,Monthly Charges,Mobile Devices
Wyre Council,http://opendatacommunities.org/doc/district-council/wyre,30/03/2022,Resources,Support Services,135B,VODAFONE LIMITED,16/03/2022,Vodafone Limited,,RS139775,12.00,0.00,Monthly Charges,Monthly Charges,Mobile Devices
Wyre Council,http://opendatacommunities.org/doc/district-council/wyre,30/03/2022,Resources,Support Services,135B,VODAFONE LIMITED,16/03/2022,Vodafone Limited,,RS139775,78.00,0.00,Monthly Charges,Monthly Charges,Mobile Devices
Wyre Council,http://opendatacommunities.org/doc/district-council/wyre,30/03/2022,Resources,Support Services,135B,VODAFONE LIMITED,16/03/2022,Vodafone Limited,,RS139775,139.90,0.00,Monthly Charges,Monthly Charges,Mobile Devices
Wyre Council,http://opendatacommunities.org/doc/district-council/wyre,30/03/2022,Resources,Support Services,135B,VODAFONE LIMITED,16/03/2022,Vodafone Limited,,RS139775,194.19,0.00,Monthly Charges,Monthly Charges,Mobile Devices
Wyre Council,http://opendatacommunities.org/doc/district-council/wyre,30/03/2022,Resources,Support Services,135B,VODAFONE LIMITED,16/03/2022,Vodafone Limited,,RS139775,12.00,0.00,Monthly Charges,Monthly Charges,Mobile Devices
Wyre Council,http://opendatacommunities.org/doc/district-council/wyre,30/03/2022,Resources,Cultural and Related Services,132A,VODAFONE LIMITED,16/03/2022,Vodafone Limited,,RS139775,33.00,0.00,Monthly Charges,Monthly Charges,Mobile Devices
Wyre Council,http://opendatacommunities.org/doc/district-council/wyre,30/03/2022,Resources,Central Services to the Public,131C,VODAFONE LIMITED,16/03/2022,Vodafone Limited,,RS139775,12.00,0.00,Monthly Charges,Monthly Charges,Mobile Devices
Wyre Council,http://opendatacommunities.org/doc/district-council/wyre,30/03/2022,Resources,Support Services,135B,VODAFONE LIMITED,16/03/2022,Vodafone Limited,,RS139775,12.00,0.00,Monthly Charges,Monthly Charges,Mobile Devices
Wyre Council,http://opendatacommunities.org/doc/district-council/wyre,30/03/2022,Resources,Environmental Services,132B,VODAFONE LIMITED,16/03/2022,Vodafone Limited,,RS139775,127.38,0.00,Monthly Charges,Monthly Charges,Mobile Devices
Wyre Council,http://opendatacommunities.org/doc/district-council/wyre,30/03/2022,Resources,Central Services to the Public,131C,VODAFONE LIMITED,16/03/2022,Vodafone Limited,,RS139775,12.04,0.00,Monthly Charges,Monthly Charges,Mobile Devices
Wyre Council,http://opendatacommunities.org/doc/district-council/wyre,30/03/2022,Resources,Support Services,135B,VODAFONE LIMITED,16/03/2022,Vodafone Limited,,RS139775,49.65,0.00,Monthly Charges,Monthly Charges,Mobile Devices
Wyre Council,http://opendatacommunities.org/doc/district-council/wyre,30/03/2022,Resources,Support Services,135B,VODAFONE LIMITED,16/03/2022,Vodafone Limited,,RS139775,295.30,0.00,Monthly Charges,Monthly Charges,Mobile Devices
Wyre Council,http://opendatacommunities.org/doc/district-council/wyre,30/03/2022,Resources,Support Services,135B,VODAFONE LIMITED,16/03/2022,Vodafone Limited,,RS139775,12.00,0.00,Monthly Charges,Monthly Charges,Mobile Devices
